{"text_format":"1","workbook":"xlsx","n_sheets":1,"sheets":["CONTRATACION ENERO 2020"],"not_rendered":{"charts":0,"images":0,"macros":1,"external_links":1,"defined_names":1,"comments":1,"pivot_tables":0},"unopened":[],"bounds":{"document_bytes":16777216,"sheet_cells":100000,"rows_first":2000,"rows_last":500,"rows_between":2000,"halvings":0,"cell_chars":16384,"cell_head_chars":4096},"cells_cut":0,"cells_raw":0,"read":"whole","date_system":"1900"}

{"sheet":"CONTRATACION ENERO 2020","index":0,"n_rows":455,"n_cols":16,"rows_kept":455,"cut":false,"hidden":false,"merged":[]}
[" ","CEDULA","NOMBRES APELLIDOS CONTRATISTA","# OPS","OBJETO DEL CONTRATO","FECHA INICIO","FECHA TERMINACION ","VALOR MENSUAL","VALOR TOTAL ","SUPERVISOR ","CARGO","CENTRO DE SALUD","CDP","RP","FECHA SECOP LINK SECOP ","LINK SECOOP"]
[1,72003862,"GERARDO ARTURO CABALLERO ARIZA","0001 - 2020","ABOGADO EXTERNO","02 ENERO DE 2020","31 ENERO DE 2020",5800000,{"$f":"H2*1","v":5800000},"ORNELLA FIORENTINO ","JEFE OFICINA JURIDICA","CENTRO COSTA HERMOSA ",5,5,"09/01/2020","https://www.contratos.gov.co/consultas/detalleProceso.do?numConstancia=20-4-10268021"]
[{"$f":"+A2+1","v":2},7455342,"ADOLFO MARIO DE LA HOZ BERNAL","0002 - 2020","MEDICO DE URGENCIA","02 ENERO DE 2020","31 ENERO DE 2020",2560000,2560000,"BETTY  LUX PERTUZ CHARRIS","SUBGERENTE CIENTIFICO","CIUDADELA METROPOLITANA",6,6,"09/01/2020","https://www.contratos.gov.co/consultas/detalleProceso.do?numConstancia=20-4-10268054"]
[{"$f":"+A3+1","v":3},55309225,"ADRIANA BALLESTAS MARTINEZ","0003 - 2020","MEDICO DE URGENCIA","02 ENERO DE 2020","31 ENERO DE 2020",2560000,2560000,"BETTY  LUX PERTUZ CHARRIS","SUBGERENTE CIENTIFICO","CENTRO DE 13 DE JUNIO ",7,7,"09/01/2020","https://www.contratos.gov.co/consultas/detalleProceso.do?numConstancia=20-4-10268065"]
[4,1103109488,"ADRIANA MARCELA CASTAÑO RODELO","0004 - 2020","MEDICO CARDIOVASCULAR","02 ENERO DE 2020","31 ENERO DE 2020",4420000,4420000,"DIANA MARTINEZ PACHECO","COORD CENTRO DE SALUD","CENTRO SALAMANCA",8,8,"09/01/2020","https://www.contratos.gov.co/consultas/detalleProceso.do?numConstancia=20-4-10268081"]
[5,22465848,"ADRIANA OROZCO CANTILLO","0005-2020","AUXILIAR SERVICIOS GENERALES","02 ENERO DE 2020","31 ENERO DE 2020",1215000,1215000,"LUIS CARLOS DE LEON BERNIER","COORD CENTRO SALUD","CENTRO MACLOVIA",9,9,"09/01/2020","https://www.contratos.gov.co/consultas/detalleProceso.do?numConstancia=20-4-10268092"]
[6,1140895535,"ADRIANA PAOLA GONZALEZ ROMERO ","0006 - 2020","ENFERMERA JEFE","02 ENERO DE 2020","31 ENERO DE 2020",2120000,2120000,"BETTY  LUX PERTUZ CHARRIS","SUBGERENTE CIENTIFICO","LA ESPERANZA",10,10,"09/01/2020","https://www.contratos.gov.co/consultas/detalleProceso.do?numConstancia=20-4-10268105"]
[7,1143437950,"ALBA KARINA ARIAS ESCOBAR ","0007 - 2020","MEDICO CONSULTA EXTERNA ","02 ENERO DE 2020","31 ENERO DE 2020",2120000,2120000,"LUIS GRANADOS GOMEZ","COORD CENTRO SALUD","CENTRO MANUELA BELTRAN",11,11,"09/01/2020","https://www.contratos.gov.co/consultas/detalleProceso.do?numConstancia=20-4-10268112"]
[8,39059528,"ALBA SERNA MEJIA","0008 - 2020","AUXILIAR DE ENFERMERIA URGENCIAS","02 ENERO DE 2020","31 ENERO DE 2020",1378000,1378000,"WILFRAN JIMENEZ DE LA PEÑA","COORD CENTRO SALUD","CIUDADELA METROPOLITANA",12,12,"09/01/2020","https://www.contratos.gov.co/consultas/detalleProceso.do?numConstancia=20-4-10268133"]
[9,36555688,"ALBA SOLANO COCA","0009 - 2020","ODONTOLOGO","02 ENERO DE 2020","31 ENERO DE 2020",1900000,1900000,"CARLOS VISBAL JIMENEZ","COORD CENTRO SALUD","CENTRO COSTA HERMOSA ",13,13,"09/01/2020","https://www.contratos.gov.co/consultas/detalleProceso.do?numConstancia=20-4-10268139"]
[10,1140874429,"ALBERTO DE LA OSSA DE AVILA","0010 - 2020","PROFESIONAL DE PRESUPUESTO ","02 ENERO DE 2020","31 ENERO DE 2020",3500000,3500000,"ALFONSO NICOLAS OQUENDO ","DIRECTOR FINANCIERO","CENTRO COSTA HERMOSA ",14,14,"09/01/2020","https://www.contratos.gov.co/consultas/detalleProceso.do?numConstancia=20-4-10268190"]
[11,8505956,"ALBERTO NAVARRO MORALES","0011 - 2020","AUXILIAR DE FACTURACION URGENCIA","02 ENERO DE 2020","31 ENERO DE 2020",1400000,1400000,"SANDRA MILENA SANMARTIN  LOPEZ","SUB GERENTE ADMINISTRATIVO","CENTRO COSTA HERMOSA ",15,15,"09/01/2020","https://www.contratos.gov.co/consultas/detalleProceso.do?numConstancia=20-4-10268203"]
[12,37577926,"ALCIRA CAMPO ALCOZER","0012 - 2020","AUXILIAR SERVICIOS GENERALES","02 ENERO DE 2020","31 ENERO DE 2020",1215000,1215000,"SANDRA MILENA SANMARTIN  LOPEZ","SUB GERENTE ADMINISTRATIVO","CENTRO COSTA HERMOSA ",16,16,"09/01/2020","https://www.contratos.gov.co/consultas/detalleProceso.do?numConstancia=20-4-10268220"]
[13,64543985,"ALCIRA GOMEZ ARRIETA ","0013 - 2020","ENFERMERA JEFE COORDINADORA PAI ","02 ENERO DE 2020","31 ENERO DE 2020",4000000,4000000,"NILSA ARIZA MARQUEZ","COORDINADOR P Y P","CENTRO MANUELA BELTRAN",17,17,"09/01/2020","https://www.contratos.gov.co/consultas/detalleProceso.do?numConstancia=20-4-10268268"]
[14,1045676663,"ALEXANDER MENDOZA DUARTE","0014 - 2020","INGENIERO DE HARDWARE Y REDES","02 ENERO DE 2020","31 ENERO DE 2020",3000000,3000000,{"$f":"+J437","v":"ZULLI ROMERO "},"COORDINADOR TIC","CENTRO COSTA HERMOSA ",18,18,"09/01/2020","https://www.contratos.gov.co/consultas/detalleProceso.do?numConstancia=20-4-10268279"]
[15,22523223,"ALEXANDRA ESTHER MOLINA PEREZ","0015-2020","AUXILIAR SERVICIOS GENERALES URGENCIA","02 ENERO DE 2020","31 ENERO DE 2020",1378000,1378000,"SERGIO BOVEA MARIN","COORD CENTRO SALUD","CENTRO DE 13 DE JUNIO ",19,19,"09/01/2020","https://www.contratos.gov.co/consultas/detalleProceso.do?numConstancia=20-4-10268295"]
[16,1140881787,"ALEXANDRA GUZMAN QUINTERO","0016 - 2020","ASISTENTE OFICINA JURIDICA ","02 ENERO DE 2020","31 ENERO DE 2020",3000000,3000000,"ORNELLA FIORENTINO ","JEFE OFICINA JURIDICA","CENTRO COSTA HERMOSA ",20,20,"09/01/2020","https://www.contratos.gov.co/consultas/detalleProceso.do?numConstancia=20-4-10268319"]
[17,1045716759,"ALFREDO ANGULO JULIAO","0017 - 2020","AUXILIAR DE FACTURACION URGENCIA","02 ENERO DE 2020","31 ENERO DE 2020",1400000,1400000,"SANDRA MILENA SANMARTIN  LOPEZ","SUB GERENTE ADMINISTRATIVO","CENTRO COSTA HERMOSA ",21,21,"09/01/2020","https://www.contratos.gov.co/consultas/detalleProceso.do?numConstancia=20-4-10268336"]
[18,8721508,"ALONSO JOSÉ RIQUETT DE LA HOZ","0018 - 2020","MEDICO P Y P ","02 ENERO DE 2020","31 ENERO DE 2020",2120000,2120000,"CARLOS VISBAL JIMENEZ","COORD CENTRO SALUD","CENTRO COSTA HERMOSA ",22,22,"09/01/2020","https://www.contratos.gov.co/consultas/detalleProceso.do?numConstancia=20-4-10268349"]
[19,8697543,"ALVARO ARENAS GONZALEZ","0019 - 2020","MEDICO DE MATERNIDAD ","02 ENERO DE 2020","31 ENERO DE 2020",{"$f":"4240000+4240000/30*24","v":7632000},7632000,"SERGIO BOVEA MARIN","COORD CENTRO SALUD","CENTRO DE 13 DE JUNIO ",23,23,"09/01/2020","https://www.contratos.gov.co/consultas/detalleProceso.do?numConstancia=20-4-10268364"]
[20,7407679,"AMEFI PACHECO CERA","0020 - 2020","ORIENTADOR","02 ENERO DE 2020","31 ENERO DE 2020",1270000,1270000,"SANDRA MILENA SANMARTIN  LOPEZ","SUB GERENTE ADMINISTRATIVO","La esperanza",24,24,"09/01/2020","https://www.contratos.gov.co/consultas/detalleProceso.do?numConstancia=20-4-10268373"]
[21,1047338042,"AMINTA PARDO GUZMAN","0021 - 2020","AUXILIAR DE ENFERMERIA CONSULTA EXTERNA ","02 ENERO DE 2020","31 ENERO DE 2020",1166000,1166000,"DIANA MARTINEZ PACHECO","COORD CENTRO DE SALUD","CENTRO SALAMANCA",25,25,"09/01/2020","https://www.contratos.gov.co/consultas/detalleProceso.do?numConstancia=20-4-10268381"]
[22,32870174,"SIRLEY PAOLA PEREZ CARMONA","0022 - 2020","PROFESIONAL CALIDAD","02 ENERO DE 2020","31 ENERO DE 2020",5800000,5800000,"BETTY  LUX PERTUZ CHARRIS","SUBGERENTE CIENTIFICO","CENTRO COSTA HERMOSA ",26,26,"09/01/2020","https://www.contratos.gov.co/consultas/detalleProceso.do?numConstancia=20-4-10268400"]
[23,1045688469,"AMY MOVILLA COMAS","0023 - 2020","ENFERMERA JEFE CONSULTA EXTERNA ","02 ENERO DE 2020","31 ENERO DE 2020",2300000,2300000,"DIANA MARTINEZ PACHECO","COORD CENTRO DE SALUD","CENTRO SALAMANCA",27,27,"09/01/2020","https://www.contratos.gov.co/consultas/detalleProceso.do?numConstancia=20-4-10268416"]
[24,32813366,"ANA GONZALEZ ZAMBRANO","0024 -  2020","AUXILIAR DE ARCHIVO ","02 ENERO DE 2020","31 ENERO DE 2020",1500000,1500000,"SANDRA MILENA SANMARTIN  LOPEZ","SUB GERENTE ADMINISTRATIVO","ARCHIVO CENTRAL ",28,28,"09/01/2020","https://www.contratos.gov.co/consultas/detalleProceso.do?numConstancia=20-4-10268428"]
[25,1045704276,"ANA MILENA HERRERA ALVIS ","0025 - 2020","ENFERMERA JEFE ","02 ENERO DE 2020","31 ENERO DE 2020",2300000,2300000,"NILSA ARIZA MARQUEZ","COORDINADOR P Y P","CENTRO COSTA HERMOSA ",29,29,"09/01/2020","https://www.contratos.gov.co/consultas/detalleProceso.do?numConstancia=20-4-10268465"]
[26,22739459,"ANA MILENA L´HOESTE ROA","0026 - 2020","COORDINADORA CONSULTA EXTERNA","02 ENERO DE 2020","31 ENERO DE 2020",3180000,3180000,"BETTY  LUX PERTUZ CHARRIS","SUBGERENTE CIENTIFICO","CENTRO COSTA HERMOSA ",30,30,"09/01/2020","https://www.contratos.gov.co/consultas/detalleProceso.do?numConstancia=20-4-10268482"]
[27,32825462,"ANAIS DE JESUS RODRIGUEZ DE DE LAS AGUAS","0027 - 2020","AUXILIAR SERVICIOS GENERALES","02 ENERO DE 2020","31 ENERO DE 2020",1215000,1215000,"DIANA MARTINEZ PACHECO","COORD CENTRO DE SALUD","CENTRO SALAMANCA",31,31,"09/01/2020","https://www.contratos.gov.co/consultas/detalleProceso.do?numConstancia=20-4-10268493"]
[28,1045706259,"ANDREA CAROLINA HERRERA ORTEGA"," 0028 - 2020","MEDICO CONSULTA EXTERNA","02 ENERO DE 2020","31 ENERO DE 2020",2120000,2120000,"LUIS GRANADOS GOMEZ","COORD CENTRO SALUD","CENTRO MANUELA BELTRAN",32,32,"09/01/2020","https://www.contratos.gov.co/consultas/detalleProceso.do?numConstancia=20-4-10268527"]
[29,1042443216,"ANDRES ALBERTO GARCIA OSPINO","0029 - 2020","AUXILIAR DE FACTURACION URGENCIA","02 ENERO DE 2020","31 ENERO DE 2020",1500000,1500000,"SANDRA MILENA SANMARTIN  LOPEZ","SUB GERENTE ADMINISTRATIVO","ARCHIVO CENTRAL ",33,33,"09/01/2020","https://www.contratos.gov.co/consultas/detalleProceso.do?numConstancia=20-4-10268544"]
[30,32771752,"ANETHS CECILIA ARGOTE TORRES","0030 - 2020","AGENTE CALL CENTER","02 ENERO DE 2020","31 ENERO DE 2020",1378000,1378000,"BETTY  LUX PERTUZ CHARRIS","SUBGERENTE CIENTIFICO","COLL-CENTER- CIUDADELA METROPOLITANA",34,34,"09/01/2020","https://www.contratos.gov.co/consultas/detalleProceso.do?numConstancia=20-4-10268567"]
[31,8757791,"ANGEL SANTIAGO MARTINEZ","0031 - 2020","ORIENTADOR","02 ENERO DE 2020","31 ENERO DE 2020",1270000,1270000,"LUIS GRANADOS GOMEZ","COORD CENTRO SALUD","CENTRO MANUELA BELTRAN",35,35,"09/01/2020","https://www.contratos.gov.co/consultas/detalleProceso.do?numConstancia=20-4-10268590"]
[32,1047337496,"ANTHONY MIGUEL ORELLANO JIMENEZ","0032 - 2020","AUXILIAR DE FACTURACION URGENCIA","02 ENERO DE 2020","31 ENERO DE 2020",1400000,1400000,"SANDRA MILENA SANMARTIN  LOPEZ","SUB GERENTE ADMINISTRATIVO","CENTRO COSTA HERMOSA ",36,36,"09/01/2020","https://www.contratos.gov.co/consultas/detalleProceso.do?numConstancia=20-4-10268599"]
[33,22736159,"ARACELLY HERNANDEZ GARCIA ","0033 - 2020","DIGITADOR","02 ENERO DE 2020","31 ENERO DE 2020",2500000,2500000,"NILSA ARIZA MARQUEZ","COORDINADOR P Y P","CENTRO COSTA HERMOSA ",37,37,"09/01/2020","https://www.contratos.gov.co/consultas/detalleProceso.do?numConstancia=20-4-10268616"]
[34,32869290,"ARGENEDITH YEPEZ ESCALANTE ","0034 - 2020","MEDICO P Y P","02 ENERO DE 2020","31 ENERO DE 2020",2120000,2120000,"LUIS GRANADOS GOMEZ","COORD CENTRO SALUD","CENTRO MANUELA BELTRAN",38,38,"09/01/2020","https://www.contratos.gov.co/consultas/detalleProceso.do?numConstancia=20-4-10268630"]
[35,1042444527,"ARNOLD RINCON MARTINEZ","0035 - 2020","PROFESIONAL PLANEACION ESTRATEGICA","02 ENERO DE 2020","31 ENERO DE 2020",4500000,4500000,"SANDRA MILENA SANMARTIN  LOPEZ","SUB GERENTE ADMINISTRATIVO","CENTRO COSTA HERMOSA ",39,39,"09/01/2020","https://www.contratos.gov.co/consultas/detalleProceso.do?numConstancia=20-4-10268644"]
[36,32767778,"BEATRIZ ELENA GUTIERREZ AHUMADA","0036 - 2020","PAI WEB ","02 ENERO DE 2020","31 ENERO DE 2020",1378000,1378000,"NILSA ARIZA MARQUEZ","COORDINADOR P Y P","COLL-CENTER- CIUDADELA METROPOLITANA",40,40,"09/01/2020","https://www.contratos.gov.co/consultas/detalleProceso.do?numConstancia=20-4-10268653"]
[37,32780077,"BELKIS  BOSSIO ESCORCIA","0037 - 2020","MEDICO DE URGENCIA","02 ENERO DE 2020","31 ENERO DE 2020",2560000,2560000,"BETTY  LUX PERTUZ CHARRIS","SUBGERENTE CIENTIFICO","CIUDADELA METROPOLITANA",41,41,"09/01/2020","https://www.contratos.gov.co/consultas/detalleProceso.do?numConstancia=20-4-10268675"]
[38,32736237,"BETTY ROMERO RODRIGUEZ ","0038 - 2020","AUXILIAR SERVICIOS GENERALES URGENCIA","02 ENERO DE 2020","31 ENERO DE 2020",1378000,1378000,"WILFRAN JIMENEZ DE LA PEÑA","COORD CENTRO SALUD","CIUDADELA METROPOLITANA",42,42,"09/01/2020","https://www.contratos.gov.co/consultas/detalleProceso.do?numConstancia=20-4-10268691"]
[39,72153271,"BORIS ARROYO ESCOBAR","0039 - 2020","ORIENTADOR","02 ENERO DE 2020","31 ENERO DE 2020",1270000,1270000,"LUIS GRANADOS GOMEZ","COORD CENTRO SALUD","CENTRO MANUELA BELTRAN",43,43,"09/01/2020","https://www.contratos.gov.co/consultas/detalleProceso.do?numConstancia=20-4-10268817"]
[40,7938572,"BRAYNERD ALVAREZ JIMENEZ ","0040 - 2020","MEDICO CONSULTA EXTERNA  Y CARDIOVASCULAR","02 ENERO DE 2020","31 ENERO DE 2020",4600000,4600000,"YARELIS GUERRA CORREA","COORD CENTRO SALUD","CENTRO VILLA ESTADIO ",44,44,"09/01/2020","https://www.contratos.gov.co/consultas/detalleProceso.do?numConstancia=20-4-10268833"]
[41,1042452163,"BRENDA JULIETH GONZALEZ MEJIA","0041 -2020","DIGITADOR","02 ENERO DE 2020","31 ENERO DE 2020",1600000,1600000,"MARIA SANCHEZ AYALA","JEFE ALMACEN","ALMACEN",45,45,"09/01/2020","https://www.contratos.gov.co/consultas/detalleProceso.do?numConstancia=20-4-10268850"]
[42,1001875457,"BRIGGITH CHARRIS ALGARIN ","0042 - 2020","AUXILIAR DE ODONTOLOGIA","02 ENERO DE 2020","31 ENERO DE 2020",1166000,1166000,"WILFRAN JIMENEZ DE LA PEÑA","COORD CENTRO SALUD","CIUDADELA METROPOLITANA",46,46,"09/01/2020","https://www.contratos.gov.co/consultas/detalleProceso.do?numConstancia=20-4-10268855"]
[43,1042446319,"BRUNYS DEL CARMEN RAMIREZ MUÑOZ","0043 - 2020 ","AUXILIAR DE ENFERMERIA PROMOTORA EN SALUD","02 ENERO DE 2020","31 ENERO DE 2020",1215000,1215000,"WILFRAN JIMENEZ DE LA PEÑA","COORD CENTRO SALUD","CIUDADELA METROPOLITANA",47,47,"09/01/2020","https://www.contratos.gov.co/consultas/detalleProceso.do?numConstancia=20-4-10268867"]
[44,1042449000,"CARLOS ALFREDO MONTERROSA GOMEZ ","0044 - 2020","PAI WEB ","02 ENERO DE 2020","31 ENERO DE 2020",1270000,1270000,"NILSA ARIZA MARQUEZ","COORDINADOR P Y P","ARCHIVO CENTRAL ",48,48,"09/01/2020","https://www.contratos.gov.co/consultas/detalleProceso.do?numConstancia=20-4-10268889"]
[45,72238499,"CARLOS ANTONIO MATTOS MIRANDA","0045 - 2020","REFERENCIA Y CONTRAREFERENCIA","02 ENERO DE 2020","31 ENERO DE 2020",1480000,1480000,"SERGIO BOVEA MARIN","COORD CENTRO SALUD","CENTRO DE 13 DE JUNIO ",49,49,"09/01/2020","https://www.contratos.gov.co/consultas/detalleProceso.do?numConstancia=20-4-10268898"]
[46,44158949,"CARMEN PACHECO VARELA","0046 - 2020","AUXILIAR SERVICIOS GENERALES URGENCIA","02 ENERO DE 2020","31 ENERO DE 2020",1378000,1378000,"SERGIO BOVEA MARIN","COORD CENTRO SALUD","CENTRO DE 13 DE JUNIO ",50,50,"09/01/2020","https://www.contratos.gov.co/consultas/detalleProceso.do?numConstancia=20-4-10268908"]
[47,32618430,"CARMEN ROBLES DE LASCARRO","0047 - 2020","AUXILIAR SERVICIOS GENERALES URGENCIA","02 ENERO DE 2020","31 ENERO DE 2020",1378000,1378000,"WILFRAN JIMENEZ DE LA PEÑA","COORD CENTRO SALUD","CIUDADELA METROPOLITANA",51,51,"09/01/2020","https://www.contratos.gov.co/consultas/detalleProceso.do?numConstancia=20-4-10268924"]
[48,1069489915,"CAROLINA RICARDO ALBA","0048 - 2020","AUXILIAR ADMINISTRATIVO -  SUBGERENCIA ADMINISTRATIVA","02 ENERO DE 2020","31 ENERO DE 2020",1900000,1900000,"SANDRA MILENA SANMARTIN  LOPEZ","SUB GERENTE ADMINISTRATIVO","COSTA HERMOSA",52,52,"09/01/2020","https://www.contratos.gov.co/consultas/detalleProceso.do?numConstancia=20-4-10268993"]
[49,32712485,"CASILDA LARA SOLANO ","0049  - 2020","MEDICO MATERNIDAD SEGURA","02 ENERO DE 2020","31 ENERO DE 2020",2120000,2120000,"SERGIO BOVEA MARIN","COORD CENTRO SALUD","CENTRO DE 13 DE JUNIO ",53,53,"09/01/2020","https://www.contratos.gov.co/consultas/detalleProceso.do?numConstancia=20-4-10269007"]
[50,1143138226,"CATTERINNE ESTEFANY ESTRADA CARDENAS","0050  - 2020","AUXILIAR DE FACTURACION URGENCIA","02 ENERO DE 2020","31 ENERO DE 2020",1400000,1400000,"SANDRA MILENA SANMARTIN  LOPEZ","SUB GERENTE ADMINISTRATIVO","CENTRO COSTA HERMOSA ",54,54,"09/01/2020","https://www.contratos.gov.co/consultas/detalleProceso.do?numConstancia=20-4-10269445"]
[51,8762035,"CESAR AUGUSTO MERIÑO ESCORCIA ","0051 - 2020","ORIENTADOR","02 ENERO DE 2020","31 ENERO DE 2020",1270000,1270000,"SANDRA MILENA SANMARTIN  LOPEZ","SUB GERENTE ADMINISTRATIVO","CENTRO COSTA HERMOSA ",55,55,"09/01/2020","https://www.contratos.gov.co/consultas/detalleProceso.do?numConstancia=20-4-10269321"]
[52,1001875491,"CINDY MILENA VARELA ARIAS ","0052  - 2020","AUXILIAR SERVICIOS GENERALES","02 ENERO DE 2020","31 ENERO DE 2020",1215000,1215000,"LUIS GRANADOS GOMEZ","COORD CENTRO SALUD","CENTRO MANUELA BELTRAN",56,56,"09/01/2020","https://www.contratos.gov.co/consultas/detalleProceso.do?numConstancia=20-4-10269332"]
[53,1143116013,"CLARA MENDOZA BETTER","0053 - 2020","PSICOLOGO EN PROMOCION Y PREVENCION","02 ENERO DE 2020","31 ENERO DE 2020",2800000,2800000,"DIANA MARTINEZ PACHECO","COORD CENTRO DE SALUD","CENTRO SALAMANCA",57,57,"09/01/2020","https://www.contratos.gov.co/consultas/detalleProceso.do?numConstancia=20-4-10269351"]
[54,1042418998,"CLAUDIA AREVALO CERVANTES","0054 - 2020","ENFERMERA JEFE P Y P","02 ENERO DE 2020","31 ENERO DE 2020",2300000,2300000,"NILSA ARIZA MARQUEZ","COORDINADOR P Y P","CIUDADELA METROPOLITANA",58,58,"09/01/2020","https://www.contratos.gov.co/consultas/detalleProceso.do?numConstancia=20-4-10269351"]
[55,32866058,"CLAUDIA CABARCAS ARROYO","0055 - 2020","TRABAJADORA SOCIAL","02 ENERO DE 2020","31 ENERO DE 2020",2200000,2200000,"DIANA MARTINEZ PACHECO","COORD CENTRO DE SALUD","CENTRO SALAMANCA",59,59,"09/01/2020","https://www.contratos.gov.co/consultas/detalleProceso.do?numConstancia=20-4-10269374"]
[56,32749353,"CLAUDIA VALENCIA AGUDELO ","0056 -2020","AUXILIAR DE ENFERMERIA MATERNIDAD SEGURA ","02 ENERO DE 2020","31 ENERO DE 2020",1166000,1166000,"WILFRAN JIMENEZ DE LA PEÑA","COORD CENTRO SALUD","CIUDADELA METROPOLITANA",60,60,"09/01/2020","https://www.contratos.gov.co/consultas/detalleProceso.do?numConstancia=20-4-10269405"]
[57,32818534,"CONSUELO MENDOZA CASTRO ","0057 - 2020","AUXILIAR DE ENFERMERIA MATERNIDAD SEGURA ","02 ENERO DE 2020","31 ENERO DE 2020",1166000,1166000,"WILFRAN JIMENEZ DE LA PEÑA","COORD CENTRO SALUD","CIUDADELA METROPOLITANA",61,61,"09/01/2020","https://www.contratos.gov.co/consultas/detalleProceso.do?numConstancia=20-4-10269414"]
[58,72193875,"CRISTIAN DE JESUS BARRAZA VILLALBA","0058 - 2020","CONDUCTOR DE AMBULANCIA","02 ENERO DE 2020","31 ENERO DE 2020",1800000,1800000,"BETTY  LUX PERTUZ CHARRIS","SUBGERENTE CIENTIFICO","CIUDADELA METROPOLITANA",62,62,"09/01/2020","https://www.contratos.gov.co/consultas/detalleProceso.do?numConstancia=20-4-10269428"]
[59,22646602,"MARTHA CECILIA PICO OROZCO","0059 - 2020","AUXILIAR DE AUTORIZACIONES ","02 ENERO DE 2020","31 ENERO DE 2020",1378000,1378000,"BETTY  LUX PERTUZ CHARRIS","SUBGERENTE CIENTIFICO","CIUDADELA METROPOLITANA",63,63,"09/01/2020","https://www.contratos.gov.co/consultas/detalleProceso.do?numConstancia=20-4-10269445"]
[60,22477219,"DAMARIS ISABEL GUETTE PAREJA","0060 - 2020","REGENTE DE FARMACIA","02 ENERO DE 2020","31 ENERO DE 2020",1900000,1900000,"BETTY  LUX PERTUZ CHARRIS","SUBGERENTE CIENTIFICO","COSTA HERMOSA",64,64,"09/01/2020","https://www.contratos.gov.co/consultas/detalleProceso.do?numConstancia=20-4-10269455"]
[61,1007097995,"DANIELA CAROLINA HERNANDEZ OSORIO","0061 - 2020","ODONTOLOGO","02 ENERO DE 2020","31 ENERO DE 2020",1900000,1900000,"WILFRAN JIMENEZ DE LA PEÑA","COORD CENTRO SALUD","CIUDADELA METROPOLITANA",65,65,"09/01/2020","https://www.contratos.gov.co/consultas/detalleProceso.do?numConstancia=20-4-10269590"]
[62,72436677,"DANILO ENRIQUE GRAVINI DE LA HOZ","0062 - 2020","AUXILIAR DE ENFERMERIA URGENCIAS","02 ENERO DE 2020","31 ENERO DE 2020",1378000,1378000,"WILFRAN JIMENEZ DE LA PEÑA","COORD CENTRO SALUD","CIUDADELA METROPOLITANA",66,66,"09/01/2020","https://www.contratos.gov.co/consultas/detalleProceso.do?numConstancia=20-4-10269973"]
[63,72295422,"DANILO JOSE DE LA VICTORIA CANTILLO","0063 - 2020 ","PSICOLOGO","02 ENERO DE 2020","31 ENERO DE 2020",2500000,2500000,"BETTY  LUX PERTUZ CHARRIS","SUBGERENTE CIENTIFICO","VILLA ESTADIO",67,67,"09/01/2020","https://www.contratos.gov.co/consultas/detalleProceso.do?numConstancia=20-4-10270090"]
[64,1042442558,"DANISA PAOLA BARRIOS DE ALBA","0064 - 2020","NUTRICIONISTA","02 ENERO DE 2020","31 ENERO DE 2020",2300000,2300000,"DIANA MARTINEZ PACHECO","COORD CENTRO DE SALUD","CENTRO SALAMANCA",68,68,"09/01/2020","https://www.contratos.gov.co/consultas/detalleProceso.do?numConstancia=20-4-10270118"]
[65,1045234352,"DARIANA MARCELA ROMERO CASTELLANOS","0065 - 2020","MEDICO MATERNIDAD SEGURA","02 ENERO DE 2020","31 ENERO DE 2020",2120000,{"$f":"H66*1","v":2120000},"WILFRAN JIMENEZ DE LA PEÑA","COORD CENTRO SALUD","CIUDADELA METROPOLITANA",69,69,"09/01/2020","https://www.contratos.gov.co/consultas/detalleProceso.do?numConstancia=20-4-10270126"]
[66,22642500,"KAREN BETZY MORALES CASTILLO ","0066 - 2020","PROMOTORA EN SALUD-DENGUE","02 ENERO DE 2020","31 ENERO DE 2020",1400000,1400000,"BETTY  LUX PERTUZ CHARRIS","SUBGERENTE CIENTIFICO",null,70,70,"09/01/2020","https://www.contratos.gov.co/consultas/detalleProceso.do?numConstancia=20-4-10270126"]
[{"$f":"+A67+1","v":67},44157462,"DAYAN MARTINEZ PACHECO","0067 - 2020","ABOGADO EXTERNO","02 ENERO DE 2020","31 ENERO DE 2020",5000000,5000000,"ORNELLA FIORENTINO ","JEFE OFICINA JURIDICA","CENTRO COSTA HERMOSA ",71,71,"09/01/2020","https://www.contratos.gov.co/consultas/detalleProceso.do?numConstancia=20-4-10270150"]
[68,1143439595,"DAYANA PAOLA OTALORA AMAYA","0068 - 2020","PAI WEB ","02 ENERO DE 2020","31 ENERO DE 2020",1400000,1400000,"NILSA ARIZA MARQUEZ","COORDINADOR P Y P","ADMON COSTA HERMOSA",72,72,"09/01/2020","https://www.contratos.gov.co/consultas/detalleProceso.do?numConstancia=20-4-10270165"]
[69,1045717077,"DAYANA PAOLA VIDAL CEPEDA","0069 - 2020","MEDICO CONSULTA EXTERNA ","02 ENERO DE 2020","31 ENERO DE 2020",{"$f":"2120000+2120000/30*18","v":3392000},3392000,"BETTY  LUX PERTUZ CHARRIS","SUBGERENTE CIENTIFICO","LA ESPERANZA",73,73,"09/01/2020","https://www.contratos.gov.co/consultas/detalleProceso.do?numConstancia=20-4-10270185"]
[70,1042436934,"DAYANA TORRES SOLANO","0070 - 2020","MEDICO DE URGENCIA","02 ENERO DE 2020","31 ENERO DE 2020",5120000,5120000,"BETTY  LUX PERTUZ CHARRIS","SUBGERENTE CIENTIFICO","CIUDADELA METROPOLITANA",74,74,"09/01/2020","https://www.contratos.gov.co/consultas/detalleProceso.do?numConstancia=20-4-10270204"]
[71,1047434688,"DAYRA ALEJANDRA COLON BLANCO ","0071 - 2020","MEDICO DE URGENCIA","02 ENERO DE 2020","31 ENERO DE 2020",2560000,2560000,"BETTY  LUX PERTUZ CHARRIS","SUBGERENTE CIENTIFICO","CENTRO DE 13 DE JUNIO ",75,75,"09/01/2020","https://www.contratos.gov.co/consultas/detalleProceso.do?numConstancia=20-4-10270226"]
[72,1042436213,"DESIRET PAOLA PINTO NARVAEZ","0072 - 2020","ENFERMERA JEFE URGENCIAS ","02 ENERO DE 2020","31 ENERO DE 2020",1900000,1900000,"BETTY  LUX PERTUZ CHARRIS","SUBGERENTE CIENTIFICO","CIUDADELA METROPOLITANA",76,76,"09/01/2020","https://www.contratos.gov.co/consultas/detalleProceso.do?numConstancia=20-4-10270271"]
[73,1046814365,"DESIRETH DEL CARMEN DE LEON ATENCIA","0073 - 2020","VACUNADORA","02 ENERO DE 2020","31 ENERO DE 2020",1400000,1400000,"NILSA ARIZA MARQUEZ","COORDINADOR P Y P","CENTRO MANUELA BELTRAN",77,77,"09/01/2020","https://www.contratos.gov.co/consultas/detalleProceso.do?numConstancia=20-4-10270295"]
[74,1082405551,"DESIRETH ESTRADA FERNANDEZ","0074 - 2020","ENFERMERA JEFE P Y P ","02 ENERO DE 2020","31 ENERO DE 2020",2300000,2300000,"NILSA ARIZA MARQUEZ","COORDINADOR P Y P","13 DE JUNIO ",78,78,"09/01/2020","https://www.contratos.gov.co/consultas/detalleProceso.do?numConstancia=20-4-10270352"]
[75,22649995,"DEYLUZ OROZCO CERA","0075  - 2020","AUXILIAR DE ARCHIVO ","02 ENERO DE 2020","31 ENERO DE 2020",1500000,1500000,"SANDRA MILENA SANMARTIN  LOPEZ","SUB GERENTE ADMINISTRATIVO","ARCHIVO CENTRAL ",79,79,"09/01/2020","https://www.contratos.gov.co/consultas/detalleProceso.do?numConstancia=20-4-10270385"]
[76,22524112,"DIANA SANDOVAL MANGA","0076 - 2020","ENFERMERA JEFE PROGRAMAS ESPECIALES","02 ENERO DE 2020","31 ENERO DE 2020",1900000,1900000,"LUIS CARLOS DE LEON BERNIER","COORD CENTRO SALUD","CENTRO MACLOVIA",80,80,"09/01/2020","https://www.contratos.gov.co/consultas/detalleProceso.do?numConstancia=20-4-10270480"]
[77,1046703551,"DIEGO ARMANDO CASTILLO CALLE","0077  - 2020","AUXILIAR DE FACTURACION URGENCIA","02 ENERO DE 2020","31 ENERO DE 2020",1400000,1400000,"SANDRA MILENA SANMARTIN  LOPEZ","SUB GERENTE ADMINISTRATIVO","CENTRO COSTA HERMOSA ",81,81,"09/01/2020","https://www.contratos.gov.co/consultas/detalleProceso.do?numConstancia=20-4-10270497"]
[78,1052949649,"DILIANA GARCIA JIMENEZ","0078 -2020","ENFERMERA JEFE URGENCIAS ","02 ENERO DE 2020","31 ENERO DE 2020",1900000,1900000,"WILFRAN JIMENEZ DE LA PEÑA","COORD CENTRO SALUD","CIUDADELA METROPOLITANA",82,82,"09/01/2020","https://www.contratos.gov.co/consultas/detalleProceso.do?numConstancia=20-4-10270525"]
[79,1042420928,"DINA DEL CARMEN  CUELLO DONADO","0079 - 2020","AUXILIAR DE FACTURACION URGENCIA","02 ENERO DE 2020","31 ENERO DE 2020",1400000,1400000,"WILFRAN JIMENEZ DE LA PEÑA","COORD CENTRO SALUD","CENTRO COSTA HERMOSA ",83,83,"09/01/2020","https://www.contratos.gov.co/consultas/detalleProceso.do?numConstancia=20-4-10270543"]
[80,32818082,"DIVINA LUZ NIETO ZAMBRANO","0080  - 2020","AUXILIAR SERVICIOS GENERALES URGENCIA","02 ENERO DE 2020","31 ENERO DE 2020",1378000,1378000,"SERGIO BOVEA MARIN","COORD CENTRO SALUD","CENTRO DE 13 DE JUNIO ",84,84,"09/01/2020","https://www.contratos.gov.co/consultas/detalleProceso.do?numConstancia=20-4-10270574"]
[81,32819600,"DOLIS PEDROZO TORRES","0081 - 2020","AUXILIAR SERVICIOS GENERALES","02 ENERO DE 2020","31 ENERO DE 2020",1215000,1215000,"LUIS GRANADOS GOMEZ","COORD CENTRO SALUD","CENTRO MANUELA BELTRAN",85,85,"09/01/2020","https://www.contratos.gov.co/consultas/detalleProceso.do?numConstancia=20-4-10270601"]
[82,1043142073,"DORALIZ ECHEVERRI PEREZ","0082 - 2020","GESTION DOCUMENTAL","02 ENERO DE 2020","31 ENERO DE 2020",1500000,1500000,"FABIAN COLPAS","JEFE TALENTO HUMANO","CENTRO COSTA HERMOSA ",86,86,"09/01/2020","https://www.contratos.gov.co/consultas/detalleProceso.do?numConstancia=20-4-10270912"]
[83,32769312,"DORIS PADILLA MOLINA ","0083 - 2020","AUXILIAR DE ODONTOLOGIA","02 ENERO DE 2020","31 ENERO DE 2020",1166000,1166000,"BETTY  LUX PERTUZ CHARRIS","SUBGERENTE CIENTIFICO","CENTRO  DE SALUD EL PARQUE",87,87,"09/01/2020","https://www.contratos.gov.co/consultas/detalleProceso.do?numConstancia=20-4-10270936"]
[84,55222167,"DREY FLOREZ TORRES","0084  - 2020","PAI WEB ","02 ENERO DE 2020","31 ENERO DE 2020",1500000,1500000,"NILSA ARIZA MARQUEZ","COORDINADOR P Y P","ARCHIVO CENTRAL ",88,88,"09/01/2020","https://www.contratos.gov.co/consultas/detalleProceso.do?numConstancia=20-4-10270957"]
[85,1143235752,"DUYARLY MARIA TOLOZA MAZO","0085  - 2020","AUXILIAR DE ENFERMERIA CONSULTA EXTERNA ","02 ENERO DE 2020","31 ENERO DE 2020",1166000,1166000,"YARELIS GUERRA CORREA","COORD CENTRO SALUD","CENTRO VILLA ESTADIO ",89,89,"09/01/2020","https://www.contratos.gov.co/consultas/detalleProceso.do?numConstancia=20-4-10270978"]
[86,8735248,"EDGAR CERVANTES MELGAREJO","0086 - 2020","MEDICO P Y P ","02 ENERO DE 2020","31 ENERO DE 2020",2120000,2120000,"WILFRAN JIMENEZ DE LA PEÑA","COORD CENTRO SALUD","CIUDADELA METROPOLITANA",90,90,"09/01/2020","https://www.contratos.gov.co/consultas/detalleProceso.do?numConstancia=20-4-10271038"]
[87,78302933,"EDIE JAIR GIL","0087 - 2020","TECNOLOGO EN RADIOLOGIA","02 ENERO DE 2020","31 ENERO DE 2020",1500000,1500000,"WILFRAN JIMENEZ DE LA PEÑA","COORD CENTRO SALUD","CIUDADELA METROPOLITANA",91,91,"09/01/2020","https://www.contratos.gov.co/consultas/detalleProceso.do?numConstancia=20-4-10271088"]
[88,1045700355,"EDUARDO LUIS PAUTH HERNANDEZ","0088 - 2020","MEDICO CONSULTA EXTERNA ","02 ENERO DE 2020","31 ENERO DE 2020",2120000,2120000,"BETTY  LUX PERTUZ CHARRIS","SUBGERENTE CIENTIFICO","EL PARQUE",92,92,"09/01/2020","https://www.contratos.gov.co/consultas/detalleProceso.do?numConstancia=20-4-10271153"]
[89,32708896,"EDUVIGES LUCILA ORTEGA VIZCAINO","0089 - 2020","AUXILIAR DE ENFERMERIA URGENCIAS","02 ENERO DE 2020","31 ENERO DE 2020",1378000,1378000,"WILFRAN JIMENEZ DE LA PEÑA","COORD CENTRO SALUD","CIUDADELA METROPOLITANA",93,93,"09/01/2020","https://www.contratos.gov.co/consultas/detalleProceso.do?numConstancia=20-4-10274012"]
[90,8734956,"EFRAIN CANTILLO GUERRERO","0090 - 2020","CONDUCTOR DE AMBULANCIA","02 ENERO DE 2020","31 ENERO DE 2020",1800000,1800000,"BETTY  LUX PERTUZ CHARRIS","SUBGERENTE CIENTIFICO","CENTRO DE 13 DE JUNIO ",94,94,"09/01/2020","https://www.contratos.gov.co/consultas/detalleProceso.do?numConstancia=20-4-10274030"]
[91,8750161,"EFRAIN DE LA HOZ ROCHEL","0091 - 2020","MEDICO DE URGENCIA","02 ENERO DE 2020","31 ENERO DE 2020",2560000,2560000,"BETTY  LUX PERTUZ CHARRIS","SUBGERENTE CIENTIFICO","CENTRO DE 13 DE JUNIO ",95,95,"09/01/2020","https://www.contratos.gov.co/consultas/detalleProceso.do?numConstancia=20-4-10274040"]
[92,1045675420,"EIBANIA MOLINA VENERA","0092 - 2020","AUXILIAR DE ENFERMERIA URGENCIAS","02 ENERO DE 2020","31 ENERO DE 2020",1378000,1378000,"WILFRAN JIMENEZ DE LA PEÑA","COORD CENTRO SALUD","CIUDADELA METROPOLITANA",96,96,"09/01/2020","https://www.contratos.gov.co/consultas/detalleProceso.do?numConstancia=20-4-10274055"]
[93,32651025,"ELEISE SINING CUJIA","0093 - 2020","GESTION DOCUMENTAL","02 ENERO DE 2020","31 ENERO DE 2020",1500000,1500000,"FABIAN COLPAS","JEFE TALENTO HUMANO","CENTRO COSTA HERMOSA ",97,97,"09/01/2020","https://www.contratos.gov.co/consultas/detalleProceso.do?numConstancia=20-4-10274079"]
[94,22570149,"ELENA BAENA PEÑA","0094 - 2020","AUXILIAR DE FACTURACION URGENCIA","02 ENERO DE 2020","31 ENERO DE 2020",1400000,1400000,"SANDRA MILENA SANMARTIN  LOPEZ","SUB GERENTE ADMINISTRATIVO","CENTRO COSTA HERMOSA ",98,98,"09/01/2020","https://www.contratos.gov.co/consultas/detalleProceso.do?numConstancia=20-4-10280707"]
[95,32772038,"ELIANA BEATRIZ ABRIL DE LA ROSA ","0095 - 2020","AUXILIAR ADMINISTRATIVO - RECURSOS HUMANOS  ","02 ENERO DE 2020","31 ENERO DE 2020",1900000,1900000,"FABIAN COLPAS","JEFE TALENTO HUMANO","CENTRO COSTA HERMOSA ",99,99,"09/01/2020","https://www.contratos.gov.co/consultas/detalleProceso.do?numConstancia=20-4-10280736"]
[96,32787164,"ELIANA CONSTANZA ARTETA HOYOS","0096 - 2020","CONTADOR","02 ENERO DE 2020","31 ENERO DE 2020",4000000,4000000,"SANDRA MILENA SANMARTIN  LOPEZ","SUB GERENTE ADMINISTRATIVO","CENTRO COSTA HERMOSA ",100,100,"09/01/2020","https://www.contratos.gov.co/consultas/detalleProceso.do?numConstancia=20-4-10280753"]
[97,8762665,"ELIECER DE JESUS CALLE QUINTERO","0097 - 2020","TECNICO ALMACEN ","02 ENERO DE 2020","31 ENERO DE 2020",1900000,1900000,"MARIA SANCHEZ AYALA","JEFE ALMACEN","ALMACEN",101,101,"09/01/2020","https://www.contratos.gov.co/consultas/detalleProceso.do?numConstancia=20-4-10280770"]
[98,8633055,"ELIECER POLO CASTRO ","0098 - 2020","ABOGADO EXTERNO","02 ENERO DE 2020","31 ENERO DE 2020",5800000,5800000,"ORNELLA FIORENTINO ","JEFE OFICINA JURIDICA","CENTRO COSTA HERMOSA ",102,102,"09/01/2020","https://www.contratos.gov.co/consultas/detalleProceso.do?numConstancia=20-4-10280783"]
[99,32871139,"ELLA VIZCAINO SENIOR","0099 - 2020","ENFERMERA JEFE ","02 ENERO DE 2020","31 ENERO DE 2020",2300000,2300000,"NILSA ARIZA MARQUEZ","COORDINADOR P Y P","CIUDADELA METROPOLITANA",103,103,"09/01/2020","https://www.contratos.gov.co/consultas/detalleProceso.do?numConstancia=20-4-10280839"]
[100,72170268,"FABIAN FERNANDO MERCADO","0100 - 2020","PAI WEB ","02 ENERO DE 2020","31 ENERO DE 2020",1270000,1270000,"NILSA ARIZA MARQUEZ","COORDINADOR P Y P","ARCHIVO CENTRAL ",104,104,"09/01/2020","https://www.contratos.gov.co/consultas/detalleProceso.do?numConstancia=20-4-10280909"]
[101,72132608,"MARCO AURELIO CASTRO CAICEDO","0101 - 2020","AUXILIAR DE FACTURACION URGENCIA","02 ENERO DE 2020","31 ENERO DE 2020",1400000,1400000,"SANDRA MILENA SANMARTIN  LOPEZ","SUB GERENTE ADMINISTRATIVO","CENTRO COSTA HERMOSA ",105,105,"09/01/2020","https://www.contratos.gov.co/consultas/detalleProceso.do?numConstancia=20-4-10280924"]
[102,1042436156,"EMELY ESCORCIA MARTINEZ","0102 - 2020","ENFERMERA JEFE URGENCIAS ","02 ENERO DE 2020","31 ENERO DE 2020",1900000,1900000,"SERGIO BOVEA MARIN","COORD CENTRO SALUD","CENTRO DE 13 DE JUNIO ",106,106,"09/01/2020","https://www.contratos.gov.co/consultas/detalleProceso.do?numConstancia=20-4-10280950"]
[103,22693401,"EMILIA ANTONIA BARCELO DE PARRA","0103 - 2020","AUXILIAR SERVICIOS GENERALES URGENCIA","02 ENERO DE 2020","31 ENERO DE 2020",1378000,1378000,"SERGIO BOVEA MARIN","COORD CENTRO SALUD","CENTRO DE 13 DE JUNIO ",107,107,"09/01/2020","https://www.contratos.gov.co/consultas/detalleProceso.do?numConstancia=20-4-10280956"]
[104,1140831753,"ENNY CAROLINA ROCHA HERNANDEZ","0104 - 2020","ABOGADO EXTERNO","02 ENERO DE 2020","31 ENERO DE 2020",5000000,5000000,"ORNELLA FIORENTINO ","JEFE OFICINA JURIDICA","CENTRO COSTA HERMOSA ",108,108,"09/01/2020","https://www.contratos.gov.co/consultas/detalleProceso.do?numConstancia=20-4-10280969"]
[105,8718276,"ENRIQUE PACHECO PACHECO ","0105 - 2020","MEDICO DE URGENCIA","02 ENERO DE 2020","31 ENERO DE 2020",2560000,2560000,"BETTY  LUX PERTUZ CHARRIS","SUBGERENTE CIENTIFICO","CENTRO DE 13 DE JUNIO ",109,109,"09/01/2020","https://www.contratos.gov.co/consultas/detalleProceso.do?numConstancia=20-4-10280964"]
[106,32866006,"ERIKA ASCENCIO MARQUEZ","0106 - 2020","AUXILIAR ADMINISTRATIVO -CONTRATACION","02 ENERO DE 2020","31 ENERO DE 2020",3500000,3500000,"ORNELLA FIORENTINO ","JEFE OFICINA JURIDICA","CENTRO COSTA HERMOSA ",110,110,"09/01/2020","https://www.contratos.gov.co/consultas/detalleProceso.do?numConstancia=20-4-10280967"]
[107,1143147791,"ERNESTO JUNIOR ROJANO MEZA","0107 - 2020","TECNOLOGO EN RADIOLOGIA","02 ENERO DE 2020","31 ENERO DE 2020",1500000,1500000,"WILFRAN JIMENEZ DE LA PEÑA","COORD CENTRO SALUD","CIUDADELA METROPOLITANA",111,111,"09/01/2020","https://www.contratos.gov.co/consultas/detalleProceso.do?numConstancia=20-4-10280968"]
[108,1052970236,"ESKARLY MARIA ACOSTA ALVARADO ","0108 - 2020","PSICOLOGO  ","02 ENERO DE 2020","31 ENERO DE 2020",4000000,4000000,"FABIAN COLPAS","JEFE TALENTO HUMANO","CENTRO COSTA HERMOSA ",112,112,"09/01/2020","https://www.contratos.gov.co/consultas/detalleProceso.do?numConstancia=20-4-10281019"]
[109,22467133,"ESMERALDA COTE BORNACELY ","0109 - 2020","VACUNADORA","02 ENERO DE 2020","31 ENERO DE 2020",1400000,1400000,"NILSA ARIZA MARQUEZ","COORDINADOR P Y P","CENTRO MANUELA BELTRAN",113,113,"09/01/2020","https://www.contratos.gov.co/consultas/detalleProceso.do?numConstancia=20-4-10281014"]
[110,22732766,"ESMIRIS MARIA JIMENEZ GOMEZ","0110 - 2020","AUXILIAR SERVICIOS GENERALES","02 ENERO DE 2020","31 ENERO DE 2020",1215000,1215000,"YARELIS GUERRA CORREA","COORD CENTRO SALUD","CENTRO COSTA HERMOSA ",114,114,"09/01/2020","https://www.contratos.gov.co/consultas/detalleProceso.do?numConstancia=20-4-10281016"]
[111,32821813,"ESPERANZA OROZCO MORENO","0111 - 2020","AUXILIAR DE ENFERMERIA URGENCIAS","02 ENERO DE 2020","31 ENERO DE 2020",1378000,1378000,"SERGIO BOVEA MARIN","COORD CENTRO SALUD","CENTRO DE 13 DE JUNIO ",115,115,"09/01/2020","https://www.contratos.gov.co/consultas/detalleProceso.do?numConstancia=20-4-10281017"]
[112,44157204,"ESTHER CECILIA SOLANO BARROS","0112 - 2020","MEDICO DE URGENCIA","02 ENERO DE 2020","31 ENERO DE 2020",2560000,2560000,"BETTY  LUX PERTUZ CHARRIS","SUBGERENTE CIENTIFICO","CIUDADELA METROPOLITANA",116,116,"09/01/2020","https://www.contratos.gov.co/consultas/detalleProceso.do?numConstancia=20-4-10281018"]
[113,44150678,"EUCARIS DEL CARMEN RAMBAO NIEBLES","0113 - 2020","MEDICO CONSULTA EXTERNA ","02 ENERO DE 2020","31 ENERO DE 2020",2120000,2120000,"BETTY  LUX PERTUZ CHARRIS","SUBGERENTE CIENTIFICO","CENTRO EL PARQUE",117,117,"09/01/2020","https://www.contratos.gov.co/consultas/detalleProceso.do?numConstancia=20-4-10281075"]
[114,60311278,"EVA FLOREZ PARRA ","0114 - 2020","MÉDICO CONSULTA EXTERNA Y APOYO A LA COORDINACIÓN MÉDICA","02 ENERO DE 2020","31 ENERO DE 2020",4640000,4640000,"BETTY  LUX PERTUZ CHARRIS","SUBGERENTE CIENTIFICO","la esperanza",118,118,"09/01/2020","https://www.contratos.gov.co/consultas/detalleProceso.do?numConstancia"]
[115,32583911,"EVA ISABEL ROSALES NAVARRO","0115 - 2020","ASESOR GERENCIA","02 ENERO DE 2020","31 ENERO DE 2020",5500000,5500000,"ROSA MADERA","GERENTE ","CENTRO COSTA HERMOSA ",119,119,"09/01/2020","https://www.contratos.gov.co/consultas/detalleProceso.do?numConstancia=20-4-10281077"]
[116,1074712390,"EVELIN CRISTINA ZULETA SANCHEZ ","0116 - 2020","ENFERMERA JEFE P Y P","02 ENERO DE 2020","31 ENERO DE 2020",2300000,2300000,"NILSA ARIZA MARQUEZ","COORDINADOR P Y P","MANUELA BELTRAN",120,120,"09/01/2020","https://www.contratos.gov.co/consultas/detalleProceso.do?numConstancia=20-4-10281078"]
[117,45496113,"BEATRIZ HELENA JIMENO CARDENAS","0117 - 2020","AUXILIAR DE ARCHIVO ","02 ENERO DE 2020","31 ENERO DE 2020",1500000,1500000,"SANDRA MILENA SANMARTIN  LOPEZ","SUB GERENTE ADMINISTRATIVO","CENTRO MANUELA BELTRAN",121,121,"09/01/2020","https://www.contratos.gov.co/consultas/detalleProceso.do?numConstancia=20-4-10281174"]
[118,1129516135,"EYLEEN GUTIERREZ BARRERA ","0118 - 2020","MEDICO CONSULTA EXTERNA ","02 ENERO DE 2020","31 ENERO DE 2020",2120000,2120000,"CARLOS VISBAL JIMENEZ","COORD CENTRO SALUD","CENTRO COSTA HERMOSA ",122,122,"09/01/2020","https://www.contratos.gov.co/consultas/detalleProceso.do?numConstancia=20-4-10281080"]
[119,72270286,"FABIAN ENRIQUE CASTELLANOS GARCIA","0119 - 2020","PROFESIONAL DE PRESUPUESTO ","02 ENERO DE 2020","31 ENERO DE 2020",4500000,4500000,"ALFONSO NICOLAS OQUENDO ","DIRECTOR FINANCIERO","CENTRO COSTA HERMOSA ",123,123,"09/01/2020","https://www.contratos.gov.co/consultas/detalleProceso.do?numConstancia=20-4-10281081"]
[120,8705578,"FERMIN NAVARRO STEFANELL","0120 - 2020","GINECOLOGO","02 ENERO DE 2020","31 ENERO DE 2020",7500000,7500000,"NILSA ARIZA MARQUEZ","COORDINADOR P Y P","13 DE JUNIO Y CIUDADELA",124,124,"09/01/2020","https://www.contratos.gov.co/consultas/detalleProceso.do?numConstancia=20-4-10281082"]
[121,1129520650,"FERNANDO LUIS CERA DIAZ","0121 - 2020","MEDICO DE URGENCIA","02 ENERO DE 2020","31 ENERO DE 2020",2560000,2560000,"WILFRAN JIMENEZ DE LA PEÑA","COORD CENTRO SALUD","CIUDADELA METROPOLITANA",125,125,"09/01/2020","https://www.contratos.gov.co/consultas/detalleProceso.do?numConstancia=20-4-10281189"]
[122,44159527,"FLORINDA DE LA HOZ PACHECO ","0122 - 2020","ENFERMERA JEFE P Y P","02 ENERO DE 2020","31 ENERO DE 2020",2300000,2300000,"NILSA ARIZA MARQUEZ","COORDINADOR P Y P","VILLA ESTADIO",126,126,"09/01/2020","https://www.contratos.gov.co/consultas/detalleProceso.do?numConstancia=20-4-10281178"]
[123,8507198,"FRANCISCO PEÑALOZA PEREZ","0123 - 2020","MEDICO CONSULTA EXTERNA ","02 ENERO DE 2020","31 ENERO DE 2020",2120000,2120000,"BETTY  LUX PERTUZ CHARRIS","SUBGERENTE CIENTIFICO","CENTRO EL PARQUE",127,127,"09/01/2020","https://www.contratos.gov.co/consultas/detalleProceso.do?numConstancia=20-4-10281179"]
[124,1042449540,"FREDDY JESUS MAESTRE FERNANDEZ","0124 - 2020","AUXILIAR DE FACTURACION URGENCIA","02 ENERO DE 2020","31 ENERO DE 2020",1400000,1400000,"LUIS GRANADOS GOMEZ","COORD CENTRO SALUD","UNIDAD AMIGABLE MANUELA BELTRAN",128,128,"09/01/2020","https://www.contratos.gov.co/consultas/detalleProceso.do?numConstancia=20-4-10281180"]
[125,9132998,"GABRIEL ARIAS RAMIREZ","0125 - 2020","QUIMICO FARMACEUTICO","02 ENERO DE 2020","31 ENERO DE 2020",3000000,3000000,"BETTY  LUX PERTUZ CHARRIS","SUBGERENTE CIENTIFICO","ADMON -FARMACIA",129,129,"09/01/2020","https://www.contratos.gov.co/consultas/detalleProceso.do?numConstancia=20-4-10281184"]
[126,32756610,"GENNY GUZMAN NAVARRO","0126 - 2020","MEDICO DE URGENCIA","02 ENERO DE 2020","31 ENERO DE 2020",2560000,2560000,"BETTY  LUX PERTUZ CHARRIS","SUBGERENTE CIENTIFICO","CIUDADELA METROPOLITANA",130,130,"09/01/2020","https://www.contratos.gov.co/consultas/detalleProceso.do?numConstancia=20-4-10281185"]
[127,1140858071,"MARIA LUISA FERNANDA ARAGON NIGRINI","0127 - 2020","ABOGADO EXTERNO","02 ENERO DE 2020","31 ENERO DE 2020",5800000,5800000,"ORNELLA FIORENTINO","JEFE OFICINA JURIDICA","CENTRO COSTA HERMOSA ",131,131,"09/01/2020","https://www.contratos.gov.co/consultas/detalleProceso.do?numConstancia=20-4-10281186"]
[128,1042448518,"GIANINA ANDREA GRAVINI DE LA HOZ","0128 - 2020","MEDICO DE URGENCIA","02 ENERO DE 2020","31 ENERO DE 2020",2560000,2560000,"BETTY  LUX PERTUZ CHARRIS","SUBGERENTE CIENTIFICO","CENTRO DE 13 DE JUNIO ",132,132,"09/01/2020","https://www.contratos.gov.co/consultas/detalleProceso.do?numConstancia=20-4-10281187"]
[129,1143442107,"GIANNINA HERNANDEZ CONTRERAS","0129 - 2020","AUXILIAR DE ODONTOLOGIA","02 ENERO DE 2020","31 ENERO DE 2020",1166000,{"$f":"H130*1","v":1166000},"WILFRAN JIMENEZ DE LA PEÑA","COORD CENTRO SALUD","CIUDADELA METROPOLITANA",133,133,"09/01/2020","https://www.contratos.gov.co/consultas/detalleProceso.do?numConstancia=20-4-10281256"]
[130,1043133060,"GINNA AGUILAR ANDRADE","0130 - 2020","AUXILIAR DE ENFERMERIA URGENCIAS","02 ENERO DE 2020","31 ENERO DE 2020",1378000,1378000,"SERGIO BOVEA MARIN","COORD CENTRO SALUD","CENTRO DE 13 DE JUNIO ",134,134,"09/01/2020","https://www.contratos.gov.co/consultas/detalleProceso.do?numConstancia=20-4-10281283"]
[{"$f":"+A131+1","v":131},1042448135,"GISELLA CAMILA ACOSTA SEGURA","0131 - 2020","SERVICIOS AMIGABLES ","02 ENERO DE 2020","31 ENERO DE 2020",1500000,1500000,"LUIS GRANADOS GOMEZ","COORD CENTRO SALUD","CENTRO MANUELA BELTRAN",135,135,"09/01/2020","https://www.contratos.gov.co/consultas/detalleProceso.do?numConstancia=20-4-10281288"]
[132,44156926,"GLADYS CECILIA ESCALANTE FERRER","0132 - 2020","ODONTOLOGO","02 ENERO DE 2020","31 ENERO DE 2020",1900000,1900000,"DIANA MARTINEZ PACHECO","COORD CENTRO DE SALUD","CENTRO SALAMANCA",136,136,"09/01/2020","https://www.contratos.gov.co/consultas/detalleProceso.do?numConstancia=20-4-10281298"]
[133,49555306,"GLADYS DIAZ MARIN","0133 - 2020","AUXILIAR DE FACTURACION URGENCIA","02 ENERO DE 2020","31 ENERO DE 2020",1400000,1400000,"SANDRA MILENA SANMARTIN  LOPEZ","SUB GERENTE ADMINISTRATIVO","CENTRO COSTA HERMOSA ",137,137,"09/01/2020","https://www.contratos.gov.co/consultas/detalleProceso.do?numConstancia=20-4-10281307"]
[134,1129513283,"KARINE MILENA LEONES MARQUEZ","0134 - 2020","AUXILIAR DE FARMACIA ","02 ENERO DE 2020","31 ENERO DE 2020",1905000,1905000,"BETTY  LUX PERTUZ CHARRIS","SUBGERENTE CIENTIFICO","CIUDADELA METROPOLITANA",138,138,"09/01/2020","https://www.contratos.gov.co/consultas/detalleProceso.do?numConstancia=20-4-10281316"]
[135,24341220,"GLADYS OTALVARO BOTERO","0135 - 2020","AGENTE CALL CENTER","02 ENERO DE 2020","31 ENERO DE 2020",1378000,1378000,"BETTY  LUX PERTUZ CHARRIS","SUBGERENTE CIENTIFICO","COLL-CENTER- CIUDADELA METROPOLITANA",139,139,"09/01/2020","https://www.contratos.gov.co/consultas/detalleProceso.do?numConstancia=20-4-10281320"]
[136,22644596,"GRACIELA BUSTOS RIVEROS","0136 - 2020","AUXILIAR ADMINISTRATIVO DE FACTURACIÒN","02 ENERO DE 2020","31 ENERO DE 2020",1600000,1600000,"SANDRA MILENA SANMARTIN  LOPEZ","SUB GERENTE ADMINISTRATIVO","CENTRO COSTA HERMOSA ",140,140,"09/01/2020","https://www.contratos.gov.co/consultas/detalleProceso.do?numConstancia=20-4-10281327"]
[137,72203756,"GUILLERMO DE JESUS MEDINA VASQUEZ ","0137 - 2020","AUXILIAR DE FACTURACION","02 ENERO DE 2020","31 ENERO DE 2020",1500000,1500000,"SANDRA MILENA SANMARTIN  LOPEZ","SUB GERENTE ADMINISTRATIVO","CENTRO COSTA HERMOSA ",141,141,"09/01/2020","https://www.contratos.gov.co/consultas/detalleProceso.do?numConstancia=20-4-10281335"]
[138,30568187,"HAIDE MEJIA PRADO","0138 - 2020","AUXILIAR SERVICIOS GENERALES URGENCIA","02 ENERO DE 2020","31 ENERO DE 2020",1378000,1378000,"WILFRAN JIMENEZ DE LA PEÑA","COORD CENTRO SALUD","CIUDADELA METROPOLITANA",142,142,"09/01/2020","https://www.contratos.gov.co/consultas/detalleProceso.do?numConstancia=20-4-10281348"]
[139,8767993,"HAROLD MANUEL CABARCAS GONZALEZ","0139 - 2020","VACUNADORA","02 ENERO DE 2020","31 ENERO DE 2020",1400000,1400000,"NILSA ARIZA MARQUEZ","COORDINADOR P Y P","CENTRO MANUELA BELTRAN",143,143,"09/01/2020","https://www.contratos.gov.co/consultas/detalleProceso.do?numConstancia=20-4-10281357"]
[140,44154490,"HEIDY LUZ CARRILLO DIAZ","0140 - 2020","PAI WEB ","02 ENERO DE 2020","31 ENERO DE 2020",1900000,1900000,"NILSA ARIZA MARQUEZ","COORDINADOR P Y P","ADMON COSTA HERMOSA",144,144,"09/01/2020","https://www.contratos.gov.co/consultas/detalleProceso.do?numConstancia=20-4-10281371"]
[141,1042440903,"HEIDY MARTINEZ GUTIERREZ","0141 - 2020","AUXILIAR DE FACTURACION URGENCIA","02 ENERO DE 2020","31 ENERO DE 2020",1400000,1400000,"SANDRA MILENA SANMARTIN  LOPEZ","SUB GERENTE ADMINISTRATIVO","CENTRO COSTA HERMOSA ",145,145,"09/01/2020","https://www.contratos.gov.co/consultas/detalleProceso.do?numConstancia=20-4-10281382"]
[142,32872397,"MONICA PATRICIA DOVALE GALLEGO","0142 - 2020","COORDINADOR SEGURIDAD Y SALUD TRABAJO","02 ENERO DE 2020","31 ENERO DE 2020",5800000,5800000,"FABIAN COLPAS","JEFE TALENTO HUMANO","ADMON COSTA HERMOSA",146,146,"09/01/2020","https://www.contratos.gov.co/consultas/detalleProceso.do?numConstancia=20-4-10281391"]
[143,1143466577,"HOLLMAN DE JESUS ARENAS VERGARA","0143 - 2020","ORIENTADOR","02 ENERO DE 2020","31 ENERO DE 2020",1270000,1270000,"SERGIO BOVEA MARIN","COORD CENTRO SALUD","CENTRO DE 13 DE JUNIO ",147,147,"09/01/2020","https://www.contratos.gov.co/consultas/detalleProceso.do?numConstancia=20-4-10281398"]
[144,33005079,"IDALMIS NAVARRO ARROYO","0144 - 2020","AUXILIAR SERVICIOS GENERALES URGENCIA","02 ENERO DE 2020","31 ENERO DE 2020",1378000,1378000,"WILFRAN JIMENEZ DE LA PEÑA","COORD CENTRO SALUD","CIUDADELA METROPOLITANA",148,148,"09/01/2020","https://www.contratos.gov.co/consultas/detalleProceso.do?numConstancia=20-4-10281408"]
[145,32861543,"INGRID NAVARRO CARRILLO","0145 - 2020","FISIOTERAPEUTA ","02 ENERO DE 2020","31 ENERO DE 2020",2100000,2100000,"SERGIO BOVEA MARIN","COORD CENTRO SALUD","CENTRO DE 13 DE JUNIO ",149,149,"09/01/2020","https://www.contratos.gov.co/consultas/detalleProceso.do?numConstancia=20-4-10281426"]
[146,32822389,"ISABEL DE ALBA RODRIGUEZ","0146 - 2020","AUXILIAR DE FACTURACION","02 ENERO DE 2020","31 ENERO DE 2020",1300000,1300000,"SANDRA MILENA SANMARTIN  LOPEZ","SUB GERENTE ADMINISTRATIVO","CENTRO COSTA HERMOSA ",150,150,"09/01/2020","https://www.contratos.gov.co/consultas/detalleProceso.do?numConstancia=20-4-10281457"]
[147,32619158,"ISABEL HERRERA PACHECO","0147 - 2020","VACUNADORA- CUARTO FRIO","02 ENERO DE 2020","31 ENERO DE 2020",1600000,1600000,"NILSA ARIZA MARQUEZ","COORDINADOR P Y P","CENTRO DE 13 DE JUNIO ",151,151,"09/01/2020","https://www.contratos.gov.co/consultas/detalleProceso.do?numConstancia=20-4-10281466"]
[148,32816898,"ISABEL OSORIO BARRIOS","0148 - 2020","VACUNADORA","02 ENERO DE 2020","31 ENERO DE 2020",1400000,1400000,"NILSA ARIZA MARQUEZ","COORDINADOR P Y P","CENTRO MANUELA BELTRAN",152,152,"09/01/2020","https://www.contratos.gov.co/consultas/detalleProceso.do?numConstancia=20-4-10281475"]
[149,1042447104,"IVOR ANDRES SANJUAN PEREZ","0149 - 2020","AUXILIAR RECURSOS FISICOS ","02 ENERO DE 2020","31 ENERO DE 2020",1900000,1900000,"SANDRA MILENA SANMARTIN  LOPEZ","SUB GERENTE ADMINISTRATIVO","CENTRO COSTA HERMOSA ",153,153,"09/01/2020","https://www.contratos.gov.co/consultas/detalleProceso.do?numConstancia=20-4-10281482"]
[150,8704436,"JESUS DANIEL GUTIERREZ JIMENEZ","0150 - 2020","AUDITOR MEDICO DE DTPE - RECUPERACION DE LA SALUD","02 ENERO DE 2020","31 ENERO DE 2020",3000000,3000000,"BETTY  LUX PERTUZ CHARRIS",null,null,154,154,"09/01/2020","https://www.contratos.gov.co/consultas/detalleProceso.do?numConstancia=20-4-10281495"]
[151,72429926,"JAIRO ESCOBAR ROMERO","0151- 2020","MEDICO DE URGENCIA","02 ENERO DE 2020","31 ENERO DE 2020",2560000,2560000,"BETTY  LUX PERTUZ CHARRIS","SUBGERENTE CIENTIFICO","CENTRO DE 13 DE JUNIO ",155,155,"09/01/2020","https://www.contratos.gov.co/consultas/detalleProceso.do?numConstancia=20-4-10281571"]
[152,32703101,"JANETH DEL CARMEN GUZMAN CANTILLO","0152- 2020","COORDINADOR DE FACTURACION","02 ENERO DE 2020","31 ENERO DE 2020",1600000,1600000,"YARELIS GUERRA CORREA","COORD CENTRO SALUD","CENTRO VILLA ESTADIO ",156,156,"09/01/2020","https://www.contratos.gov.co/consultas/detalleProceso.do?numConstancia=20-4-10281561"]
[153,26900583,"JANETH JIMENEZ PEÑA","0153- 2020","TRABAJADORA SOCIAL ","02 ENERO DE 2020","31 ENERO DE 2020",2500000,2500000,"CARLOS VISBAL JIMENEZ","COORD CENTRO SALUD","CENTRO COSTA HERMOSA ",157,157,"09/01/2020","https://www.contratos.gov.co/consultas/detalleProceso.do?numConstancia=20-4-10281562"]
[154,72072808,"JARID BERDUGO COBO ","0154- 2020","REFERENCIA Y CONTRAREFERENCIA","02 ENERO DE 2020","31 ENERO DE 2020",1480000,1480000,"WILFRAN JIMENEZ DE LA PEÑA","COORD CENTRO SALUD","CENTRO COSTA HERMOSA ",158,158,"09/01/2020","https://www.contratos.gov.co/consultas/detalleProceso.do?numConstancia=20-4-10281563"]
[155,8566485,"JAVIER VLADIMIR CASTRO POVEA","0155- 2020","ABOGADO - TALENTO HUMANO","02 ENERO DE 2020","31 ENERO DE 2020",5800000,5800000,"FABIAN COLPAS","JEFE TALENTO HUMANO","CENTRO COSTA HERMOSA ",159,159,"09/01/2020","https://www.contratos.gov.co/consultas/detalleProceso.do?numConstancia=20-4-10281564"]
[156,1143453456,"JEAN DAVID MONTALVO ZULETA","0156- 2020","AGENTE CALL CENTER","02 ENERO DE 2020","31 ENERO DE 2020",1378000,1378000,"BETTY  LUX PERTUZ CHARRIS","SUBGERENTE CIENTIFICO","COLL-CENTER- CIUDADELA METROPOLITANA",160,160,"09/01/2020","https://www.contratos.gov.co/consultas/detalleProceso.do?numConstancia=20-4-10281566"]
[157,32869709,"JENECIS BARRERA MIRANDA","0157- 2020","ENFERMERA MATERNIDAD SEGURA ","02 ENERO DE 2020","31 ENERO DE 2020",2300000,2300000,"NILSA ARIZA MARQUEZ","COORDINADOR P Y P","13  DE JUNIO ",161,161,"09/01/2020","https://www.contratos.gov.co/consultas/detalleProceso.do?numConstancia=20-4-10281567"]
[158,8763571,"HENRY ALFREDO PERTUZ GALVAN","0158- 2020","ORIENTADOR","02 ENERO DE 2020","31 ENERO DE 2020",1500000,1500000,"YARELIS GUERRA CORREA","COORD CENTRO SALUD","CENTRO VILLA ESTADIO ",162,162,"09/01/2020","https://www.contratos.gov.co/consultas/detalleProceso.do?numConstancia=20-4-10281568"]
[159,1042444925,"JESUS MORENO DE ALBA","0159- 2020","AUXILIAR DE FACTURACION URGENCIA","02 ENERO DE 2020","31 ENERO DE 2020",1400000,1400000,"SERGIO BOVEA MARIN","COORD CENTRO SALUD","CENTRO DE 13 DE JUNIO ",163,163,"09/01/2020","https://www.contratos.gov.co/consultas/detalleProceso.do?numConstancia=20-4-10281569"]
[160,8740611,"JESUS RECUERO LAMADRID","0160- 2020","ORIENTADOR","02 ENERO DE 2020","31 ENERO DE 2020",1270000,1270000,"WILFRAN JIMENEZ DE LA PEÑA","COORD CENTRO SALUD","CIUDADELA METROPOLITANA",164,164,"09/01/2020","https://www.contratos.gov.co/consultas/detalleProceso.do?numConstancia=20-4-10281570"]
[161,44161544,"JHOANA CATALINA SANDOVAL ESCORCIA","0161- 2020","ENFERMERA JEFE URGENCIAS ","02 ENERO DE 2020","31 ENERO DE 2020",1900000,1900000,"SERGIO BOVEA MARIN","COORD CENTRO SALUD","CENTRO DE 13 DE JUNIO ",165,165,"09/01/2020","https://www.contratos.gov.co/consultas/detalleProceso.do?numConstancia=20-4-10281770"]
[162,1042444832,"JHONNATAN ALFONSO DE LA HOZ BARRIOS","0162- 2020","MEDICO CONSULTA EXTERNA ","02 ENERO DE 2020","31 ENERO DE 2020",4240000,4240000,"BETTY  LUX PERTUZ CHARRIS","SUBGERENTE CIENTIFICO","CIUDADELA METROPOLITANA",166,166,"09/01/2020","https://www.contratos.gov.co/consultas/detalleProceso.do?numConstancia=20-4-10281777"]
[163,72292086,"JOHN JEREMY PERCYBROOKS BOLIVAR","0163- 2020","INGENIERO DE SISTEMAS","02 ENERO DE 2020","31 ENERO DE 2020",3000000,3000000,"NILSA ARIZA MARQUEZ","COORDINADOR P Y P","ADMON COSTA HERMOSA",167,167,"09/01/2020","https://www.contratos.gov.co/consultas/detalleProceso.do?numConstancia=20-4-10281792"]
[164,1045706679,"JONATHAN ACOSTA MORENO","0164- 2020","MEDICO DE URGENCIA","02 ENERO DE 2020","31 ENERO DE 2020",2560000,2560000,"BETTY  LUX PERTUZ CHARRIS","SUBGERENTE CIENTIFICO","CIUDADELA METROPOLITANA",168,168,"09/01/2020","https://www.contratos.gov.co/consultas/detalleProceso.do?numConstancia=20-4-10282011"]
[165,32695840,"MARIA HERRERA CUADROS","0165- 2020","HIGIENISTA ORAL","02 ENERO DE 2020","31 ENERO DE 2020",2332000,2332000,"LUIS GRANADOS GOMEZ","COORD CENTRO SALUD","CENTRO MANUELA BELTRAN",169,169,"09/01/2020","https://www.contratos.gov.co/consultas/detalleProceso.do?numConstancia=20-4-10293459"]
[166,8754502,"JORGE DE LA HOZ DE LA HOZ","0166- 2020","ORIENTADOR","02 ENERO DE 2020","31 ENERO DE 2020",1270000,1270000,"DIANA MARTINEZ PACHECO","COORD CENTRO DE SALUD","CENTRO SALAMANCA",170,170,"09/01/2020","https://www.contratos.gov.co/consultas/detalleProceso.do?numConstancia=20-4-10282025"]
[167,8776312,"JORGE RIVERA MEZA","0167- 2020","AUXILIAR RECURSOS FISICOS ","02 ENERO DE 2020","31 ENERO DE 2020",1900000,1900000,"SANDRA MILENA SANMARTIN  LOPEZ","SUB GERENTE ADMINISTRATIVO","CENTRO COSTA HERMOSA ",171,171,"09/01/2020","https://www.contratos.gov.co/consultas/detalleProceso.do?numConstancia=20-4-10282028"]
[168,8704073,"JOSE ALFREDO JIMENEZ CASTRO","0168- 2020","ORIENTADOR","02 ENERO DE 2020","31 ENERO DE 2020",1270000,1270000,"BETTY  LUX PERTUZ CHARRIS","SUBGERENTE CIENTIFICO","CENTRO EL PARQUE",172,172,"09/01/2020","https://www.contratos.gov.co/consultas/detalleProceso.do?numConstancia=20-4-10282033"]
[169,1140855812,"JOSE DAVID NOGUERA SOTO","0169- 2020","GESTIÓN DOCUMENTAL CONTRATACIÓN","02 ENERO DE 2020","31 ENERO DE 2020",2300000,2300000,"ORNELLA FIORENTINO","JEFE OFICINA JURIDICA","ADMON COSTA HERMOSA",173,173,"09/01/2020","https://www.contratos.gov.co/consultas/detalleProceso.do?numConstancia=20-4-10282037"]
[170,8532785,"JOSE GUERRERO ORTIZ","0170- 2020","AGENTE CALL CENTER","02 ENERO DE 2020","31 ENERO DE 2020",1378000,1378000,"BETTY  LUX PERTUZ CHARRIS","SUBGERENTE CIENTIFICO","COLL-CENTER- CIUDADELA METROPOLITANA",174,174,"09/01/2020","https://www.contratos.gov.co/consultas/detalleProceso.do?numConstancia=20-4-10282038"]
[171,72434909,"JOSE IGNACIO DE ALBA MARTINEZ","0171- 2020","AUXILIAR DE ARCHIVO","02 ENERO DE 2020","31 ENERO DE 2020",1500000,1500000,"SANDRA MILENA SANMARTIN  LOPEZ","SUB GERENTE ADMINISTRATIVO","ARCHIVO CENTRAL ",175,175,"09/01/2020","https://www.contratos.gov.co/consultas/detalleProceso.do?numConstancia=20-4-10282044"]
[172,72271514,"JOSE LUIS FLOREZ DIAZ","0172- 2020","AUXILIAR ADMINISTRATIVO VENTANILLA","02 ENERO DE 2020","31 ENERO DE 2020",1900000,1900000,"SANDRA MILENA SANMARTIN  LOPEZ","SUB GERENTE ADMINISTRATIVO","COSTA HERMOSA",176,176,"09/01/2020","https://www.contratos.gov.co/consultas/detalleProceso.do?numConstancia=20-4-10282045"]
[173,9143862,"JOSE LUIS LEAL CORREA","0173- 2020","AUXILIAR DE FARMACIA ","02 ENERO DE 2020","31 ENERO DE 2020",1270000,1270000,"BETTY  LUX PERTUZ CHARRIS","SUBGERENTE CIENTIFICO","FARMACIA COSTA HERMOSA",177,177,"09/01/2020","https://www.contratos.gov.co/consultas/detalleProceso.do?numConstancia=20-4-10282046"]
[174,72202548,"WILBER CASTRO RIOS","0174- 2020","MENSAJERO ","02 ENERO DE 2020","31 ENERO DE 2020",2000000,2000000,"ORNELLA FIORENTINO","JEFE DE JURIDICA","ADMON  COSTA HERMOSA",178,178,"09/01/2020","https://www.contratos.gov.co/consultas/detalleProceso.do?numConstancia=20-4-10282059"]
[175,72165796,"JOSE SALVADOR FERNANDEZ RODELO","0175- 2020","ORIENTADOR","02 ENERO DE 2020","31 ENERO DE 2020",1270000,1270000,"WILFRAN JIMENEZ DE LA PEÑA","COORD CENTRO SALUD","CIUDADELA METROPOLITANA",179,179,"09/01/2020","https://www.contratos.gov.co/consultas/detalleProceso.do?numConstancia=20-4-10282065"]
[176,32810582,"JOSEFINA CARO VITOLA","0176- 2020","AUXILIAR DE ENFERMERIA URGENCIAS","02 ENERO DE 2020","31 ENERO DE 2020",1378000,1378000,"SERGIO BOVEA MARIN","COORD CENTRO SALUD","CENTRO DE 13 DE JUNIO ",180,180,"09/01/2020","https://www.contratos.gov.co/consultas/detalleProceso.do?numConstancia=20-4-10282071"]
[177,1042442139,"JOSHIKY ESTHER AHUMADA PACHECO","0177- 2020","ENFERMERA JEFE CONSULTA EXTERNA ","02 ENERO DE 2020","31 ENERO DE 2020",2300000,2300000,"NILSA ARIZA MARQUEZ","COORDINADOR P Y P","MANUELA BELTRAN",181,181,"09/01/2020","https://www.contratos.gov.co/consultas/detalleProceso.do?numConstancia=20-4-10282089"]
[178,72242552,"JUAN CAMILO CASTILLO ARIZA","0178- 2020","MEDICO CONSULTA EXTERNA ","02 ENERO DE 2020","31 ENERO DE 2020",2120000,2120000,"CARLOS VISBAL JIMENEZ","COORD CENTRO SALUD","CENTRO COSTA HERMOSA ",182,182,"09/01/2020","https://www.contratos.gov.co/consultas/detalleProceso.do?numConstancia=20-4-10282110"]
[179,72095954,"JUAN CARLOS BARROS CARO","0179- 2020","ASESOR GERENCIA","02 ENERO DE 2020","31 ENERO DE 2020",4500000,4500000,"ROSA MADERA","GERENTE ","CENTRO COSTA HERMOSA ",183,183,"09/01/2020","https://www.contratos.gov.co/consultas/detalleProceso.do?numConstancia=20-4-10282130"]
[180,72278234,"JUAN GABRIEL FRANCO PRENT","0180- 2020","COORDINADOR DE FACTURACION","02 ENERO DE 2020","31 ENERO DE 2020",4375000,4375000,"SANDRA MILENA SANMARTIN  LOPEZ","SUB GERENTE ADMINISTRATIVO","CENTRO COSTA HERMOSA ",184,184,"09/01/2020","https://www.contratos.gov.co/consultas/detalleProceso.do?numConstancia=20-4-10282135"]
[181,72159018,"JUAN PERALTA QUINTERO","0181- 2020","COORDINADOR AMBIENTAL","02 ENERO DE 2020","31 ENERO DE 2020",4000000,4000000,"SANDRA MILENA SANMARTIN  LOPEZ","SUB GERENTE ADMINISTRATIVO","CENTRO COSTA HERMOSA ",185,185,"09/01/2020","https://www.contratos.gov.co/consultas/detalleProceso.do?numConstancia=20-4-10282141"]
[182,8667553,"JUAN SANDOVAL BOLIVAR","0182- 2020","ODONTOLOGO","02 ENERO DE 2020","31 ENERO DE 2020",1900000,1900000,"SERGIO BOVEA MARIN","COORD CENTRO SALUD","CENTRO DE 13 DE JUNIO ",186,186,"09/01/2020","https://www.contratos.gov.co/consultas/detalleProceso.do?numConstancia=20-4-10282149"]
[183,32771594,"JUANA DIAZ CARABALLO","0183- 2020","AUXILIAR DE ENFERMERIA URGENCIAS","02 ENERO DE 2020","31 ENERO DE 2020",1378000,1378000,"SERGIO BOVEA MARIN","COORD CENTRO SALUD","CENTRO DE 13 DE JUNIO ",187,187,"09/01/2020","https://www.contratos.gov.co/consultas/detalleProceso.do?numConstancia=20-4-10282157"]
[184,26853643,"JUDITH CHARRIS MACHADO ","0184- 2020","ENFERMERA JEFE URGENCIAS ","02 ENERO DE 2020","31 ENERO DE 2020",1900000,1900000,"WILFRAN JIMENEZ DE LA PEÑA","COORD CENTRO SALUD","CIUDADELA METROPOLITANA",188,188,"09/01/2020","https://www.contratos.gov.co/consultas/detalleProceso.do?numConstancia=20-4-10282166"]
[185,32814077,"JUDITH TORRES CASTILLO","0185- 2020","COORDINADOR DE FACTURACION","02 ENERO DE 2020","31 ENERO DE 2020",1600000,1600000,"BETTY  LUX PERTUZ CHARRIS","SUBGERENTE CIENTIFICO","CENTRO EL PARQUE",189,189,"09/01/2020","https://www.contratos.gov.co/consultas/detalleProceso.do?numConstancia=20-4-10282181"]
[186,32712489,"JULIA ESTELLA RIVERA TREJOS","0186- 2020","MEDICO DE URGENCIA","02 ENERO DE 2020","31 ENERO DE 2020",2560000,2560000,"BETTY  LUX PERTUZ CHARRIS","SUBGERENTE CIENTIFICO","CIUDADELA METROPOLITANA",190,190,"09/01/2020","https://www.contratos.gov.co/consultas/detalleProceso.do?numConstancia=20-4-10282199"]
[187,1042443708,"JULIETH ANDREA CAMACHO CHACON","0187- 2020","ENFERMERA JEFE","02 ENERO DE 2020","31 ENERO DE 2020",2300000,2300000,"NILSA ARIZA MARQUEZ","COORDINADOR P Y P","COSTA HERMOSA",191,191,"09/01/2020","https://www.contratos.gov.co/consultas/detalleProceso.do?numConstancia=20-4-10282221"]
[188,7438585,"NESTOR CHARRIS MARIN","0188- 2020","ORIENTADOR","02 ENERO DE 2020","31 ENERO DE 2020",1270000,1270000,"SANDRA MILENA SANMARTIN  LOPEZ","SUB GERENTE ADMINISTRATIVO","CENTRO COSTA HERMOSA ",192,192,"09/01/2020","https://www.contratos.gov.co/consultas/detalleProceso.do?numConstancia=20-4-10282207"]
[189,22468261,"KANYA MALLERLY BERNAL BECERRA ","0189- 2020","AUXILIAR ADMINISTRATIVO - SUBGERENCIA ADMINISTRATIVA","02 ENERO DE 2020","31 ENERO DE 2020",2200000,2200000,"SANDRA MILENA SANMARTIN  LOPEZ","SUB GERENTE ADMINISTRATIVO","CENTRO COSTA HERMOSA ",193,193,"09/01/2020","https://www.contratos.gov.co/consultas/detalleProceso.do?numConstancia=20-4-10282234"]
[190,1043841968,"KAREN DAYANA FONSECA MUÑOZ","0190- 2020","MEDICO DE URGENCIA","02 ENERO DE 2020","31 ENERO DE 2020",2560000,2560000,"SERGIO BOVEA MARIN","COORD CENTRO SALUD","CENTRO DE 13 DE JUNIO ",194,194,"09/01/2020","https://www.contratos.gov.co/consultas/detalleProceso.do?numConstancia=20-4-10282243"]
[191,1129508435,"KAREN MARIA RODRIGUEZ MOVILLA","0191- 2020","AUXILIAR DE FARMACIA ","02 ENERO DE 2020","31 ENERO DE 2020",1270000,1270000,"BETTY  LUX PERTUZ CHARRIS","SUBGERENTE CIENTIFICO","ADMON -FARMACIA",195,195,"09/01/2020","https://www.contratos.gov.co/consultas/detalleProceso.do?numConstancia=20-4-10282261"]
[192,55313269,"KAREN MARTINEZ BRANGO","0192- 2020","AUXILIAR ENFERMERIA URGENCIAS","02 ENERO DE 2020","31 ENERO DE 2020",1378000,1378000,"SERGIO BOVEA MARIN","COORD CENTRO SALUD","CENTRO DE 13 DE JUNIO ",196,196,"09/01/2020","https://www.contratos.gov.co/consultas/detalleProceso.do?numConstancia=20-4-10282277"]
[193,1083433669,"KARLA MARIA SUAREZ MUÑOZ","0193- 2020","AUXILIAR DE ENFERMERIA URGENCIAS","02 ENERO DE 2020","31 ENERO DE 2020",1378000,{"$f":"H194*1","v":1378000},"WILFRAN JIMENEZ DE LA PEÑA","COORD CENTRO SALUD","CIUDADELA METROPOLITANA",197,197,"09/01/2020","https://www.contratos.gov.co/consultas/detalleProceso.do?numConstancia=20-4-10282284"]
[194,22534402,"KATERINE RUA SUAREZ","0194- 2020","AUXILIAR DE FACTURACION URGENCIA","02 ENERO DE 2020","31 ENERO DE 2020",1400000,1400000,"SANDRA MILENA SANMARTIN  LOPEZ","SUB GERENTE ADMINISTRATIVO","CENTRO COSTA HERMOSA ",198,198,"09/01/2020","https://www.contratos.gov.co/consultas/detalleProceso.do?numConstancia=20-4-10282300"]
[{"$f":"+A195+1","v":195},1042429330,"KATHERINE  BALZA SALAS","0195- 2020","AUXILIAR DE ARCHIVO","02 ENERO DE 2020","31 ENERO DE 2020",1500000,1500000,"SANDRA MILENA SANMARTIN  LOPEZ","SUB GERENTE ADMINISTRATIVO","ARCHIVO CENTRAL ",199,199,"09/01/2020","https://www.contratos.gov.co/consultas/detalleProceso.do?numConstancia=20-4-10282313"]
[196,22804794,"KATHERINE GUERRERO SEPULVEDA","0196- 2020","ABOGADO EXTERNO - CONTRATACION","02 ENERO DE 2020","31 ENERO DE 2020",5800000,5800000,"ORNELLA FIORENTINO ","JEFE OFICINA JURIDICA","CENTRO COSTA HERMOSA ",200,200,"09/01/2020","https://www.contratos.gov.co/consultas/detalleProceso.do?numConstancia=20-4-10282324"]
[197,32894662,"KATTY MACIAS PONTON ","0197- 2020","MEDICO DE URGENCIA","02 ENERO DE 2020","31 ENERO DE 2020",2560000,2560000,"WILFRAN JIMENEZ DE LA PEÑA","COORD CENTRO SALUD","CIUDADELA METROPOLITANA",201,201,"09/01/2020","https://www.contratos.gov.co/consultas/detalleProceso.do?numConstancia=20-4-10282337"]
[198,55301340,"KATYA LILIANA NORIEGA BARRIOS","0198- 2020","AUXILIAR DE ENFERMERIA URGENCIAS","02 ENERO DE 2020","31 ENERO DE 2020",1378000,1378000,"SERGIO BOVEA MARIN","COORD CENTRO SALUD","CENTRO DE 13 DE JUNIO ",202,202,"09/01/2020","https://www.contratos.gov.co/consultas/detalleProceso.do?numConstancia=20-4-10282357"]
[199,22642874,"KELLYS JOHANA URUETA SUAREZ","0199- 2020","AUXILIAR SERVICIOS GENERALES URGENCIA","02 ENERO DE 2020","31 ENERO DE 2020",1378000,1378000,"WILFRAN JIMENEZ DE LA PEÑA","COORD CENTRO SALUD","CIUDADELA METROPOLITANA",203,203,"09/01/2020","https://www.contratos.gov.co/consultas/detalleProceso.do?numConstancia=20-4-10282369"]
[200,1129581013,"KERLY JHOVELIS PITRE MORENO","0200- 2020","ENFERMERA JEFE P Y P","02 ENERO DE 2020","31 ENERO DE 2020",2300000,2300000,"NILSA ARIZA MARQUEZ","COORDINADOR P Y P","CIUDADELA METROPOLITANA",204,204,"09/01/2020","https://www.contratos.gov.co/consultas/detalleProceso.do?numConstancia=20-4-10282379"]
[201,1140890972,"KIMBERLI PEREZ MARTINEZ ","0201- 2020","AUXILIAR DE FACTURACION","02 ENERO DE 2020","31 ENERO DE 2020",1300000,1300000,"SANDRA MILENA SANMARTIN  LOPEZ","SUB GERENTE ADMINISTRATIVO","CENTRO EL PARQUE",205,205,"09/01/2020","https://www.contratos.gov.co/consultas/detalleProceso.do?numConstancia=20-4-10282390"]
[202,1045697885,"LAURA ALANDETE CASTRO","0202- 2020","MEDICO DE URGENCIA","02 ENERO DE 2020","31 ENERO DE 2020",2560000,2560000,"SERGIO BOVEA MARIN","COORD CENTRO SALUD","CENTRO DE 13 DE JUNIO ",206,206,"09/01/2020","https://www.contratos.gov.co/consultas/detalleProceso.do?numConstancia=20-4-10282401"]
[203,22739758,"LAURA MELENDEZ SALAZAR","0203- 2020","ODONTOLOGO","02 ENERO DE 2020","31 ENERO DE 2020",1900000,1900000,"YARELIS GUERRA CORREA","COORD CENTRO SALUD","VILLA ESTADIO",207,207,"09/01/2020","https://www.contratos.gov.co/consultas/detalleProceso.do?numConstancia=20-4-10282415"]
[204,32844647,"LAYS KARINA BURGOS FUENTES","0204- 2020","FACTURACION CENTRAL","02 ENERO DE 2020","31 ENERO DE 2020",3000000,3000000,"SANDRA MILENA SANMARTIN  LOPEZ","SUB GERENTE ADMINISTRATIVO","CENTRO COSTA HERMOSA ",208,208,"09/01/2020","https://www.contratos.gov.co/consultas/detalleProceso.do?numConstancia=20-4-10282425"]
[205,32865375,"LEDIA DEL CARMEN MARTINEZ DE MOYA","0205- 2020","VACUNADORA","02 ENERO DE 2020","31 ENERO DE 2020",1400000,1400000,"NILSA ARIZA MARQUEZ","COORDINADOR P Y P","CENTRO MANUELA BELTRAN",209,209,"09/01/2020","https://www.contratos.gov.co/consultas/detalleProceso.do?numConstancia=20-4-10282431"]
[206,1045747916,"LEIDY DIANA PAEZ OROZCO","0206- 2020","ENFERMERA JEFE ","02 ENERO DE 2020","31 ENERO DE 2020",1900000,1900000,"LUIS CARLOS DE LEON BERNIER","COORD CENTTRO SALUD","COSTA HERMOSA",210,210,"09/01/2020","https://www.contratos.gov.co/consultas/detalleProceso.do?numConstancia=20-4-10282453"]
[207,32879736,"LEISYS MARIA CASTRO OLARTE","0207- 2020","AUXILIAR DE FACTURACION URGENCIA","02 ENERO DE 2020","31 ENERO DE 2020",1400000,1400000,"SANDRA MILENA SANMARTIN  LOPEZ","SUB GERENTE ADMINISTRATIVO","CENTRO COSTA HERMOSA ",211,211,"09/01/2020","https://www.contratos.gov.co/consultas/detalleProceso.do?numConstancia=20-4-10282438"]
[208,1140846298,"LENIN ALVAREZ PINEDA","0208- 2020","INGENIERO DE SOPORTE ","02 ENERO DE 2020","31 ENERO DE 2020",3000000,3000000,"NILSA ARIZA MARQUEZ","COORDINADOR P Y P","CENTRO COSTA HERMOSA ",212,212,"09/01/2020","https://www.contratos.gov.co/consultas/detalleProceso.do?numConstancia=20-4-10282439"]
[209,1002157167,"LEODALIZ SALGADO GUERRERO","0209- 2020","AGENTE CALL CENTER","02 ENERO DE 2020","31 ENERO DE 2020",1400000,1400000,"SANDRA MILENA SANMARTIN  LOPEZ","SUB GERENTE ADMINISTRATIVO","COLL-CENTER- CIUDADELA METROPOLITANA",213,213,"09/01/2020","https://www.contratos.gov.co/consultas/detalleProceso.do?numConstancia=20-4-10282440"]
[210,1090415871,"LEONARDO BELLO PUENTES","0210- 2020","ODONTOLOGO","02 ENERO DE 2020","31 ENERO DE 2020",1900000,1900000,"WILFRAN JIMENEZ DE LA PEÑA","COORD CENTRO SALUD","CIUDADELA METROPOLITANA",214,214,"09/01/2020","https://www.contratos.gov.co/consultas/detalleProceso.do?numConstancia=20-4-10282441"]
[211,7469739,"LEOVALDO MENDOZA PAREJO","0211-2020","ORIENTADOR","02 ENERO DE 2020","31 ENERO DE 2020",1270000,1270000,"WILFRAN JIMENEZ DE LA PEÑA","COORD CENTRO SALUD","CIUDADELA METROPOLITANA",215,215,"09/01/2020","https://www.contratos.gov.co/consultas/detalleProceso.do?numConstancia=20-4-10282442"]
[212,1045712889,"LEYDILLY ROJANO GOMEZ","0212-2020","ENFERMERA JEFE URGENCIAS ","02 ENERO DE 2020","31 ENERO DE 2020",1900000,1900000,"SERGIO BOVEA MARIN","COORD CENTRO SALUD","CENTRO DE 13 DE JUNIO ",216,216,"09/01/2020","https://www.contratos.gov.co/consultas/detalleProceso.do?numConstancia=20-4-10282443"]
[213,42205053,"LIBIA ELENA BELEÑO MENDOZA","0213-2020","TRABAJADORA SOCIAL","02 ENERO DE 2020","31 ENERO DE 2020",2300000,2300000,"WILFRAN JIMENEZ DE LA PEÑA","COORD CENTRO SALUD","CIUDADELA METROPOLITANA",217,217,"09/01/2020","https://www.contratos.gov.co/consultas/detalleProceso.do?numConstancia=20-4-10282445"]
[214,1044601787,"LICETH MORAN ROMERO","0214-2020","AUXILIAR ADMINISTRATIVO -  PROMOCION Y PREVENCION","02 ENERO DE 2020","31 ENERO DE 2020",1500000,1500000,"NILSA ARIZA MARQUEZ","COORDINADOR P Y P","ADMON COSTA HERMOSA",218,218,"09/01/2020","https://www.contratos.gov.co/consultas/detalleProceso.do?numConstancia=20-4-10282448"]
[215,1045678885,"LIDA ISABEL DIAZ SANCHEZ","0215-2020","REFERENCIA Y CONTRAREFERENCIA","02 ENERO DE 2020","31 ENERO DE 2020",1270000,1270000,"SERGIO BOVEA MARIN","COORD CENTRO SALUD","CENTRO DE 13 DE JUNIO ",219,219,"09/01/2020","https://www.contratos.gov.co/consultas/detalleProceso.do?numConstancia=20-4-10282449"]
[216,22615419,"ALCIRA ROCIO RIVERA DONADO","0216-2020","AUXILIAR DE ARCHIVO","02 ENERO DE 2020","31 ENERO DE 2020",1500000,1500000,"SANDRA MILENA SANMARTIN  LOPEZ","SUB GERENTE ADMINISTRATIVO","CENTRO COSTA HERMOSA ",220,220,"09/01/2020","https://www.contratos.gov.co/consultas/detalleProceso.do?numConstancia=20-4-10282451"]
[217,40981378,"LIDYS CASTILLO TOVAR","0217-2020","PROFESIONAL OFICINA PAGADURIA  ","02 ENERO DE 2020","31 ENERO DE 2020",4000000,4000000,"LISGLENIS BUENO BRICEÑO","JEFE TESORERIA","CENTRO COSTA HERMOSA ",221,221,"09/01/2020","https://www.contratos.gov.co/consultas/detalleProceso.do?numConstancia=20-4-10282452"]
[218,32772357,"LIDYS ESTHER REALES CASTRO ","0218-2020","AUXILIAR DE ENFERMERIA URGENCIAS","02 ENERO DE 2020","31 ENERO DE 2020",1378000,1378000,"WILFRAN JIMENEZ DE LA PEÑA","COORD CENTRO SALUD","CIUDADELA METROPOLITANA",222,222,"09/01/2020","https://www.contratos.gov.co/consultas/detalleProceso.do?numConstancia=20-4-10282662"]
[219,32646304,"LILIAN ESTHER ANTEQUERA MANTILLA","0219-2020","AUXILIAR DE ENFERMERIA","02 ENERO DE 2020","31 ENERO DE 2020",1166000,1166000,"LUIS GRANADOS GOMEZ","COORD CENTRO SALUD","CENTRO MANUELA BELTRAN",223,223,"09/01/2020","https://www.contratos.gov.co/consultas/detalleProceso.do?numConstancia=20-4-10282647"]
[220,32796648,"LILIANA OROZCO ROJAS ","0220-2020","ODONTOLOGO","02 ENERO DE 2020","31 ENERO DE 2020",1900000,1900000,"DIANA MARTINEZ PACHECO","COORD CENTRO DE SALUD","CENTRO SALAMANCA",224,224,"09/01/2020","https://www.contratos.gov.co/consultas/detalleProceso.do?numConstancia=20-4-10282648"]
[221,22533893,"LILIANA VARGAS MONTERO","0221-2020","ENFERMERA JEFE P Y P","02 ENERO DE 2020","31 ENERO DE 2020",2300000,2300000,"NILSA ARIZA MARQUEZ","COORDINADOR P Y P","CENTRO 13 JUNIO",225,225,"09/01/2020","https://www.contratos.gov.co/consultas/detalleProceso.do?numConstancia=20-4-10282649"]
[222,32891063,"LILIBETH PACHECO ACERO","0222-2020","ODONTOLOGO","02 ENERO DE 2020","31 ENERO DE 2020",1900000,1900000,"BETTY  LUX PERTUZ CHARRIS","SUBGERENTE CIENTIFICO","La esperanza",226,226,"09/01/2020","https://www.contratos.gov.co/consultas/detalleProceso.do?numConstancia=20-4-10282650"]
[223,22738424,"LINA MARGARITA TORO GARCIA","0223-2020","MEDICO PROGRAMA CARDIOVASCULAR","02 ENERO DE 2020","31 ENERO DE 2020",4600000,4600000,"DIANA MARTINEZ PACHECO","COORD CENTRO DE SALUD","CENTRO SALAMANCA",227,227,"09/01/2020","https://www.contratos.gov.co/consultas/detalleProceso.do?numConstancia=20-4-10282651"]
[224,44159904,"LIZLEIDYS OSORIO DOMINGUEZ","0224-2020","ENFERMERA-JEFE TERRENO","02 ENERO DE 2020","31 ENERO DE 2020",2120000,2120000,"NILSA ARIZA MARQUEZ","COORDINADOR P Y P","CENTRO MANUELA BELTRAN",228,228,"09/01/2020","https://www.contratos.gov.co/consultas/detalleProceso.do?numConstancia=20-4-10282800"]
[225,32716780,"LORAINE PASION ARDILA ","0225-2020","TRABAJADORA SOCIAL","02 ENERO DE 2020","31 ENERO DE 2020",2300000,2300000,"SERGIO BOVEA MARIN","COORD CENTRO SALUD","CENTRO DE 13 DE JUNIO ",229,229,"09/01/2020","https://www.contratos.gov.co/consultas/detalleProceso.do?numConstancia=20-4-10282820"]
[226,1140849766,"LORENA PAOLA CUELLO DIAZ","0226-2020","DIGITADOR","02 ENERO DE 2020","31 ENERO DE 2020",1270000,1270000,"NILSA ARIZA MARQUEZ","COORDINADOR P Y P","ARCHIVO",230,230,"09/01/2020","https://www.contratos.gov.co/consultas/detalleProceso.do?numConstancia=20-4-10282841"]
[227,32666054,"LUCY CHING ANAYA ","0227-2020","MEDICO CONSULTA EXTERNA ","02 ENERO DE 2020","31 ENERO DE 2020",2120000,2120000,"DIANA MARTINEZ PACHECO","COORD CENTRO DE SALUD","CENTRO SALAMANCA",231,231,"09/01/2020","https://www.contratos.gov.co/consultas/detalleProceso.do?numConstancia=20-4-10282856"]
[228,72336152,"LUIS EDUARDO LLANOS NAVARRO ","0228-2020","AUDITOR DE P Y P ","02 ENERO DE 2020","31 ENERO DE 2020",4500000,4500000,"BETTY  LUX PERTUZ CHARRIS","SUBGERENTE CIENTIFICO","CENTRO COSTA HERMOSA ",232,232,"09/01/2020","https://www.contratos.gov.co/consultas/detalleProceso.do?numConstancia=20-4-10282869"]
[229,1143133250,"LUIS EDURDO NIEBLES SARMIENTO ","0229-2020","AUXILIAR DE FACTURACION URGENCIA","02 ENERO DE 2020","31 ENERO DE 2020",1400000,1400000,"SANDRA MILENA SANMARTIN  LOPEZ","SUB GERENTE ADMINISTRATIVO","CIUDADELA METROPOLITANA",233,233,"09/01/2020","https://www.contratos.gov.co/consultas/detalleProceso.do?numConstancia=20-4-10282883"]
[230,8672260,"LUIS MIGUEL REYES LANCE","0230-2020","ORIENTADOR","02 ENERO DE 2020","31 ENERO DE 2020",1270000,1270000,"SERGIO BOVEA MARIN","COORD CENTRO SALUD","CENTRO DE 13 DE JUNIO ",234,234,"09/01/2020","https://www.contratos.gov.co/consultas/detalleProceso.do?numConstancia=20-4-10282962"]
[231,72346265,"LUIS VASQUEZ BALLESTAS","0231-2020","COORDINADOR DE FACTURACION","02 ENERO DE 2020","31 ENERO DE 2020",1800000,1800000,"WILFRAN JIMENEZ DE LA PEÑA","COORD CENTRO SALUD","CIUDADELA METROPOLITANA",235,235,"09/01/2020","https://www.contratos.gov.co/consultas/detalleProceso.do?numConstancia=20-4-10283051"]
[232,22444561,"LUZ MARINA DONADO BARRIOS ","0232-2020","COORDINADOR DE FACTURACION","02 ENERO DE 2020","31 ENERO DE 2020",1600000,1600000,"DIANA MARTINEZ PACHECO","COORD CENTRO DE SALUD","CENTRO SALAMANCA",236,236,"09/01/2020","https://www.contratos.gov.co/consultas/detalleProceso.do?numConstancia=20-4-10283082"]
[233,32769109,"LUZ MARYS VILORIA POTES","0233-2020","CONTADORA ","02 ENERO DE 2020","31 ENERO DE 2020",3500000,3500000,"SANDRA MILENA SANMARTIN  LOPEZ","SUB GERENTE ADMINISTRATIVO","CENTRO COSTA HERMOSA ",237,237,"09/01/2020","https://www.contratos.gov.co/consultas/detalleProceso.do?numConstancia=20-4-10283089"]
[234,32825666,"LUZ STELLA RUIZ SUAREZ","0234-2020","AUXILIAR DE ENFERMERIA MATERNIDAD SEGURA ","02 ENERO DE 2020","31 ENERO DE 2020",1166000,1166000,"SERGIO BOVEA MARIN","COORD CENTRO SALUD","CENTRO DE 13 DE JUNIO ",238,238,"09/01/2020","https://www.contratos.gov.co/consultas/detalleProceso.do?numConstancia=20-4-10283155"]
[235,32724439,"MAGALY CANTILLO GUERRERO","0235-2020","TRABAJADORA SOCIAL ","02 ENERO DE 2020","31 ENERO DE 2020",2200000,2200000,"BETTY  LUX PERTUZ CHARRIS","SUBGERENTE CIENTIFICO","CENTRO  DE SALUD EL PARQUE",239,239,"09/01/2020","https://www.contratos.gov.co/consultas/detalleProceso.do?numConstancia=20-4-10283171"]
[236,32697306,"MAGALY POLO ARNEDO ","0236-2020","ODONTOLOGO","02 ENERO DE 2020","31 ENERO DE 2020",1900000,1900000,"SERGIO BOVEA MARIN","COORD CENTRO SALUD","CENTRO DE 13 DE JUNIO ",240,240,"09/01/2020","https://www.contratos.gov.co/consultas/detalleProceso.do?numConstancia=20-4-10283186"]
[237,32623541,"MAGALYS ESPITIA RAMOS","0237-2020","AUXILIAR SERVICIOS GENERALES URGENCIA","02 ENERO DE 2020","31 ENERO DE 2020",1378000,1378000,"WILFRAN JIMENEZ DE LA PEÑA","COORD CENTRO SALUD","CIUDADELA METROPOLITANA",241,241,"09/01/2020","https://www.contratos.gov.co/consultas/detalleProceso.do?numConstancia=20-4-10283212"]
[238,1140849940,"MAICOL JOSE MOLINA SOTO","0238-2020","MEDICO DE URGENCIA","02 ENERO DE 2020","31 ENERO DE 2020",2560000,2560000,"SERGIO BOVEA MARIN","COORD CENTRO SALUD","CENTRO DE 13 DE JUNIO ",242,242,"09/01/2020","https://www.contratos.gov.co/consultas/detalleProceso.do?numConstancia=20-4-10283234"]
[239,{"$f":"[1]Hoja1!$B$10","v":22616462},{"$f":"[1]Hoja1!$A$10","v":"MAIDELIN CORCHO CAICEDO"},"0239-2020",{"$f":"[1]Hoja1!$D$10","v":"AUXILIAR DE ENFERMERIA"},"02 ENERO DE 2020","31 ENERO DE 2020",1166000,1166000,"DIANA MARTINEZ PACHECO","COORD CENTRO DE SALUD","CENTRO SALAMANCA",243,243,"09/01/2020","https://www.contratos.gov.co/consultas/detalleProceso.do?numConstancia=20-4-10283304"]
[240,72142837,"MANUEL GUSTAVO PABA GUETE","0240-2020","PSICOLOGO EN PROMOCION Y PREVENCION","02 ENERO DE 2020","31 ENERO DE 2020",3000000,3000000,"NILSA ARIZA MARQUEZ","COORDINADOR P Y P","CENTRO MANUELA BELTRAN",244,244,"09/01/2020","https://www.contratos.gov.co/consultas/detalleProceso.do?numConstancia=20-4-10283375"]
[241,1140889557,"MARA PAOLA DE LEON NIEBLES ","0241-2020","AUXILIAR ADMINISTRATIVO","02 ENERO DE 2020","31 ENERO DE 2020",1900000,1900000,"SANDRA MILENA SANMARTIN  LOPEZ","SUB GERENTE ADMINISTRATIVO","ADMON COSTA HERMOSA",245,245,"09/01/2020","https://www.contratos.gov.co/consultas/detalleProceso.do?numConstancia=20-4-10283392"]
[242,44160436,"MARCELA JOHANA DIAZ DE LA PUENTE","0242-2020","ASESOR JURIDICO TALENTO HUMANO","02 ENERO DE 2020","31 ENERO DE 2020",3000000,3000000,"FABIAN COLPAS","JEFE TALENTO HUMANO","CENTRO COSTA HERMOSA ",246,246,"09/01/2020","https://www.contratos.gov.co/consultas/detalleProceso.do?numConstancia=20-4-10283452"]
[243,22605801,"MARCELA PATRICIA TORRES CARROLL","0243-2020","AUXILIAR DE FACTURACION URGENCIA","02 ENERO DE 2020","31 ENERO DE 2020",1400000,1400000,"SANDRA MILENA SANMARTIN  LOPEZ","SUB GERENTE ADMINISTRATIVO","CENTRO COSTA HERMOSA ",247,247,"09/01/2020","https://www.contratos.gov.co/consultas/detalleProceso.do?numConstancia=20-4-10283473"]
[244,22644933,"MARGARITA PACHECO GUTIERREZ","0244-2020","HIGIENISTA ORAL","02 ENERO DE 2020","31 ENERO DE 2020",2332000,2332000,"SERGIO BOVEA MARIN","COORD CENTRO SALUD","CENTRO DE 13 DE JUNIO ",248,248,"09/01/2020","https://www.contratos.gov.co/consultas/detalleProceso.do?numConstancia=20-4-10289042"]
[245,32703976,"MARI ENITH PUELLO BELTRAN","0245-2020","AUXILIAR DE ENFERMERIA CONSULTA EXTERNA ","02 ENERO DE 2020","31 ENERO DE 2020",1166000,1166000,"BETTY  LUX PERTUZ CHARRIS","SUBGERENTE CIENTIFICO","LA CENTRAL",249,249,"09/01/2020","https://www.contratos.gov.co/consultas/detalleProceso.do?numConstancia=20-4-10289060"]
[246,1042450048,"MARIA ALEJANDRA DE LA HOZ TOSCANO","0246-2020","MEDICO DE URGENCIA","02 ENERO DE 2020","31 ENERO DE 2020",2560000,2560000,"SERGIO BOVEA MARIN","COORD CENTRO SALUD","CENTRO DE 13 DE JUNIO ",250,250,"09/01/2020","https://www.contratos.gov.co/consultas/detalleProceso.do?numConstancia=20-4-10289075"]
[247,1004093696,"MARIA ALTAMAR OROZCO","0247-2020","AUXILIAR DE ENFERMERIA URGENCIAS","02 ENERO DE 2020","31 ENERO DE 2020",1378000,1378000,"SERGIO BOVEA MARIN","COORD CENTRO SALUD","CENTRO DE 13 DE JUNIO ",251,251,"09/01/2020","https://www.contratos.gov.co/consultas/detalleProceso.do?numConstancia=20-4-10289080"]
[248,32608240,"MARIA DE JESUS VELASQUEZ CAPERA","0248-2020","AUXILIAR SERVICIOS GENERALES","02 ENERO DE 2020","31 ENERO DE 2020",1215000,1215000,"SANDRA MILENA SANMARTIN  LOPEZ","SUB GERENTE ADMINISTRATIVO","CENTRO COSTA HERMOSA ",252,252,"09/01/2020","https://www.contratos.gov.co/consultas/detalleProceso.do?numConstancia=20-4-10289109"]
[249,32789239,"MARIA DEL CARMEN GUERRERO OJEDA","0249-2020","ORIENTADOR","02 ENERO DE 2020","31 ENERO DE 2020",1270000,1270000,"DIANA MARTINEZ PACHECO","COORD CENTRO DE SALUD","CENTRO SALAMANCA",253,253,"09/01/2020","https://www.contratos.gov.co/consultas/detalleProceso.do?numConstancia=20-4-10289118"]
[250,1140883085,"MARIA FATIMA HERNANDEZ ORTIZ","0250-2020","AUXILIAR DE ENFERMERIA - SERVICIOS AMIGABLES","02 ENERO DE 2020","31 ENERO DE 2020",1270000,1270000,"NILSA ARIZA MARQUEZ","COORDINADOR P Y P","CENTRO 13 DE JUNIO",254,254,"09/01/2020","https://www.contratos.gov.co/consultas/detalleProceso.do?numConstancia=20-4-10289135"]
[251,1045735275,"MARIA FERNANDA SOLANO QUITIAN","0251-2020","REFERENCIA Y CONTRAREFERENCIA","02 ENERO DE 2020","31 ENERO DE 2020",1270000,1270000,"WILFRAN JIMENEZ DE LA PEÑA",{"$f":"+K179","v":"COORD CENTRO SALUD"},"CENTRO CIUDADELA METROPOLITANA ",255,255,"09/01/2020","https://www.contratos.gov.co/consultas/detalleProceso.do?numConstancia=20-4-10289148"]
[252,1047341586,"MARIA GUADALUPE MUÑOZ MORALES","0252-2020","ODONTOLOGO","02 ENERO DE 2020","31 ENERO DE 2020",1900000,1900000,"WILFRAN JIMENEZ DE LA PEÑA","COORD CENTRO SALUD","CIUDADELA METROPOLITANA",256,256,"09/01/2020","https://www.contratos.gov.co/consultas/detalleProceso.do?numConstancia=20-4-10289155"]
[253,32668810,"MARIA ISABEL ALVARADO LOBOS","0253-2020","ASISTENTE COORDINADOR MEDICO","02 ENERO DE 2020","31 ENERO DE 2020",2000000,2000000,"WILFRAN JIMENEZ DE LA PEÑA","COORD CENTRO SALUD","CIUDADELA METROPOLITANA",257,257,"09/01/2020","https://www.contratos.gov.co/consultas/detalleProceso.do?numConstancia=20-4-10289181"]
[254,32879250,"MARIA SEGURA MEJIA","0254-2020","AUXILIAR FACTURACION URGENCIA","02 ENERO DE 2020","31 ENERO DE 2020",1400000,1400000,"SANDRA MILENA SANMARTIN  LOPEZ","SUB GERENTE ADMINISTRATIVO","CENTRO COSTA HERMOSA ",258,258,"09/01/2020","https://www.contratos.gov.co/consultas/detalleProceso.do?numConstancia=20-4-10289219"]
[255,72043527,"MARIANO DE JESUS BARRIOS ELLES ","0255-2020","COORDINADOR CALL CENTER","02 ENERO DE 2020","31 ENERO DE 2020",3000000,3000000,"BETTY  LUX PERTUZ CHARRIS","SUBGERENTE CIENTIFICO","COLL-CENTER- CIUDADELA METROPOLITANA",259,259,"09/01/2020","https://www.contratos.gov.co/consultas/detalleProceso.do?numConstancia=20-4-10289232"]
[256,32819834,"MARIBEL NIEBLES ESCORCIA","0256-2020","AUXILIAR DE ODONTOLOGIA","02 ENERO DE 2020","31 ENERO DE 2020",1166000,1166000,"LUIS GRANADOS GOMEZ","COORD CENTRO SALUD","CENTRO MANUELA BELTRAN",260,260,"09/01/2020","https://www.contratos.gov.co/consultas/detalleProceso.do?numConstancia=20-4-10289236"]
[257,32817343,"MARIELA NIEBLES FREILE","0257-2020","AUXILIAR DE ARCHIVO","02 ENERO DE 2020","31 ENERO DE 2020",1500000,{"$f":"H258*1","v":1500000},"SANDRA MILENA SANMARTIN  LOPEZ","SUB GERENTE ADMINISTRATIVO","ARCHIVO CENTRAL ",261,261,"09/01/2020","https://www.contratos.gov.co/consultas/detalleProceso.do?numConstancia=20-4-10289246"]
[258,32726703,"MARILYN ESTHER PEREZ LIÑAN","0258-2020","AUXILIAR DE ENFERMERIA URGENCIAS","02 ENERO DE 2020","31 ENERO DE 2020",1378000,1378000,"SERGIO BOVEA MARIN","COORD CENTRO SALUD","CENTRO DE 13 DE JUNIO ",262,262,"09/01/2020","https://www.contratos.gov.co/consultas/detalleProceso.do?numConstancia=20-4-10289251"]
[{"$f":"+A259+1","v":259},1140867598,"MARLA HERRERA MERIÑO","0259-2020","AUXILIAR DE ENFERMERIA URGENCIAS","02 ENERO DE 2020","31 ENERO DE 2020",1378000,1378000,"WILFRAN JIMENEZ DE LA PEÑA","COORD CENTRO SALUD","CIUDADELA METROPOLITANA",263,263,"09/01/2020","https://www.contratos.gov.co/consultas/detalleProceso.do?numConstancia=20-4-10289274"]
[260,22694593,"MARLENE JUDITH GARIZABALO PERTUZ","0260-2020","AUXILIAR SERVICIOS GENERALES","02 ENERO DE 2020","31 ENERO DE 2020",1215000,1215000,"CARLOS VISBAL JIMENEZ","COORD CENTRO SALUD","CENTRO COSTA HERMOSA ",264,264,"09/01/2020","https://www.contratos.gov.co/consultas/detalleProceso.do?numConstancia=20-4-10289287"]
[261,72158729,"MARLON CAMILO JORDAN HERRERA","0261-2020","REFERENCIA Y CONTRAREFERENCIA","02 ENERO DE 2020","31 ENERO DE 2020",1480000,1480000,"SERGIO BOVEA MARIN","COORD CENTRO SALUD","CENTRO DE 13 DE JUNIO ",265,265,"09/01/2020","https://www.contratos.gov.co/consultas/detalleProceso.do?numConstancia=20-4-10289293"]
[262,22659081,"MARODIS JUDITH SUAREZ MUÑOZ","0262-2020","AUXILIAR DE ARCHIVO","02 ENERO DE 2020","31 ENERO DE 2020",1500000,1500000,"SANDRA MILENA SANMARTIN  LOPEZ","SUB GERENTE ADMINISTRATIVO","ARCHIVO CENTRAL ",266,266,"09/01/2020","https://www.contratos.gov.co/consultas/detalleProceso.do?numConstancia=20-4-10289326"]
[263,44205287,"MARTHA KATERINE MEJIA FRUTO","0263-2020","AUXILIAR ADMINISTRATIVO - RECEPCION ","02 ENERO DE 2020","31 ENERO DE 2020",1900000,1900000,"SANDRA MILENA SANMARTIN  LOPEZ","SUB GERENTE ADMINISTRATIVO","CENTRO COSTA HERMOSA ",267,267,"09/01/2020","https://www.contratos.gov.co/consultas/detalleProceso.do?numConstancia=20-4-10289336"]
[264,39013975,"MARTHA MARMOL ARIAS","0264-2020","AUXILIAR SERVICIOS GENERALES","02 ENERO DE 2020","31 ENERO DE 2020",1215000,1215000,"BETTY  LUX PERTUZ CHARRIS","SUBGERENTE CIENTIFICO","CENTRO EL PARQUE",268,268,"09/01/2020","https://www.contratos.gov.co/consultas/detalleProceso.do?numConstancia=20-4-10289345"]
[265,55227166,"MARYI PEREZ CASSIANI","0265-2020","ENFERMERA JEFE URGENCIAS ","02 ENERO DE 2020","31 ENERO DE 2020",1900000,1900000,"WILFRAN JIMENEZ DE LA PEÑA","COORD CENTRO SALUD","CIUDADELA METROPOLITANA",269,269,"09/01/2020","https://www.contratos.gov.co/consultas/detalleProceso.do?numConstancia=20-4-10289358"]
[266,32769980,"MARYORIS POLO HERRERA","0266-2020","AUXILIAR DE ENFERMERIA URGENCIAS","02 ENERO DE 2020","31 ENERO DE 2020",1378000,1378000,"WILFRAN JIMENEZ DE LA PEÑA","COORD CENTRO SALUD","CIUDADELA METROPOLITANA",270,270,"09/01/2020","https://www.contratos.gov.co/consultas/detalleProceso.do?numConstancia=20-4-10289368"]
[267,32896837,"MARYULIS PATRICIA CRUZ JIMENEZ","0267-2020","ENFERMERA JEFE P Y P","02 ENERO DE 2020","31 ENERO DE 2020",2300000,2300000,"NILSA ARIZA MARQUEZ","COORDINADOR P Y P","SALAMANCA",271,271,"09/01/2020","https://www.contratos.gov.co/consultas/detalleProceso.do?numConstancia=20-4-10289376"]
[268,26762874,"MARYURIS ALTAHONA  MORENO ","0268-2020","MEDICO P Y P ","02 ENERO DE 2020","31 ENERO DE 2020",2120000,2120000,"YARELIS GUERRA CORREA","COORD CENTRO SALUD","CENTRO VILLA ESTADIO ",272,272,"09/01/2020","https://www.contratos.gov.co/consultas/detalleProceso.do?numConstancia=20-4-10289382"]
[269,1042452765,"MAYERLINN SANDOVAL BARRIOS","0269-2020","AGENTE CALL CENTER","02 ENERO DE 2020","31 ENERO DE 2020",1166000,1166000,"BETTY  LUX PERTUZ CHARRIS","SUBGERENTE CIENTIFICO","COLL-CENTER- CIUDADELA METROPOLITANA",273,273,"09/01/2020","https://www.contratos.gov.co/consultas/detalleProceso.do?numConstancia=20-4-10289408"]
[270,56087561,"YAMILZA ESTHER MURGAS ORTIZ","0270-2020","AUXILIAR DE ENFERMERIA","02 ENERO DE 2020","31 ENERO DE 2020",1166000,1166000,"LUIS GRANADOS GOMEZ","COORD CENTRO SALUD","ARCHIVO CENTRAL ",274,274,"09/01/2020","https://www.contratos.gov.co/consultas/detalleProceso.do?numConstancia=20-4-10289439"]
[271,1042422315,"MAYRA ALEJANDRA GARCIA CASTILLO","0271-2020","FISIOTERAPEUTA ","02 ENERO DE 2020","31 ENERO DE 2020",1900000,1900000,"CARLOS VISBAL JIMENEZ","COORD CENTRO SALUD","CENTRO COSTA HERMOSA ",275,275,"09/01/2020","https://www.contratos.gov.co/consultas/detalleProceso.do?numConstancia=20-4-10289452"]
[272,22738713,"KELLY JOHNNA MOSCOTE SILVERA","0272-2020","ATENCION PRIMARIA EN SALUD","02 ENERO DE 2020","31 ENERO DE 2020",1073050,1073050,"SERGIO BOVEA MARIN","COORD CENTRO SALUD","CENTRO DE 13 DE JUNIO ",276,276,"09/01/2020","https://www.contratos.gov.co/consultas/detalleProceso.do?numConstancia=20-4-10289466"]
[273,1043876764,"MELANI ISABEL PERTUZ HERRERA","0273-2020","AUXILIAR ADMINISTRATIVO -  SUBGERENCIA ADMINISTRATIVA","02 ENERO DE 2020","31 ENERO DE 2020",1900000,1900000,"SANDRA MILENA SANMARTIN  LOPEZ","SUB GERENTE ADMINISTRATIVO","CENTRO COSTA HERMOSA ",277,277,"09/01/2020","https://www.contratos.gov.co/consultas/detalleProceso.do?numConstancia=20-4-10289486"]
[274,22457575,"MELBA MEZA PERDOMO","0274-2020","TRABAJADORA SOCIAL ","02 ENERO DE 2020","31 ENERO DE 2020",2200000,2200000,"SERGIO BOVEA MARIN","COORD CENTRO SALUD","CENTRO DE 13 DE JUNIO ",278,278,"09/01/2020","https://www.contratos.gov.co/consultas/detalleProceso.do?numConstancia=20-4-10289495"]
[275,1042418352,"MERJORIE CABEZA CASTILLO","0275-2020","AUXILIAR DE ENFERMERIA P Y P ","02 ENERO DE 2020","31 ENERO DE 2020",1166000,1166000,"LUIS GRANADOS GOMEZ","COORD CENTRO SALUD","CENTRO MANUELA BELTRAN",279,279,"09/01/2020","https://www.contratos.gov.co/consultas/detalleProceso.do?numConstancia=20-4-10289523"]
[276,32729889,"MERLY ISABEL BARRAZA TOLEDO","0276-2020","AUXILIAR DE ENFERMERIA CONSULTA EXTERNA ","02 ENERO DE 2020","31 ENERO DE 2020",1166000,1166000,"YARELIS GUERRA CORREA","COORD CENTRO SALUD","CENTRO VILLA ESTADIO ",280,280,"09/01/2020","https://www.contratos.gov.co/consultas/detalleProceso.do?numConstancia=20-4-10289537"]
[277,1129532724,"MICHELLY SANDOVAL ACUÑA","0277-2020","AUDITOR DE CALIDAD ","02 ENERO DE 2020","31 ENERO DE 2020",3500000,3500000,"BETTY  LUX PERTUZ CHARRIS","SUBGERENTE CIENTIFICO","CENTRO COSTA HERMOSA ",281,281,"09/01/2020","https://www.contratos.gov.co/consultas/detalleProceso.do?numConstancia=20-4-10289589"]
[278,8507626,"MIGUEL ALVAREZ SALCEDO","0278-2020","CONDUCTOR DE AMBULANCIA","02 ENERO DE 2020","31 ENERO DE 2020",1800000,1800000,"BETTY  LUX PERTUZ CHARRIS","SUBGERENTE CIENTIFICO","CIUDADELA METROPOLITANA",282,282,"09/01/2020","https://www.contratos.gov.co/consultas/detalleProceso.do?numConstancia=20-4-10289601"]
[279,8795259,"MIGUEL ANGEL OLMOS DE ALBA","0279-2020","CONDUCTOR DE AMBULANCIA","02 ENERO DE 2020","31 ENERO DE 2020",1800000,1800000,"BETTY  LUX PERTUZ CHARRIS","SUBGERENTE CIENTIFICO","CIUDADELA METROPOLITANA",283,283,"09/01/2020","https://www.contratos.gov.co/consultas/detalleProceso.do?numConstancia=20-4-10289611"]
[280,1129519216,"MILAGRO HERRERA MOJICA","0280-2020","MEDICO DE URGENCIA","02 ENERO DE 2020","31 ENERO DE 2020",2560000,2560000,"WILFRAN JIMENEZ DE LA PEÑA","COORD CENTRO SALUD","CIUDADELA METROPOLITANA",284,284,"09/01/2020","https://www.contratos.gov.co/consultas/detalleProceso.do?numConstancia=20-4-10289622"]
[281,22468835,"MILAGROS GUZMAN FERNANDEZ ","0281-2020","ODONTOLOGO","02 ENERO DE 2020","31 ENERO DE 2020",1900000,1900000,"LUIS GRANADOS GOMEZ","COORD CENTRO SALUD","CENTRO MANUELA BELTRAN",285,285,"09/01/2020","https://www.contratos.gov.co/consultas/detalleProceso.do?numConstancia=20-4-10289632"]
[282,55238408,"MILAGROS YANETH SIMANCA RODRIGUEZ","0282-2020","AUXILIAR AREA FINANCIERA","02 ENERO DE 2020","31 ENERO DE 2020",3500000,3500000,"SANDRA MILENA SANMARTIN  LOPEZ","SUB GERENTE ADMINISTRATIVO","CENTRO COSTA HERMOSA ",286,286,"09/01/2020","https://www.contratos.gov.co/consultas/detalleProceso.do?numConstancia=20-4-10289639"]
[283,32787314,"MILENA HERRERA BENAVIDES","0283-2020","AUXILIAR DE ENFERMERIA MATERNIDAD SEGURA ","02 ENERO DE 2020","31 ENERO DE 2020",1166000,1166000,"WILFRAN JIMENEZ DE LA PEÑA","COORD CENTRO SALUD","CIUDADELA METROPOLITANA",287,287,"09/01/2020","https://www.contratos.gov.co/consultas/detalleProceso.do?numConstancia=20-4-10289658"]
[284,22532699,"MILENA SILVA BARRAZA","0284-2020","AUXILIAR DE FACTURACION","02 ENERO DE 2020","31 ENERO DE 2020",1300000,1300000,"SANDRA MILENA SANMARTIN  LOPEZ","SUB GERENTE ADMINISTRATIVO","CENTRO COSTA HERMOSA ",288,288,"09/01/2020","https://www.contratos.gov.co/consultas/detalleProceso.do?numConstancia=20-4-10289649"]
[285,1045689538,"MILLER TEDYS MEDRANO CASTRO","0285-2020","TECNOLOGO EN RADIOLOGIA","02 ENERO DE 2020","31 ENERO DE 2020",1500000,1500000,"BETTY  LUX PERTUZ CHARRIS","SUBGERENTE CIENTIFICO","CIUDADELA METROPOLITANA",289,289,"09/01/2020","https://www.contratos.gov.co/consultas/detalleProceso.do?numConstancia=20-4-10289650"]
[286,72268005,"MILTON SOLARTE RODRIGUEZ","0286-2020","TECNICO DE BASES DE DATOS","02 ENERO DE 2020","31 ENERO DE 2020",3000000,3000000,"SANDRA MILENA SANMARTIN  LOPEZ","SUB GERENTE ADMINISTRATIVO","CENTRO COSTA HERMOSA ",290,290,"09/01/2020","https://www.contratos.gov.co/consultas/detalleProceso.do?numConstancia=20-4-10289651"]
[287,22693871,"MIRIAM VILLAREAL DE ALBA","0287-2020","AUXILIAR SERVICIOS GENERALES ","02 ENERO DE 2020","31 ENERO DE 2020",1215000,1215000,"SANDRA MILENA SANMARTIN  LOPEZ","SUB GERENTE ADMINISTRATIVO","CENRO  MACLOVIA",291,291,"09/01/2020","https://www.contratos.gov.co/consultas/detalleProceso.do?numConstancia=20-4-10289652"]
[288,26984528,"MIRYAN MERCEDES MURILLO CARRILLO","0288-2020","NUTRICIONISTA","02 ENERO DE 2020","31 ENERO DE 2020",2300000,2300000,"BETTY  LUX PERTUZ CHARRIS","SUBGERENTE CIENTIFICO","CENTRO SALAMANCA",292,292,"09/01/2020","https://www.contratos.gov.co/consultas/detalleProceso.do?numConstancia=20-4-10289653"]
[289,32814938,"MOIRA SANDOVAL PEDRAZA","0289-2020","AUXILIAR DE ENFERMERIA PROMOTORA EN SALUD","02 ENERO DE 2020","31 ENERO DE 2020",1215000,1215000,"WILFRAN JIMENEZ DE LA PEÑA","COORD CENTRO SALUD","CIUDADELA METROPOLITANA",293,293,"09/01/2020","https://www.contratos.gov.co/consultas/detalleProceso.do?numConstancia=20-4-10289655"]
[290,22443679,"MONICA PEREZ RODRIGUEZ ","0290-2020","FISIOTERAPEUTA ","02 ENERO DE 2020","31 ENERO DE 2020",2100000,2100000,"WILFRAN JIMENEZ DE LA PEÑA","COORD CENTRO SALUD","CIUDADELA METROPOLITANA",294,294,"09/01/2020","https://www.contratos.gov.co/consultas/detalleProceso.do?numConstancia=20-4-10289747"]
[291,32756032,"MONICA RAMIREZ CORREAL","0291-2020","AUXILIAR DE ENFERMERIA URGENCIAS","02 ENERO DE 2020","31 ENERO DE 2020",1378000,1378000,"WILFRAN JIMENEZ DE LA PEÑA","COORD CENTRO SALUD","CIUDADELA METROPOLITANA",295,295,"09/01/2020","https://www.contratos.gov.co/consultas/detalleProceso.do?numConstancia=20-4-10289743"]
[292,32829349,"NADIA BOVEA NIETO","0292-2020","AUXILIAR DE ENFERMERIA URGENCIAS","02 ENERO DE 2020","31 ENERO DE 2020",1378000,1378000,"SERGIO BOVEA MARIN","COORD CENTRO SALUD","CENTRO DE 13 DE JUNIO ",296,296,"09/01/2020","https://www.contratos.gov.co/consultas/detalleProceso.do?numConstancia=20-4-10289744"]
[293,55239101,"NATALI ANDREA NIEBLES JURADO","0293-2020","AUDITOR DE CALIDAD (JEFE DE UNIDAD)","02 ENERO DE 2020","31 ENERO DE 2020",5800000,5800000,"BETTY  LUX PERTUZ CHARRIS","SUBGERENTE CIENTIFICO","CENTRO COSTA HERMOSA ",297,297,"09/01/2020","https://www.contratos.gov.co/consultas/detalleProceso.do?numConstancia=20-4-10289745"]
[294,32783935,"NELBY CORRALES HOYOS","0294-2020","AUXILIAR DE ENFERMERIA URGENCIAS","02 ENERO DE 2020","31 ENERO DE 2020",1378000,1378000,"SERGIO BOVEA MARIN","COORD CENTRO SALUD","CENTRO DE 13 DE JUNIO ",298,298,"09/01/2020","https://www.contratos.gov.co/consultas/detalleProceso.do?numConstancia=20-4-10289746"]
[295,26910232,"NELCY ALMARALES AYALA","0295-2020","TRABAJADORA SOCIAL ","02 ENERO DE 2020","31 ENERO DE 2020",2200000,2200000,"YARELIS GUERRA CORREA","COORD CENTRO SALUD","CENTRO VILLA ESTADIO ",299,299,"09/01/2020","https://www.contratos.gov.co/consultas/detalleProceso.do?numConstancia=20-4-10289865"]
[296,32819548,"NELLY GALAN HEILBRON","0296-2020","AUXILIAR DE ENFERMERIA PROMOTORA EN SALUD","02 ENERO DE 2020","31 ENERO DE 2020",1215000,1215000,"SERGIO BOVEA MARIN","COORD CENTRO SALUD","CENTRO DE 13 DE JUNIO ",300,300,"09/01/2020","https://www.contratos.gov.co/consultas/detalleProceso.do?numConstancia=20-4-10289866"]
[297,8770580,"NELSON JULIO SANDOVAL GONZALEZ","0297-2020","AUXILIAR ADMINISTRATIVO DE FINANCIERA","02 ENERO DE 2020","31 ENERO DE 2020",3000000,3000000,"SANDRA MILENA SANMARTIN  LOPEZ","SUB GERENTE ADMINISTRATIVO","CENTRO COSTA HERMOSA ",301,301,"09/01/2020","https://www.contratos.gov.co/consultas/detalleProceso.do?numConstancia=20-4-10289867"]
[298,22735613,"NELVIS MARIA SARMIENTO ARELLANO","0298-2020","AUXILIAR DE ENFERMERIA","02 ENERO DE 2020","31 ENERO DE 2020",1166000,1166000,"CARLOS VISBAL JIMENEZ","COORD CENTRO SALUD","CENTRO COSTA HERMOSA ",302,302,"09/01/2020","https://www.contratos.gov.co/consultas/detalleProceso.do?numConstancia=20-4-10289869"]
[299,32812585,"NESLIE OSORIO PARODIS","0299-2020","VACUNADORA","02 ENERO DE 2020","31 ENERO DE 2020",1400000,1400000,"NILSA ARIZA MARQUEZ","COORDINADOR P Y P","MANUELA BELTRAN",303,303,"09/01/2020","https://www.contratos.gov.co/consultas/detalleProceso.do?numConstancia=20-4-10289870"]
[300,8498281,"NESTOR  HERRERA BOCANEGRA ","0300-2020","ASESOR FINANCIERO","02 ENERO DE 2020","31 ENERO DE 2020",4500000,4500000,"ALFONSO NICOLAS OQUENDO ","DIRECTOR FINANCIERO","CENTRO COSTA HERMOSA ",304,304,"09/01/2020","https://www.contratos.gov.co/consultas/detalleProceso.do?numConstancia=20-4-10289872"]
[301,1140877960,"NICAULIS RODRIGUEZ GOMEZ","0301-2020","AUXILIAR DE FACTURACION URGENCIA","02 ENERO DE 2020","31 ENERO DE 2020",1400000,1400000,"SANDRA MILENA SANMARTIN  LOPEZ","SUB GERENTE ADMINISTRATIVO","CENTRO COSTA HERMOSA ",305,305,"09/01/2020","https://www.contratos.gov.co/consultas/detalleProceso.do?numConstancia=20-4-10289990"]
[302,32637709,"NIDIA ELENA ORTEGA CARO","0302-2020","TRABAJADORA SOCIAL","02 ENERO DE 2020","31 ENERO DE 2020",2200000,2200000,"WILFRAN JIMENEZ DE LA PEÑA","COORD CENTRO SALUD","CIUDADELA METROPOLITANA",306,306,"09/01/2020","https://www.contratos.gov.co/consultas/detalleProceso.do?numConstancia=20-4-10289984"]
[303,32740234,"NIDIA VEGA CORREA","0303-2020","AUXILIAR SERVICIOS GENERALES","02 ENERO DE 2020","31 ENERO DE 2020",1215000,1215000,"SANDRA MILENA SANMARTIN  LOPEZ","SUB GERENTE ADMINISTRATIVO","La esperanza",307,307,"09/01/2020","https://www.contratos.gov.co/consultas/detalleProceso.do?numConstancia=20-4-10289985"]
[304,72232466,"NILSEN ENRIQUE CERA SUAREZ","0304-2020","AUXILIAR DE ARCHIVO","02 ENERO DE 2020","31 ENERO DE 2020",1500000,1500000,"SANDRA MILENA SANMARTIN  LOPEZ","SUB GERENTE ADMINISTRATIVO","ARCHIVO CENTRAL ",308,308,"09/01/2020","https://www.contratos.gov.co/consultas/detalleProceso.do?numConstancia=20-4-10289986"]
[305,72222215,"NILSON ALMARALES GARIZABALO","0305-2020","MEDICO DE URGENCIA","02 ENERO DE 2020","31 ENERO DE 2020",5700000,5700000,"BETTY  LUX PERTUZ CHARRIS","SUBGERENTE CIENTIFICO","CENTRO DE 13 DE JUNIO ",309,309,"09/01/2020","https://www.contratos.gov.co/consultas/detalleProceso.do?numConstancia=20-4-10289987"]
[306,8737936,"NOE ANIBAL PELAEZ GONZALEZ","0306-2020","REGENTE DE FARMACIA ","02 ENERO DE 2020","31 ENERO DE 2020",1900000,1900000,"BETTY  LUX PERTUZ CHARRIS","SUBGERENTE CIENTIFICO","ADMON -FARMACIA",310,310,"09/01/2020","https://www.contratos.gov.co/consultas/detalleProceso.do?numConstancia=20-4-10289988"]
[307,32822947,"NOHORA ISABEL POLO ORTIZ","0307-2020","TRABAJADORA SOCIAL ","02 ENERO DE 2020","31 ENERO DE 2020",2200000,2200000,"LUIS GRANADOS GOMEZ","COORD CENTRO SALUD","CENTRO MANUELA BELTRAN",311,311,"09/01/2020","https://www.contratos.gov.co/consultas/detalleProceso.do?numConstancia=20-4-10289989"]
[308,39282489,"NORIS SOFIA BERTEL PEREZ","0308-2020","AUXILIAR SERVICIOS GENERALES URGENCIA","02 ENERO DE 2020","31 ENERO DE 2020",1378000,1378000,"SERGIO BOVEA MARIN","COORD CENTRO SALUD","CENTRO DE 13 DE JUNIO ",312,312,"09/01/2020","https://www.contratos.gov.co/consultas/detalleProceso.do?numConstancia=20-4-10290167"]
[309,32625262,"NORMA MARGARITA VIDAL OROZCO","0309-2020","ODONTOLOGO","02 ENERO DE 2020","31 ENERO DE 2020",1900000,1900000,"LUIS GRANADOS GOMEZ","COORD CENTRO SALUD","CENTRO MANUELA BELTRAN",313,313,"09/01/2020","https://www.contratos.gov.co/consultas/detalleProceso.do?numConstancia=20-4-10290219"]
[310,32862644,"NURYS GARCIA DELGADO","0310-2020","AUXILIAR DE ARCHIVO","02 ENERO DE 2020","31 ENERO DE 2020",1500000,1500000,"SANDRA MILENA SANMARTIN  LOPEZ","SUB GERENTE ADMINISTRATIVO","ARCHIVO CENTRAL ",314,314,"09/01/2020","https://www.contratos.gov.co/consultas/detalleProceso.do?numConstancia=20-4-10290215"]
[311,8772224,"OLAINER MONTERO CASTRO ","0311-2020","COORDINADOR DE FACTURACION","02 ENERO DE 2020","31 ENERO DE 2020",1800000,1800000,"SERGIO BOVEA MARIN","COORD CENTRO SALUD","CENTRO DE 13 DE JUNIO ",315,315,"09/01/2020","https://www.contratos.gov.co/consultas/detalleProceso.do?numConstancia=20-4-10290216"]
[312,32863854,"OLGA BARRIOS BACCA","0312-2020","VACUNADORA","02 ENERO DE 2020","31 ENERO DE 2020",1400000,1400000,"NILSA ARIZA MARQUEZ","COORDINADOR P Y P","CENTRO MANUELA BELTRAN",316,316,"09/01/2020","https://www.contratos.gov.co/consultas/detalleProceso.do?numConstancia=20-4-10290218"]
[313,1048267612,"OLGA DE AVILA ARRIETA","0313-2020","MEDICO MATERNIDAD SEGURA","02 ENERO DE 2020","31 ENERO DE 2020",4240000,4240000,"WILFRAN JIMENEZ DE LA PEÑA","COORD CENTRO SALUD","CIUDADELA METROPOLITANA",317,317,"09/01/2020","https://www.contratos.gov.co/consultas/detalleProceso.do?numConstancia=20-4-10290348"]
[314,44152277,"OLGA GARIZABALO PERTUZ","0314-2020","AUXILIAR DE ODONTOLOGIA","02 ENERO DE 2020","31 ENERO DE 2020",1166000,1166000,"BETTY  LUX PERTUZ CHARRIS","SUBGERENTE CIENTIFICO","La esperanza",318,318,"09/01/2020","https://www.contratos.gov.co/consultas/detalleProceso.do?numConstancia=20-4-10290364"]
[315,22443037,"OLGA RODRIGUEZ FIGUEROA","0315-2020","ENFERMERA JEFE CONSULTA EXTERNA ","02 ENERO DE 2020","31 ENERO DE 2020",1900000,1900000,"BETTY  LUX PERTUZ CHARRIS","SUBGERENTE CIENTIFICO","COSTA HERMOSA",319,319,"09/01/2020","https://www.contratos.gov.co/consultas/detalleProceso.do?numConstancia=20-4-10290386"]
[316,32693760,"OMAIRA PLATA VESGA ","0316-2020","ODONTOLOGO","02 ENERO DE 2020","31 ENERO DE 2020",1900000,1900000,"WILFRAN JIMENEZ DE LA PEÑA","COORD CENTRO SALUD","CIUDADELA METROPOLITANA",320,320,"09/01/2020","https://www.contratos.gov.co/consultas/detalleProceso.do?numConstancia=20-4-10290380"]
[317,8750360,"OSCAR HUMBERTO GERALDINO CAPDEVILLA","0317-2020","MÉDICO CONSULTA EXTERNA Y APOYO A LA COORDINACIÓN MÉDICA","02 ENERO DE 2020","31 ENERO DE 2020",4650000,4650000,"BETTY  LUX PERTUZ CHARRIS","SUBGERENTE CIENTIFICO","La Central",321,321,"09/01/2020","https://www.contratos.gov.co/consultas/detalleProceso.do?numConstancia=20-4-10290381"]
[318,26947248,"OSIRIS JIMENEZ ZAPATA","0318-2020","PSICOLOGO EN PROMOCION Y PREVENCION","02 ENERO DE 2020","31 ENERO DE 2020",2800000,2800000,"WILFRAN JIMENEZ DE LA PEÑA","COORD CENTRO SALUD","CENTRO SALAMANCA",322,322,"09/01/2020","https://www.contratos.gov.co/consultas/detalleProceso.do?numConstancia=20-4-10290383"]
[319,32742523,"OSIRIS MARIA SAMUDIO ESCOBAR ","0319-2020","ODONTOLOGO","02 ENERO DE 2020","31 ENERO DE 2020",1900000,1900000,"BETTY  LUX PERTUZ CHARRIS","SUBGERENTE CIENTIFICO","CENTRO  DE SALUD EL PARQUE",323,323,"09/01/2020","https://www.contratos.gov.co/consultas/detalleProceso.do?numConstancia=20-4-10290384"]
[320,8749064,"OSVALDO CUENTAS  DE LAS  SALAS","0320-2020","ODONTOLOGO","02 ENERO DE 2020","31 ENERO DE 2020",1900000,1900000,"CARLOS VISBAL JIMENEZ","COORD CENTRO SALUD","CENTRO COSTA HERMOSA ",324,324,"09/01/2020","https://www.contratos.gov.co/consultas/detalleProceso.do?numConstancia=20-4-10290385"]
[321,36594015,"PAOLA PEREZ SIERRA ","0321-2020","AUXILIAR DE ARCHIVO","02 ENERO DE 2020","31 ENERO DE 2020",1500000,{"$f":"H322*1","v":1500000},"SANDRA MILENA SANMARTIN  LOPEZ","SUB GERENTE ADMINISTRATIVO","ARCHIVO CENTRAL ",325,325,"09/01/2020","https://www.contratos.gov.co/consultas/detalleProceso.do?numConstancia=20-4-10290496"]
[322,55307582,"PAOLA VALENCIA GUERRERO","0322-2020","MEDICO PROGRAMA CARDIOVASCULAR","02 ENERO DE 2020","31 ENERO DE 2020",2300000,2300000,"DIANA MARTINEZ PACHECO","COORD CENTRO DE SALUD","CENTRO SALAMANCA",326,326,"09/01/2020","https://www.contratos.gov.co/consultas/detalleProceso.do?numConstancia=20-4-10290498"]
[{"$f":"+A323+1","v":323},1081799915,"PAULA ANDREA PIMIENTA ANDRADES","0323-2020","AUXILIAR DE ENFERMERIA URGENCIAS","02 ENERO DE 2020","31 ENERO DE 2020",1378000,1378000,"WILFRAN JIMENEZ DE LA PEÑA","COORD CENTRO SALUD","CIUDADELA METROPOLITANA",327,327,"09/01/2020","https://www.contratos.gov.co/consultas/detalleProceso.do?numConstancia=20-4-10290499"]
[324,72231273,"PEDRO RAFAEL PEREZ HERNANDEZ","0324-2020","AGENTE CALL CENTER","02 ENERO DE 2020","31 ENERO DE 2020",1378000,1378000,"BETTY  LUX PERTUZ CHARRIS","SUBGERENTE CIENTIFICO","COLL-CENTER- CIUDADELA METROPOLITANA",328,328,"09/01/2020","https://www.contratos.gov.co/consultas/detalleProceso.do?numConstancia=20-4-10290500"]
[325,32788911,"PEGGY ESTHER CARRILLO MUÑOZ","0325-2020","PAI WEB ","02 ENERO DE 2020","31 ENERO DE 2020",1500000,1500000,"NILSA ARIZA MARQUEZ","COORDINADOR P Y P","ARCHIVO",329,329,"09/01/2020","https://www.contratos.gov.co/consultas/detalleProceso.do?numConstancia=20-4-10290501"]
[326,9191876,"RAFAEL MOLINA CASTILLO","0326-2020","AUXILIAR DE FACTURACION URGENCIA","02 ENERO DE 2020","31 ENERO DE 2020",1400000,1400000,"SANDRA MILENA SANMARTIN  LOPEZ","SUB GERENTE ADMINISTRATIVO","CENTRO COSTA HERMOSA ",330,330,"09/01/2020","https://www.contratos.gov.co/consultas/detalleProceso.do?numConstancia=20-4-10290602"]
[327,8770590,"RAFAEL MOVILLA FLOREZ ","0327-2020","COORDINADOR DE FACTURACION","02 ENERO DE 2020","31 ENERO DE 2020",1600000,1600000,"LUIS GRANADOS GOMEZ","COORD CENTRO SALUD","CENTRO MANUELA BELTRAN",331,331,"09/01/2020","https://www.contratos.gov.co/consultas/detalleProceso.do?numConstancia=20-4-10290588"]
[328,72147873,"RAMIRO ANTONIO SALAS LARA ","0328-2020","REGENTE DE FARMACIA ","02 ENERO DE 2020","31 ENERO DE 2020",1900000,1900000,"BETTY  LUX PERTUZ CHARRIS","SUBGERENTE CIENTIFICO","ADMON -FARMACIA",332,332,"09/01/2020","https://www.contratos.gov.co/consultas/detalleProceso.do?numConstancia=20-4-10290590"]
[329,8693329,"RAMON ENRIQUE DE LA CRUZ MENDEZ ","0329-2020","MEDICO CONSULTA EXTERNA-VICTIMAS ","02 ENERO DE 2020","31 ENERO DE 2020",5000000,5000000,"BETTY  LUX PERTUZ CHARRIS","SUBGERENTE CIENTIFICO","CENTRO COSTA HERMOSA ",333,333,"09/01/2020","https://www.contratos.gov.co/consultas/detalleProceso.do?numConstancia=20-4-10290592"]
[330,8758306,"RENALDO MIRANDA JIMENEZ","0330-2020","ORIENTADOR","02 ENERO DE 2020","31 ENERO DE 2020",1270000,1270000,"CARLOS VISBAL JIMENEZ","COORD CENTRO SALUD","CENTRO COSTA HERMOSA ",334,334,"09/01/2020","https://www.contratos.gov.co/consultas/detalleProceso.do?numConstancia=20-4-10290593"]
[331,72144602,"RICARDO ISAAC OROZCO BARROS","0331-2020","CONDUCTOR DE AMBULANCIA ","02 ENERO DE 2020","31 ENERO DE 2020",1800000,1800000,"SERGIO BOVEA MARIN","COORD CENTRO SALUD","CENTRO DE 13 DE JUNIO ",335,335,"09/01/2020","https://www.contratos.gov.co/consultas/detalleProceso.do?numConstancia=20-4-10290594"]
[332,32826802,"ROCIO ISABEL FRIAS COLPAS","0332-2020","AUXILIAR SERVICIOS GENERALES","02 ENERO DE 2020","31 ENERO DE 2020",1215000,1215000,"MARIA SANCHEZ AYALA","JEFE ALMACEN","ALMACEN",336,336,"09/01/2020","https://www.contratos.gov.co/consultas/detalleProceso.do?numConstancia=20-4-10290595"]
[333,72293492,"RODOLFO ENRIQUE NARVAEZ  GUTIERREZ ","0333-2020","COORDINADOR DE ARCHIVO","02 ENERO DE 2020","31 ENERO DE 2020",4000000,4000000,"SANDRA MILENA SANMARTIN  LOPEZ","SUB GERENTE ADMINISTRATIVO","ARCHIVO CENTRAL ",337,337,"09/01/2020","https://www.contratos.gov.co/consultas/detalleProceso.do?numConstancia=20-4-10290596"]
[334,32613493,"ROSA ESCOBAR FANDIÑO","0334-2020","AUXILIAR DE ENFERMERIA URGENCIAS","02 ENERO DE 2020","31 ENERO DE 2020",1378000,1378000,"WILFRAN JIMENEZ DE LA PEÑA","COORD CENTRO SALUD","CIUDADELA METROPOLITANA",338,338,"09/01/2020","https://www.contratos.gov.co/consultas/detalleProceso.do?numConstancia=20-4-10290597"]
[335,22446590,"ROSALBA CERPA MIRANDA ","0335-2020","AUXILIAR ADMINISTRATIVO -  SUBGERENCIA CIENTIFICA","02 ENERO DE 2020","31 ENERO DE 2020",1900000,1900000,"BETTY  LUX PERTUZ CHARRIS","SUBGERENTE CIENTIFICO","CENTRO COSTA HERMOSA ",339,339,"09/01/2020","https://www.contratos.gov.co/consultas/detalleProceso.do?numConstancia=20-4-10290598"]
[336,22528921,"ROSARIO DEL CARMEN CAMARGO GOMEZ","0336-2020","VACUNADORA","02 ENERO DE 2020","31 ENERO DE 2020",1400000,1400000,"NILSA ARIZA MARQUEZ","COORDINADOR P Y P","CENTRO MANUELA BELTRAN",340,340,"09/01/2020","https://www.contratos.gov.co/consultas/detalleProceso.do?numConstancia=20-4-10290599"]
[337,32664177,"ROSIRIS MONTES REDONDO","0337-2020","AUXILIAR DE ODONTOLOGIA","02 ENERO DE 2020","31 ENERO DE 2020",1166000,1166000,"YARELIS GUERRA CORREA","COORD CENTRO SALUD","CENTRO VILLA ESTADIO ",341,341,"09/01/2020","https://www.contratos.gov.co/consultas/detalleProceso.do?numConstancia=20-4-10290600"]
[338,1140881027,"RUBEN DARIO GARZON GOMEZ","0338-2020","ABOGADO EXTERNO","02 ENERO DE 2020","31 ENERO DE 2020",5000000,5000000,"ORNELLA FIORENTINO ","JEFE OFICINA JURIDICA","CENTRO COSTA HERMOSA ",342,342,"09/01/2020","https://www.contratos.gov.co/consultas/detalleProceso.do?numConstancia=20-4-10290875"]
[339,22527122,"RUBY DEL CARMEN BOSSIO HERRERA","0339-2020","AUXILIAR DE ENFERMERIA URGENCIAS","02 ENERO DE 2020","31 ENERO DE 2020",1378000,1378000,"SERGIO BOVEA MARIN","COORD CENTRO SALUD","CENTRO DE 13 DE JUNIO ",343,343,"09/01/2020","https://www.contratos.gov.co/consultas/detalleProceso.do?numConstancia=20-4-10290865"]
[340,1140818354,"SAEN DAVID TAJAN NIEBLES","0340-2020","AUXILIAR ADMINISTRATIVO - DE  PROMOCION Y PREVENCION","02 ENERO DE 2020","31 ENERO DE 2020",2000000,2000000,"NILSA ARIZA MARQUEZ","COORDINADOR P Y P","CENTRO COSTA HERMOSA ",344,344,"09/01/2020","https://www.contratos.gov.co/consultas/detalleProceso.do?numConstancia=20-4-10290867"]
[341,1143456204,"SANDRA MARCELA OVIEDO ROCA","0341-2020","ENFERMERA JEFE ","02 ENERO DE 2020","31 ENERO DE 2020",2300000,2300000,"YARELIS GUERRA CORREA","COORD CENTRO SALUD","CENTRO VILLA ESTADIO ",345,345,"09/01/2020","https://www.contratos.gov.co/consultas/detalleProceso.do?numConstancia=20-4-10291338"]
[342,1042426990,"SANDRA MARCELA PEREZ BERMEJO","0342-2020","MEDICO DE URGENCIA","02 ENERO DE 2020","31 ENERO DE 2020",2560000,2560000,"SERGIO BOVEA MARIN","COORD CENTRO SALUD","CENTRO DE 13 DE JUNIO ",346,346,"09/01/2020","https://www.contratos.gov.co/consultas/detalleProceso.do?numConstancia=20-4-10291333"]
[343,39142741,"SANDRA MILENA ARCON PEREZ","0343-2020","AGENTE CALL CENTER","02 ENERO DE 2020","31 ENERO DE 2020",1378000,1378000,"BETTY  LUX PERTUZ CHARRIS","SUBGERENTE CIENTIFICO","COLL-CENTER- CIUDADELA METROPOLITANA",347,347,"09/01/2020","https://www.contratos.gov.co/consultas/detalleProceso.do?numConstancia=20-4-10291334"]
[344,1045691613,"SERGIO ANDRES MANJARRES MAESTRE","0344-2020","PROFESIONAL PLANEACION ","02 ENERO DE 2020","31 ENERO DE 2020",5800000,5800000,"SANDRA MILENA SANMARTIN  LOPEZ","SUB GERENTE ADMINISTRATIVO","CENTRO MANUELA BELTRAN",348,348,"09/01/2020","https://www.contratos.gov.co/consultas/detalleProceso.do?numConstancia=20-4-10291335"]
[345,1129572439,"SHIRLEY CONSUEGRA OLAYA","0345-2020","REFERENCIA Y CONTRAREFERENCIA","02 ENERO DE 2020","31 ENERO DE 2020",1270000,1270000,"SERGIO BOVEA MARIN","COORD CENTRO SALUD","CENTRO DE 13 DE JUNIO ",349,349,"09/01/2020","https://www.contratos.gov.co/consultas/detalleProceso.do?numConstancia=20-4-10291336"]
[346,1045674051,"SHIRLY PAOLA GUZMAN GUZMAN ","0346-2020","ODONTOLOGO","02 ENERO DE 2020","31 ENERO DE 2020",1900000,1900000,"BETTY  LUX PERTUZ CHARRIS","SUBGERENTE CIENTIFICO","CENTRO  DE SALUD EL PARQUE",350,350,"09/01/2020","https://www.contratos.gov.co/consultas/detalleProceso.do?numConstancia=20-4-10291515"]
[347,22562553,"SILVANA BEATRIZ GONZALEZ MORENO ","0347-2020","TECNICO ALMACEN ","02 ENERO DE 2020","31 ENERO DE 2020",1900000,1900000,"MARIA SANCHEZ AYALA","JEFE ALMACEN","ALMACEN",351,351,"09/01/2020","https://www.contratos.gov.co/consultas/detalleProceso.do?numConstancia=20-4-10291612"]
[348,8683158,"SMELING ORTIZ CHARRIS","0348-2020","ORIENTADOR","02 ENERO DE 2020","31 ENERO DE 2020",1270000,1270000,"CARLOS VISBAL JIMENEZ","COORD CENTRO SALUD","CENTRO COSTA HERMOSA ",352,352,"09/01/2020","https://www.contratos.gov.co/consultas/detalleProceso.do?numConstancia=20-4-10291678"]
[349,22532041,"SORAYA  MARIA BACA RODRIGUEZ","0349-2020","PSICOLOGO EN PROMOCION Y PREVENCION","02 ENERO DE 2020","31 ENERO DE 2020",2800000,2800000,"SERGIO BOVEA MARIN","COORD CENTRO SALUD","CENTRO DE 13 DE JUNIO ",353,353,"09/01/2020","https://www.contratos.gov.co/consultas/detalleProceso.do?numConstancia=20-4-10291668"]
[350,1140814033,"STEFANY RINCON TORRES","0350-2020","PROFESIONAL EN FINANZAS","02 ENERO DE 2020","31 ENERO DE 2020",3500000,3500000,"ALFONSO NICOLAS OQUENDO ","DIRECTOR FINANCIERO","ADMON COSTA HERMOSA",354,354,"09/01/2020","https://www.contratos.gov.co/consultas/detalleProceso.do?numConstancia=20-4-10291669"]
[351,1143447904,"STEFFANY BRIGGITTE ALVAREZ LLERENA","0351-2020","PAI WEB ","02 ENERO DE 2020","31 ENERO DE 2020",1500000,1500000,"NILSA ARIZA MARQUEZ","COORDINADOR P Y P","ARCHIVO CENTRAL ",355,355,"09/01/2020","https://www.contratos.gov.co/consultas/detalleProceso.do?numConstancia=20-4-10291670"]
[352,22692801,"SUNILDA ESTHER SAURIT ESCORCIA","0352-2020","AUXILIAR DE ENFERMERIA CONSULTA EXTERNA ","02 ENERO DE 2020","31 ENERO DE 2020",1166000,1166000,"DIANA MARTINEZ PACHECO","COORD CENTRO DE SALUD","CENTRO SALAMANCA",356,356,"09/01/2020","https://www.contratos.gov.co/consultas/detalleProceso.do?numConstancia=20-4-10291671"]
[353,1042430978,"TATIANA BARRIOSNUEVO CERA","0353-2020","AUXILIAR DE ENFERMERIA URGENCIAS","02 ENERO DE 2020","31 ENERO DE 2020",1378000,1378000,"SERGIO BOVEA MARIN","COORD CENTRO SALUD","CENTRO DE 13 DE JUNIO ",357,357,"09/01/2020","https://www.contratos.gov.co/consultas/detalleProceso.do?numConstancia=20-4-10291672"]
[354,32874863,"TATIANA PAEZ DE LA CRUZ","0354-2020","AUXILIAR DE ENFERMERIA URGENCIAS","02 ENERO DE 2020","31 ENERO DE 2020",1378000,1378000,"SERGIO BOVEA MARIN","COORD CENTRO SALUD","CENTRO DE 13 DE JUNIO ",358,358,"09/01/2020","https://www.contratos.gov.co/consultas/detalleProceso.do?numConstancia=20-4-10291674"]
[355,32884590,"TATIANA SUAREZ CABALLERO ","0355-2020","AUXILIAR ENFERMERIA MATERNIDAD SEGURA","02 ENERO DE 2020","31 ENERO DE 2020",1166000,1166000,"SERGIO BOVEA MARIN","COORD CENTRO SALUD","CENTRO DE 13 DE JUNIO ",359,359,"09/01/2020","https://www.contratos.gov.co/consultas/detalleProceso.do?numConstancia=20-4-10291839"]
[356,8771123,"TEDDY VARGAS MONTERO","0356-2020","ODONTOLOGO","02 ENERO DE 2020","31 ENERO DE 2020",1900000,1900000,"YARELIS GUERRA CORREA","COORD CENTRO SALUD","CIUDADELA METROPOLITANA",360,360,"09/01/2020","https://www.contratos.gov.co/consultas/detalleProceso.do?numConstancia=20-4-10291828"]
[357,55225494,"ULDYS ESTER PONZON PORTO","0357-2020","COORDINADORA DE CONSULTA EXTERNA","02 ENERO DE 2020","31 ENERO DE 2020",3700000,3700000,"BETTY  LUX PERTUZ CHARRIS","SUBGERENTE CIENTIFICO","CENTRO COSTA HERMOSA ",361,361,"09/01/2020","https://www.contratos.gov.co/consultas/detalleProceso.do?numConstancia=20-4-10291829"]
[358,1045692313,"VANESSA CASSIANI PEREZ","0358-2020","DIGITADORA 4725","02 ENERO DE 2020","31 ENERO DE 2020",1378000,1378000,"NILSA ARIZA MARQUEZ","COORDINADOR P Y P","CIUDADELA METROPOLITANA",362,362,"09/01/2020","https://www.contratos.gov.co/consultas/detalleProceso.do?numConstancia=20-4-10291830"]
[359,1007908949,"VERONICA POLET TODARO PEDROZO","0359-2020","MEDICO","02 ENERO DE 2020","31 ENERO DE 2020",{"$f":"2120000+2120000/30*21","v":3604000},3604000,"DIANA MARTINEZ PACHECO","COORD CENTRO DE SALUD","CENTRO SALAMANCA",363,363,"09/01/2020","https://www.contratos.gov.co/consultas/detalleProceso.do?numConstancia=20-4-10291831"]
[360,32703436,"VILMA ZUÑIGA GONZALEZ","0360-2020","AUXILIAR DE ODONTOLOGIA","02 ENERO DE 2020","31 ENERO DE 2020",1166000,1166000,"CARLOS VISBAL JIMENEZ","COORD CENTRO SALUD","CENTRO COSTA HERMOSA ",364,364,"09/01/2020","https://www.contratos.gov.co/consultas/detalleProceso.do?numConstancia=20-4-10291833"]
[361,32684298,"XIOMARA RODRIGUEZ CANTILLO","0361-2020","VACUNADORA","02 ENERO DE 2020","31 ENERO DE 2020",1400000,1400000,"NILSA ARIZA MARQUEZ","COORD CENTRO SALUD","nilsa",365,365,"09/01/2020","https://www.contratos.gov.co/consultas/detalleProceso.do?numConstancia=20-4-10291835"]
[362,1048271951,"WENDY OFELIA BARRAZA PUA","0362-2020","AUXILIAR DE ENFERMERIA URGENCIAS","02 ENERO DE 2020","31 ENERO DE 2020",1378000,1378000,"WILFRAN JIMENEZ DE LA PEÑA","COORD CENTRO SALUD","CENTRO CIUDADELA METROPOLITANA ",366,366,"09/01/2020","https://www.contratos.gov.co/consultas/detalleProceso.do?numConstancia=20-4-10291836"]
[363,1129576747,"WENDY PAOLA JACOME ALFARO","363-2020","REVISORA FISCAL","02 ENERO DE 2020","31 ENERO DE 2020",8255982,8255982,"ROSA MADERA","GERENTE ","ADMON COSTA HERMOSA",367,367,"09/01/2020","https://www.contratos.gov.co/consultas/detalleProceso.do?numConstancia=20-4-10291837"]
[364,1045680952,"WILLIAM RAFAEL DAVIDSON URIETA","0364-2020","MEDICO CONSULTA EXTERNA ","02 ENERO DE 2020","31 ENERO DE 2020",2120000,2120000,"CARLOS VISBAL JIMENEZ","COORD CENTRO SALUD","CENTRO COSTA HERMOSA ",368,368,"09/01/2020","https://www.contratos.gov.co/consultas/detalleProceso.do?numConstancia=20-4-10292039"]
[365,72130373,"WILLYS CARLOS PEREZ TRONCOSO","0365-2020","MEDICO CONSULTA EXTERNA ","02 ENERO DE 2020","31 ENERO DE 2020",2120000,2120000,"CARLOS VISBAL JIMENEZ","COORD CENTRO SALUD","CENTRO COSTA HERMOSA ",369,369,"09/01/2020","https://www.contratos.gov.co/consultas/detalleProceso.do?numConstancia=20-4-10292029"]
[366,1042456068,"XILENA PACHECO OSPINO ","0366-2020","AUXILIAR DE ENFERMERIA URGENCIAS","02 ENERO DE 2020","31 ENERO DE 2020",1378000,1378000,"SERGIO BOVEA MARIN","COORD CENTRO SALUD","CENTRO DE 13 DE JUNIO ",370,370,"09/01/2020","https://www.contratos.gov.co/consultas/detalleProceso.do?numConstancia=20-4-10292030"]
[367,44153255,"XIMENA ESCORCIA CASTRO","0367-2020","MEDICO DE URGENCIA","02 ENERO DE 2020","31 ENERO DE 2020",2560000,2560000,"SERGIO BOVEA MARIN","COORD CENTRO SALUD","CENTRO DE 13 DE JUNIO ",371,371,"09/01/2020","https://www.contratos.gov.co/consultas/detalleProceso.do?numConstancia=20-4-10292031"]
[368,52703063,"XIOMARA  BELLO ORTEGA","0368-2020","AUXILIAR DE ENFERMERIA URGENCIAS","02 ENERO DE 2020","31 ENERO DE 2020",1378000,1378000,"WILFRAN JIMENEZ DE LA PEÑA","COORD CENTRO SALUD","CIUDADELA METROPOLITANA",372,372,"09/01/2020","https://www.contratos.gov.co/consultas/detalleProceso.do?numConstancia=20-4-10292032"]
[369,1042437499,"XIOMARA ALEJANDRA MAURY PACHECO ","0369-2020","ENFERMERA JEFE URGENCIAS ","02 ENERO DE 2020","31 ENERO DE 2020",1900000,1900000,"BETTY  LUX PERTUZ CHARRIS","SUBGERENTE CIENTIFICO","CENTRO DE 13 DE JUNIO ",373,373,"09/01/2020","https://www.contratos.gov.co/consultas/detalleProceso.do?numConstancia=20-4-10292033"]
[370,72429429,"YAIR BARRAZA CERVANTES ","0370-2020","MEDICO PROGRAMA CARDIOVASCULAR","02 ENERO DE 2020","31 ENERO DE 2020",2300000,2300000,"YARELIS GUERRA CORREA","COORD CENTRO SALUD","CENTRO VILLA ESTADIO ",374,374,"09/01/2020","https://www.contratos.gov.co/consultas/detalleProceso.do?numConstancia=20-4-10292034"]
[371,32876060,"YAKELIN BOLAÑO MIRANDA","0371-2020","AUXILIAR DE ODONTOLOGIA","02 ENERO DE 2020","31 ENERO DE 2020",1166000,1166000,"DIANA MARTINEZ PACHECO","COORD CENTRO DE SALUD","CENTRO SALAMANCA",375,375,"09/01/2020","https://www.contratos.gov.co/consultas/detalleProceso.do?numConstancia=20-4-10292035"]
[372,1143452731,"YAMILEC PATRICIA GUERRERO YEPES","0372-2020","ENFERMERA JEFE ","02 ENERO DE 2020","31 ENERO DE 2020",1900000,1900000,"LUIS GRANADOS GOMEZ","COORD CENTRO SALUD","COSTA HERMOSA",376,376,"09/01/2020","https://www.contratos.gov.co/consultas/detalleProceso.do?numConstancia=20-4-10292036"]
[373,32816824,"YANETH CARO VITOLA","0373-2020","AUXILIAR DE ENFERMERIA P Y P ","02 ENERO DE 2020","31 ENERO DE 2020",1166000,1166000,"WILFRAN JIMENEZ DE LA PEÑA","COORD CENTRO SALUD","CIUDADELA METROPOLITANA",377,377,"09/01/2020","https://www.contratos.gov.co/consultas/detalleProceso.do?numConstancia=20-4-10292211"]
[374,32820220,"YARLENE DE AVILA DE ALBA","0374-2020","VACUNADORA","02 ENERO DE 2020","31 ENERO DE 2020",1400000,1400000,"NILSA ARIZA MARQUEZ","COORDINADOR P Y P","CENTRO MANUELA BELTRAN",378,378,"09/01/2020","https://www.contratos.gov.co/consultas/detalleProceso.do?numConstancia=20-4-10292201"]
[375,1140900684,"YEENSSY ACOSTA PALMET","0375-2020","AUXILIAR CONTRATACION","02 ENERO DE 2020","31 ENERO DE 2020",1900000,1900000,"ORNELLA FIORENTINO","JEFE OFICINA JURIDICA","CENTRO COSTA HERMOSA ",379,379,"09/01/2020","https://www.contratos.gov.co/consultas/detalleProceso.do?numConstancia=20-4-10292203"]
[376,60355382,"YEIGNE CONTRERAS BAYONA","0376-2020","VACUNADORA","02 ENERO DE 2020","31 ENERO DE 2020",1400000,1400000,"NILSA ARIZA MARQUEZ","COORDINADOR P Y P","CENTRO MANUELA BELTRAN",380,380,"09/01/2020","https://www.contratos.gov.co/consultas/detalleProceso.do?numConstancia=20-4-10292205"]
[377,1143452684,"YEISON MISAEL DUARTE CALDERON","0377-2020","CONDUCTOR DE AMBULANCIA ","02 ENERO DE 2020","31 ENERO DE 2020",1800000,1800000,"BETTY  LUX PERTUZ CHARRIS","SUBGERENTE CIENTIFICO","CIUDADELA METROPOLITANA",381,381,"09/01/2020","https://www.contratos.gov.co/consultas/detalleProceso.do?numConstancia=20-4-10292207"]
[378,1045733253,"YELICSE LORENA ALFONSO DE LOS SANTOS","0378-2020","AUXILIAR ADMINISTRATIVO","02 ENERO DE 2020","31 ENERO DE 2020",1500000,1500000,"SANDRA MILENA SANMARTIN  LOPEZ","SUB GERENTE ADMINISTRATIVO","ADMON COSTA HERMOSA",382,382,"09/01/2020","https://www.contratos.gov.co/consultas/detalleProceso.do?numConstancia=20-4-10292208"]
[379,1143450666,"YERLIS PAOLA FONTALVO LAMBRAÑO","0379-2020","AUXILIAR FACTURACION URGENCIA","02 ENERO DE 2020","31 ENERO DE 2020",1400000,1400000,"SANDRA MILENA SANMARTIN  LOPEZ","SUB GERENTE ADMINISTRATIVO","CENTRO COSTA HERMOSA ",383,383,"09/01/2020","https://www.contratos.gov.co/consultas/detalleProceso.do?numConstancia=20-4-10292210"]
[380,1143132965,"YERLIS PAOLA GAMARRA BORJA","0380-2020","AUXILIAR ADMINITRATIVO - GERENCIA","02 ENERO DE 2020","31 ENERO DE 2020",4000000,4000000,"ROSA MADERA","GERENTE ","CENTRO DE SAÑUD MACLOVIA",384,384,"09/01/2020","https://www.contratos.gov.co/consultas/detalleProceso.do?numConstancia=20-4-10292434"]
[381,1042445229,"YERLYS VANESA RUIZ LAMADRID","0381-2020","FISIOTERAPEUTA ","02 ENERO DE 2020","31 ENERO DE 2020",1900000,1900000,"CARLOS VISBAL JIMENEZ","COORD CENTRO SALUD","CENTRO COSTA HERMOSA ",385,385,"09/01/2020","https://www.contratos.gov.co/consultas/detalleProceso.do?numConstancia=20-4-10292426"]
[382,55246222,"YESIKA ANGULO MADRID","0382-2020","FISIOTERAPEUTA ","02 ENERO DE 2020","31 ENERO DE 2020",1900000,1900000,"WILFRAN JIMENEZ DE LA PEÑA","COORD CENTRO SALUD","CIUDADELA METROPOLITANA",386,386,"09/01/2020","https://www.contratos.gov.co/consultas/detalleProceso.do?numConstancia=20-4-10292427"]
[383,1042425681,"YESMITH ALEXI GARIZABALO RETAMOSO ","0383-2020","MEDICO DE URGENCIA","02 ENERO DE 2020","31 ENERO DE 2020",2560000,2560000,"SERGIO BOVEA MARIN","COORD CENTRO SALUD","CENTRO DE 13 DE JUNIO ",387,387,"09/01/2020","https://www.contratos.gov.co/consultas/detalleProceso.do?numConstancia=20-4-10292428"]
[384,22641629,"ANGELICA CARCAMO ANAYA","0384-2020","AGENTE CALL CENTER","02 ENERO DE 2020","31 ENERO DE 2020",1378000,1378000,"BETTY  LUX PERTUZ CHARRIS","SUBGERENTE CIENTIFICO","COLL-CENTER- CIUDADELA METROPOLITANA",388,388,"09/01/2020","https://www.contratos.gov.co/consultas/detalleProceso.do?numConstancia=20-4-10292429"]
[385,32739126,"YIRA DEL CARMEN PEÑALOZA AREVALO","0385-2020","AUXILIAR SERVICIOS GENERALES URGENCIA","02 ENERO DE 2020","31 ENERO DE 2020",1378000,{"$f":"H386*1","v":1378000},"SERGIO BOVEA MARIN","COORD CENTRO SALUD","CENTRO DE 13 DE JUNIO ",389,389,"09/01/2020","https://www.contratos.gov.co/consultas/detalleProceso.do?numConstancia=20-4-10292433"]
[386,32896400,"YISEL BEATRIZ ARROYO SUAREZ","0386-2020","AUXILIAR DE FACTURACION URGENCIA","02 ENERO DE 2020","31 ENERO DE 2020",1400000,1400000,"SERGIO BOVEA MARIN","COORD CENTRO SALUD","CENTRO DE 13 DE JUNIO ",390,390,"09/01/2020","https://www.contratos.gov.co/consultas/detalleProceso.do?numConstancia=20-4-10292613"]
[{"$f":"+A387+1","v":387},32811232,"YOLANDA SOFIA MORALES BERMUDEZ","0387-2020","VACUNADORA- CUARTO FRIO","02 ENERO DE 2020","31 ENERO DE 2020",1600000,1600000,"NILSA ARIZA MARQUEZ","COORDINADOR P Y P","CENTRO MANUELA BELTRAN",391,391,"09/01/2020","https://www.contratos.gov.co/consultas/detalleProceso.do?numConstancia=20-4-10292600"]
[388,8772793,"YON CARLOS FERRER RODRIGUEZ","0388-2020","ORIENTADOR","02 ENERO DE 2020","31 ENERO DE 2020",1270000,1270000,"CARLOS VISBAL JIMENEZ","COORD CENTRO SALUD","CENTRO COSTA HERMOSA ",392,392,"09/01/2020","https://www.contratos.gov.co/consultas/detalleProceso.do?numConstancia=20-4-10292601"]
[389,1140864808,"YONELIS MARGARITA VILLALVA LUQUE","0389-2020","ASISTENTE COORDINADOR MEDICO","02 ENERO DE 2020","31 ENERO DE 2020",2200000,2200000,"LUIS GRANADOS GOMEZ","COORD CENTRO SALUD","CENTRO MANUELA BELTRAN",393,393,"09/01/2020","https://www.contratos.gov.co/consultas/detalleProceso.do?numConstancia=20-4-10292602"]
[390,55230396,"YORLETH MALENA FLOREZ ABRIL","0390-2020","MEDICO DE URGENCIA","02 ENERO DE 2020","31 ENERO DE 2020",2560000,2560000,"SERGIO BOVEA MARIN","COORD CENTRO SALUD","CENTRO DE 13 DE JUNIO ",394,394,"09/01/2020","https://www.contratos.gov.co/consultas/detalleProceso.do?numConstancia=20-4-10292603"]
[391,55225095,"YURAIMA GUTIERREZ HERNANDEZ","0391-2020","REGENTE DE FARMACIA ","02 ENERO DE 2020","31 ENERO DE 2020",1900000,1900000,"BETTY  LUX PERTUZ CHARRIS","SUBGERENTE CIENTIFICO","ADMON -FARMACIA",395,395,"09/01/2020","https://www.contratos.gov.co/consultas/detalleProceso.do?numConstancia=20-4-10292605"]
[392,1045698343,"JOSE FRANCISCO INFANZON CASTRO","0392-2020","ASESOR GERENCIA","02 ENERO DE 2020","31 ENERO DE 2020",5800000,5800000,"ROSA MADERA","GERENTE ","ADMON COSTA HERMOSA",396,396,"09/01/2020","https://www.contratos.gov.co/consultas/detalleProceso.do?numConstancia=20-4-10292606"]
[393,55250327,"YURANIS BONIFAS CAÑAS","0393-2020","ENFERMERA JEFE-TERRENO ","02 ENERO DE 2020","31 ENERO DE 2020",2120000,2120000,"NILSA ARIZA MARQUEZ","COORDINADOR P Y P","CENTRO MANUELA BELTRAN",397,397,"09/01/2020","https://www.contratos.gov.co/consultas/detalleProceso.do?numConstancia=20-4-10292609"]
[394,1042436116,"YURANIS SOTO OSORIO","0394-2020","AUXILIAR DE ENFERMERIA URGENCIAS","02 ENERO DE 2020","31 ENERO DE 2020",1378000,1378000,"WILFRAN JIMENEZ DE LA PEÑA","COORD CENTRO SALUD","CIUDADELA METROPOLITANA",398,398,"09/01/2020","https://www.contratos.gov.co/consultas/detalleProceso.do?numConstancia=20-4-10292610"]
[395,44155518,"YURLEY FONTALVO RIVALDO ","0395-2020","MEDICO DE URGENCIA","02 ENERO DE 2020","31 ENERO DE 2020",2560000,2560000,"BETTY  LUX PERTUZ CHARRIS","SUBGERENTE CIENTIFICO","CIUDADELA METROPOLITANA",399,399,"09/01/2020","https://www.contratos.gov.co/consultas/detalleProceso.do?numConstancia=20-4-10292612"]
[396,32865503,"ZULAI DONADO PARODIS ","0396-2020","AUXILIAR DE ENFERMERIA P Y P ","02 ENERO DE 2020","31 ENERO DE 2020",1166000,1166000,"SERGIO BOVEA MARIN","COORD CENTRO SALUD","CENTRO DE 13 DE JUNIO ",400,400,"09/01/2020","https://www.contratos.gov.co/consultas/detalleProceso.do?numConstancia=20-4-10292901"]
[397,22732194,"MARLEY VASQUEZ VARGAS","0397-2020","FACTURACION ","02 ENERO DE 2020","31 ENERO DE 2020",1700000,1700000,"SANDRA MILENA SANMARTIN  LOPEZ","SUB GERENTE ADMINISTRATIVO","CENTRO COSTA HERMOSA ",401,401,"09/01/2020","https://www.contratos.gov.co/consultas/detalleProceso.do?numConstancia=20-4-10292889"]
[398,1042440221,"MARIA DE LA HOZ DE LA HOZ","0398-2020","AUXILIAR DE ARCHIVO","02 ENERO DE 2020","31 ENERO DE 2020",1900000,1900000,"SANDRA MILENA SANMARTIN  LOPEZ","SUB GERENTE ADMINISTRATIVO","ARCHIVO CENTRAL ",402,402,"09/01/2020","https://www.contratos.gov.co/consultas/detalleProceso.do?numConstancia=20-4-10292892"]
[399,72251637,"EMILERTO RAFAEL CARRASCAL GUILLEN","0399-2020","MENSAJERO ","02 ENERO DE 2020","31 ENERO DE 2020",1500000,1500000,"NILSA ARIZA MARQUEZ","COORDINADOR PYP","ARCHIVO",403,403,"09/01/2020","https://www.contratos.gov.co/consultas/detalleProceso.do?numConstancia=20-4-10292893"]
[400,72428579,"IVAN ANDRES DOMINGUEZ SAGBINI","0400-2020","GINECOLOGO ","02 ENERO DE 2020","31 ENERO DE 2020",7500000,7500000,"NILSA ARIZA MARQUEZ","COORDINADOR P Y P","ARCHIVO CENTRAL ",404,404,"09/01/2020","https://www.contratos.gov.co/consultas/detalleProceso.do?numConstancia=20-4-10292895"]
[401,32861785,"CATALINA MERCADO MARTINEZ","0401-2020","AUXILIAR DE FACTURACION","02 ENERO DE 2020","31 ENERO DE 2020",1300000,1300000,"SANDRA MILENA SANMARTIN  LOPEZ","SUB GERENTE ADMINISTRATIVO","CENTRO SALAMANCA",405,405,"09/01/2020","https://www.contratos.gov.co/consultas/detalleProceso.do?numConstancia=20-4-10292897"]
[402,1003265428,"ISABEL CURIEL CORTINA","0402-2020","GESTION DOCUMENTAL JURIDICA","02 ENERO DE 2020","31 ENERO DE 2020",1270000,1270000,"ORNELLA FIORENTINO","JEFE OFICINA JURIDICA","CENTRO COSTA HERMOSA ",406,406,"09/01/2020","https://www.contratos.gov.co/consultas/detalleProceso.do?numConstancia=20-4-10292899"]
[403,22646648,"LILIANA CONSUELO CELIN BONETT","0403-2020","AUXILIAR SERVICIOS GENERALES","02 ENERO DE 2020","31 ENERO DE 2020",1215000,1215000,"SANDRA MILENA SANMARTIN  LOPEZ","SUB GERENTE ADMINISTRATIVO","CENRO  MACLOVIA",407,407,"09/01/2020","https://www.contratos.gov.co/consultas/detalleProceso.do?numConstancia=20-4-10292900"]
[404,44159754,"YANIRE CARLINA CASTRO ESCALANTE","0404-2020","GINECOLOGO ","02 ENERO DE 2020","31 ENERO DE 2020",7500000,7500000,"NILSA ARIZA MARQUEZ","COORDINADOR P Y P","ADMON COSTA HERMOSA",408,408,"09/01/2020","https://www.contratos.gov.co/consultas/detalleProceso.do?numConstancia=20-4-10293068"]
[405,15074329,"RAFAEL ANTONIO RICO","0405-2020","ORIENTADOR","02 ENERO DE 2020","31 ENERO DE 2020",1270000,1270000,"WILFRAN JIMENEZ DE LA PEÑA","COORD CENTRO SALUD","CIUDADELA METROPOLITANA",409,409,"09/01/2020","https://www.contratos.gov.co/consultas/detalleProceso.do?numConstancia=20-4-10293059"]
[406,32817885,"VIOLI ESTER BARRIOS GUARDELA","0406-2020","TRABAJADORA SOCIAL","02 ENERO DE 2020","31 ENERO DE 2020",2200000,2200000,"BETTY  LUX PERTUZ CHARRIS","SUBGERENTE CIENTIFICO","CIUDADELA METROPOLITANA",410,410,"09/01/2020","https://www.contratos.gov.co/consultas/detalleProceso.do?numConstancia=20-4-10293060"]
[407,32878246,"SHIRLY ISABEL RECIO COLLANTE","0407-2020","AUXILIAR ENFERMERIA CON EXTERNA","02 ENERO DE 2020","31 ENERO DE 2020",1166000,1166000,"BETTY  LUX PERTUZ CHARRIS","SUBGERENTE CIENTIFICO",0,411,411,"09/01/2020","https://www.contratos.gov.co/consultas/detalleProceso.do?numConstancia=20-4-10293061"]
[408,1042431836,"JULIETH PAOLA HERRERA ORTEGA","0408-2020","CORDINADORA SIAU","02 ENERO DE 2020","31 ENERO DE 2020",4000000,4000000,"BETTY  LUX PERTUZ CHARRIS","SUBGERENTE CIENTIFICO","PIC",412,412,"09/01/2020","https://www.contratos.gov.co/consultas/detalleProceso.do?numConstancia=20-4-10293062"]
[409,8777621,"ALEXANDER MIGUEL SALAZAR CABALLERO","0409-2020","AUXILIAR DE FACTURACION URGENCIA","02 ENERO DE 2020","31 ENERO DE 2020",1400000,1400000,"SANDRA MILENA SANMARTIN  LOPEZ","SUB GERENTE ADMINISTRATIVO",null,413,413,"09/01/2020","https://www.contratos.gov.co/consultas/detalleProceso.do?numConstancia=20-4-10293063"]
[410,1042426533,"LIZ CATERINE ARROYO ROMERO","0410-2020","AUXILIAR DE FARMACIA ","02 ENERO DE 2020","31 ENERO DE 2020",1270000,1270000,"BETTY  LUX PERTUZ CHARRIS","SUBGERENTE CIENTIFICO","CIUDADELA METROPOLITANA",414,414,"09/01/2020","https://www.contratos.gov.co/consultas/detalleProceso.do?numConstancia=20-4-10293064"]
[411,22430756,"MARITZA MARINO OSORIO","0411-2020","VACUNADORA ","02 ENERO DE 2020","31 ENERO DE 2020",1400000,1400000,"NILSA ARIZA MARQUEZ","COORDINADOR P Y P","MANUELA BELTRAN",415,415,"09/01/2020","https://www.contratos.gov.co/consultas/detalleProceso.do?numConstancia=20-4-10293065"]
[412,22387913,"OMEIRA CECILIA BARRIOS DE ESTREN ","0412-2020","VACUNADORA","02 ENERO DE 2020","31 ENERO DE 2020",1400000,1400000,"NILSA ARIZA MARQUEZ","COORDINADOR P Y P","MANUELA BELTRAN",416,416,"09/01/2020","https://www.contratos.gov.co/consultas/detalleProceso.do?numConstancia=20-4-10293198"]
[413,32826839,"BEATRIZ ISABEL SANMARTIN ESCORCIA","0413-2020","VACUNADORA","02 ENERO DE 2020","31 ENERO DE 2020",1400000,1400000,"NILSA ARIZA MARQUEZ","COORDINADOR P Y P","MANUELA BELTRAN",417,417,"09/01/2020","https://www.contratos.gov.co/consultas/detalleProceso.do?numConstancia=20-4-10293189"]
[414,49775980,"GLORIA HERNANDEZ CENTENO","0414-2020","VACUNADORA","02 ENERO DE 2020","31 ENERO DE 2020",1400000,1400000,"NILSA ARIZA MARQUEZ","COORDINADOR P Y P","MANUELA BELTRAN",418,418,"09/01/2020","https://www.contratos.gov.co/consultas/detalleProceso.do?numConstancia=20-4-10293190"]
[415,22431886,"IVIS GONZALEZ AYARZA","0415-2020","VACUNADORA","02 ENERO DE 2020","31 ENERO DE 2020",1400000,1400000,"NILSA ARIZA MARQUEZ","COORDINADOR P Y P","MANUELA BELTRAN",419,419,"09/01/2020","https://www.contratos.gov.co/consultas/detalleProceso.do?numConstancia=20-4-10293191"]
[416,55222617,"OLGA SANDOVAL PEDRAZA","0416-2020","VACUNADORA","02 ENERO DE 2020","31 ENERO DE 2020",1400000,1400000,"NILSA ARIZA MARQUEZ","COORDINADOR P Y P","MANUELA BELTRAN",420,420,"09/01/2020","https://www.contratos.gov.co/consultas/detalleProceso.do?numConstancia=20-4-10293192"]
[417,1042428053,"YURANIS DEL CARMEN BLANQUICETT MORENO","0417-2020","VACUNADORA","02 ENERO DE 2020","31 ENERO DE 2020",1400000,1400000,"NILSA ARIZA MARQUEZ","COORDINADOR P Y P","MANUELA BELTRAN",421,421,"09/01/2020","https://www.contratos.gov.co/consultas/detalleProceso.do?numConstancia=20-4-10293193"]
[418,72015109,"PEDRO CARLOS CANTILLO BOLIVAR","0418-2020","ASESOR DE PRESUPUESTO","02 ENERO DE 2020","31 ENERO DE 2020",4500000,4500000,"ALFONSO NICOLAS OQUENDO ","DIRECTOR FINANCIERO","ADMON COSTA HERMOSA",422,422,"09/01/2020","https://www.contratos.gov.co/consultas/detalleProceso.do?numConstancia=20-4-10293195"]
[419,1140850083,"ARLINY YANNINY RAMIREZ FIGUEROA","0419-2020","ASESOR DE PRESUPUESTO","02 ENERO DE 2020","31 ENERO DE 2020",4500000,4500000,"ALFONSO NICOLAS OQUENDO ","DIRECTOR FINANCIERO",{"$f":"+L419","v":"ADMON COSTA HERMOSA"},423,423,"09/01/2020","https://www.contratos.gov.co/consultas/detalleProceso.do?numConstancia=20-4-10293350"]
[420,1042417305,"NATALIE JASBLEIDYS COMAS TORRES","0420-2020","AGENTE CENTRAL DE CITAS","02 ENERO DE 2020","31 ENERO DE 2020",1400000,1400000,"NILSA ARIZA MARQUEZ","COORDINADOR P Y P","COLL-CENTER- CIUDADELA METROPOLITANA",424,424,"09/01/2020","https://www.contratos.gov.co/consultas/detalleProceso.do?numConstancia=20-4-10293343"]
[421,22564359,"NINI JOHANNA QUIROZ SANTOS","0421-2020","MEDICO URGENCIA","02 ENERO DE 2020","31 ENERO DE 2020",2560000,2560000,"SERGIO BOVEA MARIN","COORD CENTRO SALUD","CIUDADELA METROPOLITANA ",425,425,"09/01/2020","https://www.contratos.gov.co/consultas/detalleProceso.do?numConstancia=20-4-10293344"]
[422,8714709,"ALFONSO DOMINGUEZ MARENCO","0422-2020","AUXILIAR DE ARCHIVO","02 ENERO DE 2020","31 ENERO DE 2020",1500000,1500000,"SANDRA MILENA SANMARTIN  LOPEZ",null,"ARCHIVO CENTRAL ",426,426,"09/01/2020","https://www.contratos.gov.co/consultas/detalleProceso.do?numConstancia=20-4-10293345"]
[423,32761353,"LORENZA BARRIOS ESTRADA","0423-2020","AUXILIAR DE ENFERMERIA URGENCIAS","02 ENERO DE 2020","31 ENERO DE 2020",1378000,1378000,"WILFRAN JIMENEZ DE LA PEÑA","COORD CENTRO SALUD","CIUDADELA METROPOLITANA ",427,427,"09/01/2020","https://www.contratos.gov.co/consultas/detalleProceso.do?numConstancia=20-4-10293346"]
[424,1129492039,"HELEN VIVIANA AYALA FUENTES","0424-2020","AUXILIAR DE ODONTOLOGIA","02 ENERO DE 2020","31 ENERO DE 2020",1166000,1166000,"SERGIO BOVEA MARIN","COORD CENTRO SALUD","CENTRO DE 13 DE JUNIO ",428,428,"09/01/2020","https://www.contratos.gov.co/consultas/detalleProceso.do?numConstancia=20-4-10293348"]
[425,1001870758,"PATRICIA MERCEDES NAVARRO VALENCIA","0425-2020","REGENTE DE FARMACIA ","02 ENERO DE 2020","31 ENERO DE 2020",2400000,2400000,"BETTY  LUX PERTUZ CHARRIS","SUBGERENTE CIENTIFICO","ADMON -FARMACIA",429,429,"09/01/2020","https://www.contratos.gov.co/consultas/detalleProceso.do?numConstancia=20-4-10293434"]
[426,72224887,"ROIMAN ARENAS POTES","0426-2020","AUDITOR -ODONTOLOGIA","02 ENERO DE 2020","31 ENERO DE 2020",3000000,3000000,"BETTY  LUX PERTUZ CHARRIS",{"$f":"+K426","v":"SUBGERENTE CIENTIFICO"},"COSTA HERMOSA",433,430,"09/01/2020","https://www.contratos.gov.co/consultas/detalleProceso.do?numConstancia=20-4-10293445"]
[427,72003816,"ELKIN HORMECHEA INSIGNARES ","0427-2020","INGENIERO INDUSTRIAL","02 ENERO DE 2020","31 ENERO DE 2020",5800000,5800000,"ROSA MADERA","GERENTE ","ADMON COSTA HERMOSA",434,431,"09/01/2020","https://www.contratos.gov.co/consultas/detalleProceso.do?numConstancia=20-4-10293459"]
[428,1042440450,"EDUARDO LUIS NIEBLES CHARRIS","0428-2020","ARQUITECTO","02 ENERO DE 2020","31 ENERO DE 2020",3000000,3000000,"FABIAN COLPAS","JEFE TALENTO HUMANO","ADMON COSTA HERMOSA",435,432,"09/01/2020","https://www.contratos.gov.co/consultas/detalleProceso.do?numConstancia=20-4-10351485"]
[429,52618443,"NATALIA ALONSO CARVAJAL","0429-2020","ASESOR GERENCIA","02 ENERO DE 2020","31 ENERO DE 2020",5800000,{"$f":"H430*1","v":5800000},"ROSA MADERA","GERENTE ","ADMON COSTA HERMOSA",436,433,"09/01/2020","https://www.contratos.gov.co/consultas/detalleProceso.do?numConstancia=20-4-10351882"]
[430,1140848431,"VICTORIA DEL SOCORRO CANTILLO PEREZ","0430-2020","ENFERMERA CAPACITACION Y TALLER","02 ENERO DE 2020","31 ENERO DE 2020",2500000,2500000,"LUIS GRANADOS GOMEZ","COORDINADOS CENTRO",null,441,441,"09/01/2020","https://www.contratos.gov.co/consultas/detalleProceso.do?numConstancia=20-4-10351324"]
[431,1001878097,"ELIS SANDERS JHON MERCADO","0431-2020","AUXILIAR DE ENFERMERIA-SERVICIOS AMIGABLES","02 ENERO DE 2020","31 ENERO DE 2020",1166000,1166000,"NILSA ARIZA MARQUEZ","COORDINADORA PYP","MANUELA BELTRAN",442,442,"09/01/2020","https://www.contratos.gov.co/consultas/detalleProceso.do?numConstancia=20-4-10293343"]
[432,1143425564,"HECTOR JOSE BARRAZA GUTIERREZ","0432-2020","ASESOR DE PRESUPUESTO","02 ENERO DE 2020","31 ENERO DE 2020",4500000,4500000,"ALFONSO NICOLAS OQUENDO ","DIRECTOR FINANCIERO","ADMON COSTA HERMOSA",443,443,"09/01/2020","https://www.contratos.gov.co/consultas/detalleProceso.do?numConstancia=20-4-10350384"]
[433,32583401,"ELSY LIZETH CHARRIS CONTRERAS","0433-2020","MEDICO CONSULTA EXTERNA","02 ENERO DE 2020","31 ENERO DE 2020",2120000,2120000,"BETTY  LUX PERTUZ CHARRIS",{"$f":"+K427","v":"SUBGERENTE CIENTIFICO"},"EL PARQUE",444,444,"09/01/2020","https://www.contratos.gov.co/consultas/detalleProceso.do?numConstancia=20-4-10350802"]
[434,1129571476,"ILIANA MATOS RAMOS","0434-2020","ABOGADO EXTERNO","02 ENERO DE 2020","31 ENERO DE 2020",4000000,4000000,"ORNELLA FIORENTINO","JEFE JURIDICA","ADMON COSTA HERMOSA",445,445,"09/01/2020","https://www.contratos.gov.co/consultas/detalleProceso.do?numConstancia=20-4-10373316"]
[435,73140179,"JULIO CESAR LOPEZ ROMERO","0435-2020","DIGITADOR PAI WEB","02 ENERO DE 2020","31 ENERO DE 2020",1378000,1378000,"NILSA ARIZA MARQUEZ","COORDINADOR PYP",null,446,446,"09/01/2020","https://www.contratos.gov.co/consultas/detalleProceso.do?numConstancia=20-4-10373316"]
[436,1042460532,"JESUS  DAVID PEDRAZA TORRES","0436-2020","TECNICO SISTEMAS","07 ENERO DE 2020","31 ENERO DE 2020",{"$f":"1500000/30*25","v":1250000},1250000,"ZULLI ROMERO ",{"$f":"+K15","v":"COORDINADOR TIC"},{"$f":"+L15","v":"CENTRO COSTA HERMOSA "},457,457,"09/01/2020","https://www.contratos.gov.co/consultas/detalleProceso.do?numConstancia=20-4-10373316"]
[437,55307414,"NATALY DE LAS SALAS ORTEGA","0437-2020","PSICOLOGA","07 ENERO DE 2020","31 ENERO DE 2020",2334000,2334000,"BETTY  LUX PERTUZ CHARRIS","SUBGERENTE CIENTIFICO",null,458,458,"09/01/2020","https://www.contratos.gov.co/consultas/detalleProceso.do?numConstancia=20-4-10350824"]
[438,32874188,"JALICSA ARRIETA ORTEGA","0438-2020","PSICOLOGA APOYO PROMOCION Y PREVENCION","07 ENERO DE 2020","31 ENERO DE 2020",3334000,3334000,"NILSA ARIZA MARQUEZ",null,"COORD PYP",459,459,"09/01/2020","https://www.contratos.gov.co/consultas/detalleProceso.do?numConstancia=20-4-10331830"]
[439,8756266,"GEOVANNY ESCORCIA JIMENEZ","0439-2020","AUXILIAR DE ARCHIVO","08 ENERO DE 2020","31 ENERO DE 2020",{"$f":"1500000/30*24","v":1200000},1200000,"SANDRA MILENA SANMARTIN  LOPEZ","SUBGERENTE ADMINISTRATIVO",null,460,460,"09/01/2020","https://www.contratos.gov.co/consultas/detalleProceso.do?numConstancia=20-4-10373317"]
[440,1042441044,"SASKIA STEFANIA SOTOMAYOR SOLANO","0440-2020","AUXILIAR SERVICIOS GENERALES","08 ENERO DE 2020","31 ENERO DE 2020",1215000,1215000,"YARELIS GUERRA CORREA","COORD MEDICO SALUD","CENTRO VILLA ESTADIO ",461,461,"09/01/2020","https://www.contratos.gov.co/consultas/detalleProceso.do?numConstancia=20-4-10361341"]
[441,8750355,"FREDDY BARCELO DONADO","0441-2020","AUXILIAR DE ARCHIVO","08 ENERO DE 2020","31 ENERO DE 2020",{"$f":"1500000/30*24","v":1200000},1200000,"SANDRA MILENA SANMARTIN  LOPEZ",{"$f":"+K451","v":"JEFE TALENTO HUMANO"},"subgerente administrativo",462,462,"09/01/2020","https://www.contratos.gov.co/consultas/detalleProceso.do?numConstancia=20-4-10373543"]
[442,55349541,"JESSICA MARIA ALMARALES RUIZ","0442-2020","MEDICO DE URGENCIA","08 ENERO DE 2020","31 ENERO DE 2020",{"$f":"2560000/30*24","v":2048000},2048000,"WILFRAN JIMENEZ DE LA PEÑA","COORD CENTRO MEDICO","CIUDADELA ",463,463,"09/01/2020","https://www.contratos.gov.co/consultas/detalleProceso.do?numConstancia=20-4-10373319"]
[443,1001798325,"CINDY MILENA SARMIENTO MERIÑO","0443-2020","PROFESIONAL  RELACIONES INETRNACIONALES","09 ENERO DE 2020","31 ENERO DE 2020",3834000,{"$f":"H444*1","v":3834000},"FABIAN COLPAS","JEFE RECUSOS HUMANOS","ADMON COSTA HERMOSA",465,465,"09/01/2020","https://www.contratos.gov.co/consultas/detalleProceso.do?numConstancia=20-4-10324941"]
[444,1129577912,"SOLANGI PAOLA FONTALVO JIMENEZ","0444-2020","INGENIERO INDUSTRIAL/ MATERNIDAD SEGURA","09 ENERO DE 2020","31 ENERO DE 2020",4000000,4000000,"ROSA MADERA","GERENTE ","ADMON COSTA HERMOSA",466,466,"09/01/2020","https://www.contratos.gov.co/consultas/detalleProceso.do?numConstancia=20-4-10374154"]
[445,55245774,"KARELY SUGEY SANDOVAL HERRERA","0445-2020","ASESOR FINANCIERO","09 ENERO DE 2020","31 MARZO DE 2020",8000000,{"$f":"H446*3","v":24000000},"ALFONSO NICOLAS OQUENDO ","DIRECTOR FINANCIERO","DIRECTOR FINANCIERO",467,467,"09/01/2020","https://www.contratos.gov.co/consultas/detalleProceso.do?numConstancia=20-4-10350475"]
[446,1140864973,"SERGIO JAVIER MARTINEZ GUERRA","0446-2020","ASESOR GERENCIA","09 ENERO DE 2020","31 ENERO DE 2020",5800000,{"$f":"H447*1","v":5800000},"ROSA MADERA","GERENTE ",{"$f":"+L430","v":"ADMON COSTA HERMOSA"},468,468,"09/01/2020","https://www.contratos.gov.co/consultas/detalleProceso.do?numConstancia=20-4-10339974"]
[447,32824393,"ELIZABETH RODRIGUEZ BARRIOS","0447-2020","VACUNADORA","09 ENERO DE 2020","31 ENERO DE 2020",1400000,{"$f":"H448*1","v":1400000},"NILSA ARIZA MARQUEZ",null,"COORD PYP",469,469,"09/01/2020","https://www.contratos.gov.co/consultas/detalleProceso.do?numConstancia=20-4-10361418"]
[448,32825847,"LUZ CLEMENCIA SANDOVAL MARCHENA","0448-2020","VACUNADORA","09 ENERO DE 2020","31 ENERO DE 2020",1400000,{"$f":"H449*1","v":1400000},"NILSA ARIZA MARQUEZ",null,"COORD PYP",470,470,"09/01/2020","https://www.contratos.gov.co/consultas/detalleProceso.do?numConstancia=20-4-10361423"]
[449,72045976,"HUMBERTO ZACARIAS CADAVID ALDANA","0449-2020","ASESOR GERENCIA","09 ENERO DE 2020","31 ENERO DE 2020",4000000,{"$f":"H450*1","v":4000000},"ROSA MADERA","GERENTE ",{"$f":"+L447","v":"ADMON COSTA HERMOSA"},471,471,"09/01/2021","https://www.contratos.gov.co/consultas/detalleProceso.do?numConstancia=20-4-10374247"]
[450,32776380,"MARILUZ DE LA TORRE ECHEVERRIA","0450-2020","AUXILIAR DE ARCHIVO ","09 ENERO DE 2020","31 ENERO DE 2020",1500000,1500000,"FABIAN COLPAS","JEFE TALENTO HUMANO",null,478,703,"09/01/2022","https://www.contratos.gov.co/consultas/detalleProceso.do?numConstancia=20-4-10374201"]
[{"$f":"+A451+1","v":451},1042452851,"MAYRA ALEJANDRA VASQUEZ MORENO","0451-2020","AUXILIAR ADMINISTRATIVO  - ESTADISTICAS","09 ENERO DE 2020","31 ENERO DE 2020",{"$f":"1500000/30*25","v":1250000},1250000,"GENARO GUTIERREZ PIÑERES",{"$f":"+K451","v":"JEFE TALENTO HUMANO"},null,485,704,"09/01/2023","https://www.contratos.gov.co/consultas/detalleProceso.do?numConstancia=20-4-10374333"]
[452,72261093,"GUILLERMO DE JESUS POLO OSSANDRES       ","0452-2020","PROFESIONAL OFICINA PAGADURIA  ","09 ENERO DE 2020","31 ENERO DE 2020",4000000,4000000,"LISGLENIS BUENO BRICEÑO","JEFE TESORERIA","ADMON COSTA HERMOSA",486,705,"09/01/2024","https://www.contratos.gov.co/consultas/detalleProceso.do?numConstancia=20-4-10351160"]
[453,1010179685,"NAYIVI OSPINA ARROYAVE","0453-2020","SALUD OCUPACIONAL SEGURIDAD TRABAJO","09 ENERO DE 2020","31 ENERO DE 2020",3180000,3180000,"FABIAN COLPAS","JEFE TALENTO HUMANO","ADMON COSTA HERMOSA",495,839,"09/01/2025","https://www.contratos.gov.co/consultas/detalleProceso.do?numConstancia=20-4-10403191"]
[null,null,null,null,null,null,null,null,{"$f":"SUM(I2:I454)","v":1005146032}]